Workbook

Sheet Реестр (2) (hidden)
A1: Реестр операций ООО "Ромашка"
A3: № | B3: Дата операции | C3: Сумма операции | D3: Расчётный счёт | E3: Статья ДДС | F3: Наименование контрагента | G3: Комментарии | H3: Мес.
A4: 1 | B4: 2014-01-09 | C4: -150200 | D4: Счёт в ВТБ 24 | E4: Аренда офиса | F4: ИТ-Парк ООО | G4: аренда за январь | H4: =MONTH(B4) -> 1
A5: 2 | B5: 2014-01-15 | C5: 30560 | D5: Счёт в Сбербанке | E5: Поступления от продаж | F5: Майндшер Интерэкшн ООО | G5: выручка | H5: =MONTH(B5) -> 1
A6: 3 | B6: 2014-01-25 | C6: 15770 | D6: Счёт в Сбербанке | E6: Поступления от продаж | F6: РеалВеб ЗАО | G6: выручка | H6: 1
A7: 4 | B7: 2014-02-02 | C7: -45000 | D7: Счёт в Сбербанке | E7: Услуги по размещению | F7: Унихост.Ру ООО | G7: оплата трафика | H7: 2
A8: 5 | B8: 2014-02-20 | C8: -15310 | D8: Счёт в ВТБ 24 | E8: Налог на добавленную стоимость | F8: УФК СПб | G8: НДС за 4 квартал 2013 | H8: 2
A9: 6 | B9: 2014-02-28 | C9: -50400 | D9: Счёт в Сбербанке | E9: Основная заработная плата | F9: Сбербанк | G9: з/п на карточки | H9: 2

Sheet Остатки
A1: Остатки денежных средств
A3: Остатки по счетам | B3: На начало года | C3: Фактические | D3: Плановые
A4: Счёт в ВТБ 24 | B4: 500000 | C4: =SUMIFS(Реестр!$C:$C,Реестр!$D:$D,Остатки!$A4,Реестр!$H:$H,"факт")+B4 -> 1634797.25 | D4: =SUMIFS(Реестр!$C:$C,Реестр!$D:$D,Остатки!$A4,Реестр!$H:$H,"план")+C4 -> 1634797.25
A5: Счёт в Сбербанке | B5: 500000 | C5: =SUMIFS(Реестр!$C:$C,Реестр!$D:$D,Остатки!$A5,Реестр!$H:$H,"факт")+B5 -> 1962499.79 | D5: =SUMIFS(Реестр!$C:$C,Реестр!$D:$D,Остатки!$A5,Реестр!$H:$H,"план")+C5 -> 1962499.79
A6: Счёт в Альфа-Банке | B6: 1500000 | C6: =SUMIFS(Реестр!$C:$C,Реестр!$D:$D,Остатки!$A6,Реестр!$H:$H,"факт")+B6 -> 543490.29 | D6: =SUMIFS(Реестр!$C:$C,Реестр!$D:$D,Остатки!$A6,Реестр!$H:$H,"план")+C6 -> 543490.29
A7: итого | B7: =SUM(B4:B6) -> 2500000 | C7: =SUM(C4:C6) -> 4140787.33 | D7: =SUM(D4:D6) -> 4140787.33

Sheet Реестр
A1: Реестр операций ООО "Ромашка"
C2: =SUBTOTAL(109,C4:C9489) -> 31820007.47
A3: Дата оплаты | B3: Дата начисления | C3: Сумма операции | D3: Расчётный счёт | E3: Статья затрат/ДДС | F3: Наименование контрагента | G3: Комментарии | H3: Статус | I3: Месяц оплаты | J3: Месяц начисл. | K3: Неделя оплаты
A4: 2013-01-09 | C4: 1000 | D4: Счёт в ВТБ 24 | E4: Поступления от продаж | F4: Клиент 10 | H4: факт | I4: =IF(ISBLANK(A4),0,MONTH(A4)) -> 1 | J4: =IF(ISBLANK(B4),0,MONTH(B4)) -> 0 | K4: =WEEKNUM(A4) -> 2
A5: 2013-01-09 | C5: 30680 | D5: Счёт в Сбербанке | E5: Поступления от продаж | F5: Клиент 1 | H5: факт | I5: 1 | J5: 0 | K5: 2
A6: 2013-01-09 | C6: 58410 | D6: Счёт в ВТБ 24 | E6: Поступления от продаж | F6: Клиент 19 | H6: факт | I6: 1 | J6: 0 | K6: 2
A7: 2013-01-09 | C7: 200000 | D7: Счёт в Альфа-Банке | E7: Поступления от продаж | F7: Клиент 2 | H7: факт | I7: 1 | J7: 0 | K7: 2
A8: 2013-01-10 | C8: 187726.2 | D8: Счёт в Сбербанке | E8: Поступления от продаж | F8: Клиент 13 | H8: факт | I8: 1 | J8: 0 | K8: 2
A9: 2013-01-10 | C9: 435472.22 | D9: Счёт в ВТБ 24 | E9: Поступления от продаж | F9: Клиент 7 | H9: факт | I9: 1 | J9: 0 | K9: 2
A10: 2013-01-10 | C10: 826000 | D10: Счёт в Альфа-Банке | E10: Поступления от продаж | F10: Клиент 18 | H10: факт | I10: 1 | J10: 0 | K10: 2
A11: 2013-01-14 | C11: 95155.2 | D11: Счёт в ВТБ 24 | E11: Поступления от продаж | F11: Клиент 20 | H11: факт | I11: 1 | J11: 0 | K11: 3
A12: 2013-01-14 | C12: 45430 | D12: Счёт в Сбербанке | E12: Поступления от продаж | F12: Клиент 19 | H12: факт | I12: 1 | J12: 0 | K12: 3
A13: 2013-01-14 | C13: 25075 | D13: Счёт в Сбербанке | E13: Поступления от продаж | F13: Клиент 21 | H13: факт | I13: 1 | J13: 0 | K13: 3
A14: 2013-01-14 | C14: 34693.77 | D14: Счёт в ВТБ 24 | E14: Поступления от продаж | F14: Клиент 9 | H14: факт | I14: 1 | J14: 0 | K14: 3
A15: 2013-01-15 | C15: 22113 | D15: Счёт в ВТБ 24 | E15: Поступления от продаж | F15: Клиент 8 | H15: факт | I15: 1 | J15: 0 | K15: 3
A16: 2013-01-15 | C16: 29852.55 | D16: Счёт в Альфа-Банке | E16: Поступления от продаж | F16: Клиент 8 | H16: факт | I16: 1 | J16: 0 | K16: 3
A17: 2013-01-15 | C17: 38697.75 | D17: Счёт в ВТБ 24 | E17: Поступления от продаж | F17: Клиент 8 | H17: факт | I17: 1 | J17: 0 | K17: 3
A18: 2013-01-15 | C18: 4560 | D18: Счёт в ВТБ 24 | E18: Поступления от продаж | F18: Клиент 19 | H18: факт | I18: 1 | J18: 0 | K18: 3
A19: 2013-01-15 | C19: 45135 | D19: Счёт в ВТБ 24 | E19: Поступления от продаж | F19: Клиент 3 | H19: факт | I19: 1 | J19: 0 | K19: 3
A20: 2013-01-15 | C20: 7522.5 | D20: Счёт в Альфа-Банке | E20: Поступления от продаж | F20: Клиент 15 | H20: факт | I20: 1 | J20: 0 | K20: 3
A21: 2013-01-15 | C21: 70800 | D21: Счёт в Альфа-Банке | E21: Поступления от продаж | F21: Клиент 16 | H21: факт | I21: 1 | J21: 0 | K21: 3
A22: 2013-01-15 | C22: 293112 | D22: Счёт в Сбербанке | E22: Поступления от продаж | F22: Клиент 16 | H22: факт | I22: 1 | J22: 0 | K22: 3
A23: 2013-01-16 | C23: 262845 | D23: Счёт в Сбербанке | E23: Поступления от продаж | F23: Клиент 19 | H23: факт | I23: 1 | J23: 0 | K23: 3
A24: 2013-01-18 | C24: -262845 | D24: Счёт в Сбербанке | E24: Поступления от продаж | F24: Клиент 6 | H24: факт | I24: 1 | J24: 0 | K24: 3
A25: 2013-01-17 | C25: 26974.8 | D25: Счёт в Альфа-Банке | E25: Поступления от продаж | F25: Клиент 12 | H25: факт | I25: 1 | J25: 0 | K25: 3
A26: 2013-01-17 | C26: 46587.98 | D26: Счёт в ВТБ 24 | E26: Поступления от продаж | F26: Клиент 13 | H26: факт | I26: 1 | J26: 0 | K26: 3
A27: 2013-01-17 | C27: 82227.69 | D27: Счёт в Альфа-Банке | E27: Поступления от продаж | F27: Клиент 12 | H27: факт | I27: 1 | J27: 0 | K27: 3
A28: 2013-01-17 | C28: 41104.33 | D28: Счёт в Сбербанке | E28: Поступления от продаж | F28: Клиент 11 | H28: факт | I28: 1 | J28: 0 | K28: 3
A29: 2013-01-17 | C29: 44276.3 | D29: Счёт в Альфа-Банке | E29: Поступления от продаж | F29: Клиент 3 | H29: факт | I29: 1 | J29: 0 | K29: 3
A30: 2013-01-17 | C30: 336279.16 | D30: Счёт в Альфа-Банке | E30: Поступления от продаж | F30: Клиент 8 | H30: факт | I30: 1 | J30: 0 | K30: 3
A31: 2013-01-21 | C31: 79120.94 | D31: Счёт в ВТБ 24 | E31: Поступления от продаж | F31: Клиент 6 | H31: факт | I31: 1 | J31: 0 | K31: 4
A32: 2013-01-21 | C32: 50000 | D32: Счёт в Альфа-Банке | E32: Поступления от продаж | F32: Клиент 11 | H32: факт | I32: 1 | J32: 0 | K32: 4
A33: 2013-01-21 | C33: 167265 | D33: Счёт в Альфа-Банке | E33: Поступления от продаж | F33: Клиент 15 | H33: факт | I33: 1 | J33: 0 | K33: 4
A34: 2013-01-21 | C34: 95580 | D34: Счёт в Альфа-Банке | E34: Поступления от продаж | F34: Клиент 7 | H34: факт | I34: 1 | J34: 0 | K34: 4
A35: 2013-01-22 | C35: 35400 | D35: Счёт в Сбербанке | E35: Поступления от продаж | F35: Клиент 16 | H35: факт | I35: 1 | J35: 0 | K35: 4
A36: 2013-01-22 | C36: 41283.48 | D36: Счёт в ВТБ 24 | E36: Поступления от продаж | F36: Клиент 12 | H36: факт | I36: 1 | J36: 0 | K36: 4
A37: 2013-01-23 | C37: 49701.6 | D37: Счёт в Альфа-Банке | E37: Поступления от продаж | F37: Клиент 1 | H37: факт | I37: 1 | J37: 0 | K37: 4
A38: 2013-01-23 | C38: 133812 | D38: Счёт в ВТБ 24 | E38: Поступления от продаж | F38: Клиент 3 | H38: факт | I38: 1 | J38: 0 | K38: 4
A39: 2013-01-24 | C39: 17301.75 | D39: Счёт в Сбербанке | E39: Поступления от продаж | F39: Клиент 6 | H39: факт | I39: 1 | J39: 0 | K39: 4
A40: 2013-01-24 | C40: 101107.71 | D40: Счёт в Альфа-Банке | E40: Поступления от продаж | F40: Клиент 20 | H40: факт | I40: 1 | J40: 0 | K40: 4
A41: 2013-01-24 | C41: 105000 | D41: Счёт в Сбербанке | E41: Поступления от продаж | F41: Клиент 3 | H41: факт | I41: 1 | J41: 0 | K41: 4
A42: 2013-01-24 | C42: 65711.25 | D42: Счёт в Сбербанке | E42: Поступления от продаж | F42: Клиент 19 | H42: факт | I42: 1 | J42: 0 | K42: 4
A43: 2013-01-25 | C43: 5010 | D43: Счёт в Альфа-Банке | E43: Поступления от продаж | F43: Клиент 4 | H43: факт | I43: 1 | J43: 0 | K43: 4
A44: 2013-01-25 | C44: 21240 | D44: Счёт в Сбербанке | E44: Поступления от продаж | F44: Клиент 10 | H44: факт | I44: 1 | J44: 0 | K44: 4
A45: 2013-01-25 | C45: 34512.52 | D45: Счёт в Альфа-Банке | E45: Поступления от продаж | F45: Клиент 8 | H45: факт | I45: 1 | J45: 0 | K45: 4
A46: 2013-01-25 | C46: 35193.82 | D46: Счёт в Альфа-Банке | E46: Поступления от продаж | F46: Клиент 7 | H46: факт | I46: 1 | J46: 0 | K46: 4
A47: 2013-01-25 | C47: 191178.93 | D47: Счёт в Альфа-Банке | E47: Поступления от продаж | F47: Клиент 11 | H47: факт | I47: 1 | J47: 0 | K47: 4
A48: 2013-01-25 | C48: 193703.14 | D48: Счёт в ВТБ 24 | E48: Поступления от продаж | F48: Клиент 5 | H48: факт | I48: 1 | J48: 0 | K48: 4
A49: 2013-01-28 | C49: 23516.22 | D49: Счёт в ВТБ 24 | E49: Поступления от продаж | F49: Клиент 17 | H49: факт | I49: 1 | J49: 0 | K49: 5
A50: 2013-01-28 | C50: 346664 | D50: Счёт в Сбербанке | E50: Поступления от продаж | F50: Клиент 4 | H50: факт | I50: 1 | J50: 0 | K50: 5
A51: 2013-01-28 | C51: 226039 | D51: Счёт в Альфа-Банке | E51: Поступления от продаж | F51: Клиент 11 | H51: факт | I51: 1 | J51: 0 | K51: 5
A52: 2013-01-28 | C52: 126174 | D52: Счёт в Сбербанке | E52: Поступления от продаж | F52: Клиент 16 | H52: факт | I52: 1 | J52: 0 | K52: 5
A53: 2013-01-28 | C53: 6195 | D53: Счёт в Альфа-Банке | E53: Поступления от продаж | F53: Клиент 2 | H53: факт | I53: 1 | J53: 0 | K53: 5
A54: 2013-01-28 | C54: 11800 | D54: Счёт в ВТБ 24 | E54: Поступления от продаж | F54: Клиент 5 | H54: факт | I54: 1 | J54: 0 | K54: 5
A55: 2013-01-28 | C55: 29913 | D55: Счёт в Альфа-Банке | E55: Поступления от продаж | F55: Клиент 15 | H55: факт | I55: 1 | J55: 0 | K55: 5
A56: 2013-01-28 | C56: 50976 | D56: Счёт в Альфа-Банке | E56: Поступления от продаж | F56: Клиент 16 | H56: факт | I56: 1 | J56: 0 | K56: 5
A57: 2013-01-28 | C57: 65844 | D57: Счёт в ВТБ 24 | E57: Поступления от продаж | F57: Клиент 2 | H57: факт | I57: 1 | J57: 0 | K57: 5
A58: 2013-01-28 | C58: 67850 | D58: Счёт в Альфа-Банке | E58: Поступления от продаж | F58: Клиент 5 | H58: факт | I58: 1 | J58: 0 | K58: 5
A59: 2013-01-28 | C59: 75225 | D59: Счёт в Альфа-Банке | E59: Поступления от продаж | F59: Клиент 6 | H59: факт | I59: 1 | J59: 0 | K59: 5
A60: 2013-01-28 | C60: 570825 | D60: Счёт в Сбербанке | E60: Поступления от продаж | F60: Клиент 19 | H60: факт | I60: 1 | J60: 0 | K60: 5
A61: 2013-01-28 | C61: 45206.98 | D61: Счёт в Альфа-Банке | E61: Поступления от продаж | F61: Клиент 19 | H61: факт | I61: 1 | J61: 0 | K61: 5
A62: 2013-01-29 | C62: 570058.71 | D62: Счёт в ВТБ 24 | E62: Поступления от продаж | F62: Клиент 5 | H62: факт | I62: 1 | J62: 0 | K62: 5
A63: 2013-01-29 | C63: 65711.25 | D63: Счёт в Альфа-Банке | E63: Поступления от продаж | F63: Клиент 10 | H63: факт | I63: 1 | J63: 0 | K63: 5
A64: 2013-01-29 | C64: 81774 | D64: Счёт в Альфа-Банке | E64: Поступления от продаж | F64: Клиент 14 | H64: факт | I64: 1 | J64: 0 | K64: 5
A65: 2013-01-29 | C65: 14514 | D65: Счёт в ВТБ 24 | E65: Поступления от продаж | F65: Клиент 11 | H65: факт | I65: 1 | J65: 0 | K65: 5
A66: 2013-01-29 | C66: 20673.6 | D66: Счёт в Сбербанке | E66: Поступления от продаж | F66: Клиент 10 | H66: факт | I66: 1 | J66: 0 | K66: 5
A67: 2013-01-29 | C67: 8396.88 | D67: Счёт в ВТБ 24 | E67: Поступления от продаж | F67: Клиент 1 | H67: факт | I67: 1 | J67: 0 | K67: 5
A68: 2013-01-29 | C68: 61065 | D68: Счёт в Альфа-Банке | E68: Поступления от продаж | F68: Клиент 15 | H68: факт | I68: =IF(ISBLANK(A68),0,MONTH(A68)) -> 1 | J68: =IF(ISBLANK(B68),0,MONTH(B68)) -> 0 | K68: =WEEKNUM(A68) -> 5
A69: 2013-01-29 | C69: 421850 | D69: Счёт в Альфа-Банке | E69: Поступления от продаж | F69: Клиент 10 | H69: факт | I69: 1 | J69: 0 | K69: 5
A70: 2013-01-29 | C70: -30090 | D70: Счёт в Альфа-Банке | E70: Поступления от продаж | F70: Клиент 3 | G70: возврат от клиента | H70: факт | I70: 1 | J70: 0 | K70: 5
A71: 2013-01-30 | C71: 7979.05 | D71: Счёт в Альфа-Банке | E71: Поступления от продаж | F71: Клиент 6 | H71: факт | I71: 1 | J71: 0 | K71: 5
A72: 2013-01-30 | C72: 198859.5 | D72: Счёт в ВТБ 24 | E72: Поступления от продаж | F72: Клиент 4 | H72: факт | I72: 1 | J72: 0 | K72: 5
A73: 2013-01-31 | C73: 85491 | D73: Счёт в Сбербанке | E73: Поступления от продаж | F73: Клиент 2 | H73: факт | I73: 1 | J73: 0 | K73: 5
A74: 2013-02-01 | C74: 18408 | D74: Счёт в ВТБ 24 | E74: Поступления от продаж | F74: Клиент 9 | H74: факт | I74: 2 | J74: 0 | K74: 5
A75: 2013-02-01 | C75: 99403.2 | D75: Счёт в Сбербанке | E75: Поступления от продаж | F75: Клиент 13 | H75: факт | I75: 2 | J75: 0 | K75: 5
A76: 2013-02-01 | C76: 2389.5 | D76: Счёт в Сбербанке | E76: Поступления от продаж | F76: Клиент 2 | H76: факт | I76: 2 | J76: 0 | K76: 5
A77: 2013-02-01 | C77: 4141.8 | D77: Счёт в Сбербанке | E77: Поступления от продаж | F77: Клиент 8 | H77: факт | I77: 2 | J77: 0 | K77: 5
A78: 2013-02-01 | C78: 5925.96 | D78: Счёт в ВТБ 24 | E78: Поступления от продаж | F78: Клиент 4 | H78: факт | I78: 2 | J78: 0 | K78: 5
A79: 2013-02-01 | C79: 5925.96 | D79: Счёт в Альфа-Банке | E79: Поступления от продаж | F79: Клиент 3 | H79: факт | I79: 2 | J79: 0 | K79: 5
A80: 2013-02-01 | C80: 7088.85 | D80: Счёт в ВТБ 24 | E80: Поступления от продаж | F80: Клиент 2 | H80: факт | I80: 2 | J80: 0 | K80: 5
A81: 2013-02-01 | C81: 7678.26 | D81: Счёт в Сбербанке | E81: Поступления от продаж | F81: Клиент 14 | H81: факт | I81: 2 | J81: 0 | K81: 5
A82: 2013-02-01 | C82: 8267.67 | D82: Счёт в Сбербанке | E82: Поступления от продаж | F82: Клиент 20 | H82: факт | I82: 2 | J82: 0 | K82: 5
A83: 2013-02-01 | C83: 8267.67 | D83: Счёт в Альфа-Банке | E83: Поступления от продаж | F83: Клиент 2 | H83: факт | I83: 2 | J83: 0 | K83: 5
A84: 2013-02-01 | C84: 185850 | D84: Счёт в Альфа-Банке | E84: Поступления от продаж | F84: Клиент 11 | H84: факт | I84: 2 | J84: 0 | K84: 5
A85: 2013-02-01 | C85: 39555.08 | D85: Счёт в Сбербанке | E85: Поступления от продаж | F85: Клиент 7 | H85: факт | I85: 2 | J85: 0 | K85: 5
A86: 2013-02-01 | C86: 39555.08 | D86: Счёт в Сбербанке | E86: Поступления от продаж | F86: Клиент 13 | H86: факт | I86: 2 | J86: 0 | K86: 5
A87: 2013-02-04 | C87: -6195 | D87: Счёт в ВТБ 24 | E87: Поступления от продаж | F87: Клиент 17 | H87: факт | I87: 2 | J87: 0 | K87: 6
A88: 2013-02-04 | C88: 9300 | D88: Счёт в Сбербанке | E88: Поступления от продаж | F88: Клиент 21 | H88: факт | I88: 2 | J88: 0 | K88: 6
A89: 2013-02-04 | C89: 479012.93 | D89: Счёт в Альфа-Банке | E89: Поступления от продаж | F89: Клиент 2 | H89: факт | I89: 2 | J89: 0 | K89: 6
A90: 2013-02-05 | C90: 35400 | D90: Счёт в Сбербанке | E90: Поступления от продаж | F90: Клиент 13 | H90: факт | I90: 2 | J90: 0 | K90: 6
A91: 2013-02-05 | C91: 264969 | D91: Счёт в Альфа-Банке | E91: Поступления от продаж | F91: Клиент 5 | H91: факт | I91: 2 | J91: 0 | K91: 6
A92: 2013-02-06 | C92: 49714.88 | D92: Счёт в ВТБ 24 | E92: Поступления от продаж | F92: Клиент 13 | H92: факт | I92: 2 | J92: 0 | K92: 6
A93: 2013-02-06 | C93: 77313.6 | D93: Счёт в Сбербанке | E93: Поступления от продаж | F93: Клиент 13 | H93: факт | I93: 2 | J93: 0 | K93: 6
A94: 2013-02-06 | C94: 149144.63 | D94: Счёт в Альфа-Банке | E94: Поступления от продаж | F94: Клиент 2 | H94: факт | I94: 2 | J94: 0 | K94: 6
A95: 2013-02-06 | C95: 13027.2 | D95: Счёт в Сбербанке | E95: Поступления от продаж | F95: Клиент 13 | H95: факт | I95: 2 | J95: 0 | K95: 6
A96: 2013-02-06 | C96: 59925.12 | D96: Счёт в ВТБ 24 | E96: Поступления от продаж | F96: Клиент 5 | H96: факт | I96: 2 | J96: 0 | K96: 6
A97: 2013-02-06 | C97: 56994.71 | D97: Счёт в ВТБ 24 | E97: Поступления от продаж | F97: Клиент 7 | H97: факт | I97: 2 | J97: 0 | K97: 6
A98: 2013-02-06 | C98: 20673.6 | D98: Счёт в Сбербанке | E98: Поступления от продаж | F98: Клиент 4 | H98: факт | I98: 2 | J98: 0 | K98: 6
A99: 2013-02-07 | C99: 30001.5 | D99: Счёт в ВТБ 24 | E99: Поступления от продаж | F99: Клиент 4 | H99: факт | I99: 2 | J99: 0 | K99: 6
A100: 2013-02-08 | C100: 79120.94 | D100: Счёт в Альфа-Банке | E100: Поступления от продаж | F100: Клиент 12 | H100: факт | I100: 2 | J100: 0 | K100: 6
A101: 2013-02-08 | C101: 231280 | D101: Счёт в Альфа-Банке | E101: Поступления от продаж | F101: Клиент 13 | H101: факт | I101: 2 | J101: 0 | K101: 6
A102: 2013-02-08 | C102: 500000 | D102: Счёт в ВТБ 24 | E102: Поступления от продаж | F102: Клиент 4 | H102: факт | I102: 2 | J102: 0 | K102: 6
A103: 2013-02-08 | C103: 3221.4 | D103: Счёт в Сбербанке | E103: Поступления от продаж | F103: Клиент 15 | H103: факт | I103: 2 | J103: 0 | K103: 6
A104: 2013-02-11 | C104: 14160 | D104: Счёт в Сбербанке | E104: Поступления от продаж | F104: Клиент 3 | H104: факт | I104: 2 | J104: 0 | K104: 7
A105: 2013-02-11 | C105: 86376 | D105: Счёт в ВТБ 24 | E105: Поступления от продаж | F105: Клиент 6 | H105: факт | I105: 2 | J105: 0 | K105: 7
A106: 2013-02-11 | C106: 28497 | D106: Счёт в Альфа-Банке | E106: Поступления от продаж | F106: Клиент 10 | H106: факт | I106: 2 | J106: 0 | K106: 7
A107: 2013-02-11 | C107: 79956.8 | D107: Счёт в Сбербанке | E107: Поступления от продаж | F107: Клиент 11 | H107: факт | I107: 2 | J107: 0 | K107: 7
A108: 2013-02-11 | C108: 93092.56 | D108: Счёт в Альфа-Банке | E108: Поступления от продаж | F108: Клиент 6 | H108: факт | I108: 2 | J108: 0 | K108: 7
A109: 2013-02-11 | C109: 93456 | D109: Счёт в Альфа-Банке | E109: Поступления от продаж | F109: Клиент 18 | H109: факт | I109: 2 | J109: 0 | K109: 7
A110: 2013-02-11 | C110: 93456 | D110: Счёт в Альфа-Банке | E110: Поступления от продаж | F110: Клиент 18 | H110: факт | I110: 2 | J110: 0 | K110: 7
A111: 2013-02-11 | C111: 421198.05 | D111: Счёт в Альфа-Банке | E111: Поступления от продаж | F111: Клиент 10 | H111: факт | I111: 2 | J111: 0 | K111: 7
A112: 2013-02-12 | C112: 111510 | D112: Счёт в ВТБ 24 | E112: Поступления от продаж | F112: Клиент 10 | H112: факт | I112: 2 | J112: 0 | K112: 7
A113: 2013-02-12 | C113: 41418 | D113: Счёт в ВТБ 24 | E113: Поступления от продаж | F113: Клиент 5 | H113: факт | I113: 2 | J113: 0 | K113: 7
A114: 2013-02-12 | C114: 248508 | D114: Счёт в Сбербанке | E114: Поступления от продаж | F114: Клиент 13 | H114: факт | I114: 2 | J114: 0 | K114: 7
A115: 2013-02-12 | C115: 400000 | D115: Счёт в Альфа-Банке | E115: Поступления от продаж | F115: Клиент 1 | H115: факт | I115: 2 | J115: 0 | K115: 7
A116: 2013-02-12 | C116: 669159.57 | D116: Счёт в Альфа-Банке | E116: Поступления от продаж | F116: Клиент 7 | H116: факт | I116: 2 | J116: 0 | K116: 7
A117: 2013-02-12 | C117: 1000000 | D117: Счёт в Альфа-Банке | E117: Поступления от продаж | F117: Клиент 19 | H117: факт | I117: 2 | J117: 0 | K117: 7
A118: 2013-02-13 | C118: 27704.04 | D118: Счёт в Сбербанке | E118: Поступления от продаж | F118: Клиент 10 | H118: факт | I118: 2 | J118: 0 | K118: 7
A119: 2013-02-13 | C119: 5531.25 | D119: Счёт в ВТБ 24 | E119: Поступления от продаж | F119: Клиент 10 | H119: факт | I119: 2 | J119: 0 | K119: 7
A120: 2013-02-13 | C120: 6195 | D120: Счёт в ВТБ 24 | E120: Поступления от продаж | F120: Клиент 16 | H120: факт | I120: 2 | J120: 0 | K120: 7
A121: 2013-02-13 | C121: 25960 | D121: Счёт в Сбербанке | E121: Поступления от продаж | F121: Клиент 13 | H121: факт | I121: 2 | J121: 0 | K121: 7
A122: 2013-02-13 | C122: 31860 | D122: Счёт в Сбербанке | E122: Поступления от продаж | F122: Клиент 9 | H122: факт | I122: 2 | J122: 0 | K122: 7
A123: 2013-02-14 | C123: 106200 | D123: Счёт в ВТБ 24 | E123: Поступления от продаж | F123: Клиент 5 | H123: факт | I123: 2 | J123: 0 | K123: 7
A124: 2013-02-14 | C124: 22139.57 | D124: Счёт в Сбербанке | E124: Поступления от продаж | F124: Клиент 18 | H124: факт | I124: 2 | J124: 0 | K124: 7
A125: 2013-02-14 | C125: 1000000 | D125: Счёт в Альфа-Банке | E125: Поступления от продаж | F125: Клиент 19 | H125: факт | I125: 2 | J125: 0 | K125: 7
A126: 2013-02-15 | C126: 93000 | D126: Счёт в ВТБ 24 | E126: Поступления от продаж | F126: Клиент 7 | H126: факт | I126: 2 | J126: 0 | K126: 7
A127: 2013-02-15 | C127: 155000 | D127: Счёт в Сбербанке | E127: Поступления от продаж | F127: Клиент 11 | H127: факт | I127: 2 | J127: 0 | K127: 7
A128: 2013-02-15 | C128: 1000 | D128: Счёт в Сбербанке | E128: Поступления от продаж | F128: Клиент 4 | H128: факт | I128: 2 | J128: 0 | K128: 7
A129: 2013-02-15 | C129: 47200 | D129: Счёт в Сбербанке | E129: Поступления от продаж | F129: Клиент 18 | H129: факт | I129: 2 | J129: 0 | K129: 7
A130: 2013-02-18 | C130: 14201.89 | D130: Счёт в Альфа-Банке | E130: Поступления от продаж | F130: Клиент 3 | H130: факт | I130: 2 | J130: 0 | K130: 8
A131: 2013-02-18 | C131: 64502.34 | D131: Счёт в ВТБ 24 | E131: Поступления от продаж | F131: Клиент 12 | H131: факт | I131: 2 | J131: 0 | K131: 8
A132: 2013-02-18 | C132: 70773.45 | D132: Счёт в Сбербанке | E132: Поступления от продаж | F132: Клиент 20 | H132: факт | I132: =IF(ISBLANK(A132),0,MONTH(A132)) -> 2 | J132: =IF(ISBLANK(B132),0,MONTH(B132)) -> 0 | K132: =WEEKNUM(A132) -> 8
A133: 2013-02-18 | C133: 22656 | D133: Счёт в Сбербанке | E133: Поступления от продаж | F133: Клиент 14 | H133: факт | I133: 2 | J133: 0 | K133: 8
A134: 2013-02-18 | C134: 43365 | D134: Счёт в Альфа-Банке | E134: Поступления от продаж | F134: Клиент 8 | H134: факт | I134: 2 | J134: 0 | K134: 8
A135: 2013-02-18 | C135: 350185.71 | D135: Счёт в Альфа-Банке | E135: Поступления от продаж | F135: Клиент 11 | H135: факт | I135: 2 | J135: 0 | K135: 8
A136: 2013-02-19 | C136: 184965 | D136: Счёт в ВТБ 24 | E136: Поступления от продаж | F136: Клиент 6 | H136: факт | I136: 2 | J136: 0 | K136: 8
A137: 2013-02-19 | C137: 400000 | D137: Счёт в Альфа-Банке | E137: Поступления от продаж | F137: Клиент 7 | H137: факт | I137: 2 | J137: 0 | K137: 8
A138: 2013-02-20 | C138: 59177 | D138: Счёт в Альфа-Банке | E138: Поступления от продаж | F138: Клиент 4 | H138: факт | I138: 2 | J138: 0 | K138: 8
A139: 2013-02-20 | C139: 36627.2 | D139: Счёт в Сбербанке | E139: Поступления от продаж | F139: Клиент 12 | H139: факт | I139: 2 | J139: 0 | K139: 8
A140: 2013-02-20 | C140: 65844 | D140: Счёт в ВТБ 24 | E140: Поступления от продаж | F140: Клиент 11 | H140: факт | I140: 2 | J140: 0 | K140: 8
A141: 2013-02-20 | C141: 36816 | D141: Счёт в ВТБ 24 | E141: Поступления от продаж | F141: Клиент 10 | H141: факт | I141: 2 | J141: 0 | K141: 8
A142: 2013-02-20 | C142: 151002.24 | D142: Счёт в ВТБ 24 | E142: Поступления от продаж | F142: Клиент 13 | H142: факт | I142: 2 | J142: 0 | K142: 8
A143: 2013-02-20 | C143: 356832 | D143: Счёт в Альфа-Банке | E143: Поступления от продаж | F143: Клиент 3 | H143: факт | I143: 2 | J143: 0 | K143: 8
A144: 2013-02-20 | C144: 28221.66 | D144: Счёт в ВТБ 24 | E144: Поступления от продаж | F144: Клиент 11 | H144: факт | I144: 2 | J144: 0 | K144: 8
A145: 2013-02-20 | C145: 39718.8 | D145: Счёт в Альфа-Банке | E145: Поступления от продаж | F145: Клиент 16 | H145: факт | I145: 2 | J145: 0 | K145: 8
A146: 2013-02-21 | C146: 238497.21 | D146: Счёт в Сбербанке | E146: Поступления от продаж | F146: Клиент 18 | H146: факт | I146: 2 | J146: 0 | K146: 8
A147: 2013-02-21 | C147: 13221.9 | D147: Счёт в Альфа-Банке | E147: Поступления от продаж | F147: Клиент 15 | H147: факт | I147: 2 | J147: 0 | K147: 8
A148: 2013-02-21 | C148: 36084.4 | D148: Счёт в ВТБ 24 | E148: Поступления от продаж | F148: Клиент 3 | H148: факт | I148: 2 | J148: 0 | K148: 8
A149: 2013-02-21 | C149: 404976 | D149: Счёт в Сбербанке | E149: Поступления от продаж | F149: Клиент 5 | H149: факт | I149: 2 | J149: 0 | K149: 8
A150: 2013-02-22 | C150: 122055.66 | D150: Счёт в Сбербанке | E150: Поступления от продаж | F150: Клиент 7 | H150: факт | I150: 2 | J150: 0 | K150: 8
A151: 2013-02-22 | C151: 143370 | D151: Счёт в ВТБ 24 | E151: Поступления от продаж | F151: Клиент 13 | H151: факт | I151: 2 | J151: 0 | K151: 8
A152: 2013-02-22 | C152: 94433.04 | D152: Счёт в ВТБ 24 | E152: Поступления от продаж | F152: Клиент 8 | H152: факт | I152: 2 | J152: 0 | K152: 8
A153: 2013-02-22 | C153: 164610 | D153: Счёт в Сбербанке | E153: Поступления от продаж | F153: Клиент 2 | H153: факт | I153: 2 | J153: 0 | K153: 8
A154: 2013-02-22 | C154: 312847.5 | D154: Счёт в Альфа-Банке | E154: Поступления от продаж | F154: Клиент 12 | H154: факт | I154: 2 | J154: 0 | K154: 8
A155: 2013-02-22 | C155: 287539.63 | D155: Счёт в Сбербанке | E155: Поступления от продаж | F155: Клиент 8 | H155: факт | I155: 2 | J155: 0 | K155: 8
A156: 2013-02-22 | C156: 6938.4 | D156: Счёт в Альфа-Банке | E156: Поступления от продаж | F156: Клиент 11 | H156: факт | I156: 2 | J156: 0 | K156: 8
A157: 2013-02-22 | C157: 5575.5 | D157: Счёт в Сбербанке | E157: Поступления от продаж | F157: Клиент 6 | H157: факт | I157: 2 | J157: 0 | K157: 8
A158: 2013-02-25 | C158: 6372 | D158: Счёт в ВТБ 24 | E158: Поступления от продаж | F158: Клиент 4 | H158: факт | I158: 2 | J158: 0 | K158: 9
A159: 2013-02-25 | C159: 130000 | D159: Счёт в Альфа-Банке | E159: Поступления от продаж | F159: Клиент 9 | H159: факт | I159: 2 | J159: 0 | K159: 9
A160: 2013-02-25 | C160: 21240 | D160: Счёт в ВТБ 24 | E160: Поступления от продаж | F160: Клиент 1 | H160: факт | I160: 2 | J160: 0 | K160: 9
A161: 2013-02-25 | C161: 39825 | D161: Счёт в Сбербанке | E161: Поступления от продаж | F161: Клиент 11 | H161: факт | I161: 2 | J161: 0 | K161: 9
A162: 2013-02-25 | C162: 223020 | D162: Счёт в Альфа-Банке | E162: Поступления от продаж | F162: Клиент 4 | H162: факт | I162: 2 | J162: 0 | K162: 9
A163: 2013-02-25 | C163: 75225 | D163: Счёт в ВТБ 24 | E163: Поступления от продаж | F163: Клиент 9 | H163: факт | I163: 2 | J163: 0 | K163: 9
A164: 2013-02-25 | C164: 233999.9 | D164: Счёт в ВТБ 24 | E164: Поступления от продаж | F164: Клиент 21 | H164: факт | I164: 2 | J164: 0 | K164: 9
A165: 2013-02-25 | C165: 17301.75 | D165: Счёт в Альфа-Банке | E165: Поступления от продаж | F165: Клиент 12 | H165: факт | I165: 2 | J165: 0 | K165: 9
A166: 2013-02-26 | C166: 10991.7 | D166: Счёт в ВТБ 24 | E166: Поступления от продаж | F166: Клиент 8 | H166: факт | I166: 2 | J166: 0 | K166: 9
A167: 2013-02-26 | C167: 8400 | D167: Счёт в Альфа-Банке | E167: Поступления от продаж | F167: Клиент 9 | H167: факт | I167: 2 | J167: 0 | K167: 9
A168: 2013-02-27 | C168: 119510 | D168: Счёт в Сбербанке | E168: Поступления от продаж | F168: Клиент 16 | H168: факт | I168: 2 | J168: 0 | K168: 9
A169: 2013-02-28 | C169: 21830 | D169: Счёт в Альфа-Банке | E169: Поступления от продаж | F169: Клиент 4 | H169: факт | I169: 2 | J169: 0 | K169: 9
A170: 2013-02-28 | C170: 95580 | D170: Счёт в ВТБ 24 | E170: Поступления от продаж | F170: Клиент 2 | H170: факт | I170: 2 | J170: 0 | K170: 9
A171: 2013-02-28 | C171: 242844 | D171: Счёт в Сбербанке | E171: Поступления от продаж | F171: Клиент 12 | H171: факт | I171: 2 | J171: 0 | K171: 9
A172: 2013-02-28 | C172: 331344 | D172: Счёт в Альфа-Банке | E172: Поступления от продаж | F172: Клиент 13 | H172: факт | I172: 2 | J172: 0 | K172: 9
A173: 2013-03-01 | C173: 8893.4 | D173: Счёт в Сбербанке | E173: Поступления от продаж | F173: Клиент 3 | H173: факт | I173: 3 | J173: 0 | K173: 9
A174: 2013-03-01 | C174: 329951.6 | D174: Счёт в Альфа-Банке | E174: Поступления от продаж | F174: Клиент 14 | H174: факт | I174: 3 | J174: 0 | K174: 9
A175: 2013-03-01 | C175: 12078 | D175: Счёт в Альфа-Банке | E175: Поступления от продаж | F175: Клиент 16 | H175: факт | I175: 3 | J175: 0 | K175: 9
A176: 2013-03-04 | C176: 33789.3 | D176: Счёт в Альфа-Банке | E176: Поступления от продаж | F176: Клиент 3 | H176: факт | I176: 3 | J176: 0 | K176: 10
A177: 2013-03-04 | C177: 76180.8 | D177: Счёт в Сбербанке | E177: Поступления от продаж | F177: Клиент 6 | H177: факт | I177: 3 | J177: 0 | K177: 10
A178: 2013-03-04 | C178: 88500 | D178: Счёт в Альфа-Банке | E178: Поступления от продаж | F178: Клиент 6 | H178: факт | I178: 3 | J178: 0 | K178: 10
A179: 2013-03-04 | C179: 5010 | D179: Счёт в ВТБ 24 | E179: Поступления от продаж | F179: Клиент 21 | H179: факт | I179: 3 | J179: 0 | K179: 10
A180: 2013-03-04 | C180: 65964.36 | D180: Счёт в Сбербанке | E180: Поступления от продаж | F180: Клиент 19 | H180: факт | I180: 3 | J180: 0 | K180: 10
A181: 2013-02-28 | C181: 270250 | D181: Счёт в ВТБ 24 | E181: Поступления от продаж | F181: Клиент 5 | H181: факт | I181: 2 | J181: 0 | K181: 9
A182: 2013-02-28 | C182: 8000 | D182: Счёт в Сбербанке | E182: Поступления от продаж | F182: Клиент 2 | H182: факт | I182: 2 | J182: 0 | K182: 9
A183: 2013-03-05 | C183: 400000 | D183: Счёт в Сбербанке | E183: Поступления от продаж | F183: Клиент 11 | H183: факт | I183: 3 | J183: 0 | K183: 10
A184: 2013-03-06 | C184: 10667.79 | D184: Счёт в Альфа-Банке | E184: Поступления от продаж | F184: Клиент 16 | H184: факт | I184: 3 | J184: 0 | K184: 10
A185: 2013-03-06 | C185: 60549.93 | D185: Счёт в Альфа-Банке | E185: Поступления от продаж | F185: Клиент 10 | H185: факт | I185: 3 | J185: 0 | K185: 10
A186: 2013-03-06 | C186: 65022.72 | D186: Счёт в ВТБ 24 | E186: Поступления от продаж | F186: Клиент 2 | H186: факт | I186: 3 | J186: 0 | K186: 10
A187: 2013-03-06 | C187: 138450 | D187: Счёт в Альфа-Банке | E187: Поступления от продаж | F187: Клиент 16 | H187: факт | I187: 3 | J187: 0 | K187: 10
A188: 2013-03-06 | C188: 194440.4 | D188: Счёт в Альфа-Банке | E188: Поступления от продаж | F188: Клиент 12 | H188: факт | I188: 3 | J188: 0 | K188: 10
A189: 2013-03-06 | C189: 28417.15 | D189: Счёт в Сбербанке | E189: Поступления от продаж | F189: Клиент 9 | H189: факт | I189: 3 | J189: 0 | K189: 10
A190: 2013-03-06 | C190: 51178.96 | D190: Счёт в ВТБ 24 | E190: Поступления от продаж | F190: Клиент 13 | H190: факт | I190: 3 | J190: 0 | K190: 10
A191: 2013-03-06 | C191: 60417.18 | D191: Счёт в ВТБ 24 | E191: Поступления от продаж | F191: Клиент 19 | H191: факт | I191: 3 | J191: 0 | K191: 10
A192: 2013-03-06 | C192: 76894.7 | D192: Счёт в Сбербанке | E192: Поступления от продаж | F192: Клиент 8 | H192: факт | I192: 3 | J192: 0 | K192: 10
A193: 2013-03-06 | C193: 123900 | D193: Счёт в ВТБ 24 | E193: Поступления от продаж | F193: Клиент 13 | H193: факт | I193: 3 | J193: 0 | K193: 10
A194: 2013-03-06 | C194: 134260.4 | D194: Счёт в Сбербанке | E194: Поступления от продаж | F194: Клиент 4 | H194: факт | I194: 3 | J194: 0 | K194: 10
A195: 2013-03-06 | C195: 162864.91 | D195: Счёт в Сбербанке | E195: Поступления от продаж | F195: Клиент 3 | H195: факт | I195: 3 | J195: 0 | K195: 10
A196: 2013-03-06 | C196: 193195.5 | D196: Счёт в ВТБ 24 | E196: Поступления от продаж | F196: Клиент 1 | H196: факт | I196: =IF(ISBLANK(A196),0,MONTH(A196)) -> 3 | J196: =IF(ISBLANK(B196),0,MONTH(B196)) -> 0 | K196: =WEEKNUM(A196) -> 10
A197: 2013-03-06 | C197: 260190 | D197: Счёт в ВТБ 24 | E197: Поступления от продаж | F197: Клиент 10 | H197: факт | I197: 3 | J197: 0 | K197: 10
A198: 2013-02-15 | C198: -2160000 | D198: Счёт в Альфа-Банке | E198: Поступления от продаж | F198: Клиент 2 | H198: факт | I198: 2 | J198: 0 | K198: 7
A199: 2013-03-07 | C199: 16284 | D199: Счёт в Сбербанке | E199: Поступления от продаж | F199: Клиент 10 | H199: факт | I199: 3 | J199: 0 | K199: 10
A200: 2013-03-07 | C200: 3115.2 | D200: Счёт в Альфа-Банке | E200: Поступления от продаж | F200: Клиент 10 | H200: факт | I200: 3 | J200: 0 | K200: 10
... 2616 more rows

Sheet ОДДС
A1: Отчёт о движении денежных средств ООО "Ромашка"
B3: операционная деятельность | D3: 1 | E3: 2 | F3: 3 | G3: 4 | H3: 5 | I3: 6 | J3: 7 | K3: 8 | L3: 9 | M3: 10 | N3: 11 | O3: 12
A4: +/- | B4: Код | C4: Наименование статей | D4: 2014-01-01 | E4: 2014-02-01 | F4: 2014-03-01 | G4: 2014-04-01 | H4: 2014-05-01 | I4: 2014-06-01 | J4: 2014-07-01 | K4: 2014-08-01 | L4: 2014-09-01 | M4: 2014-10-01 | N4: 2014-11-01 | O4: 2014-12-01 | P4: итого
B5: 11000 | C5: Поступления от операционной деятельности | D5: =SUM(D6:D7) -> 7608718.78 | E5: =SUM(E6:E7) -> 10842310.26 | F5: 8513331.29 | G5: 10299200.16 | H5: 14175272.35 | I5: 12929554.88 | J5: 0 | K5: 0 | L5: 0 | M5: 0 | N5: 0 | O5: 0 | P5: 64368387.72
A6: + | B6: 11001 | C6: Поступления от продаж | D6: =SUMIFS(Реестр!$C:$C,Реестр!$I:$I,D$3,Реестр!$E:$E,$C6,Реестр!$H:$H,"факт")*IF($A6="-",-1,1) -> 7603518.78 | E6: =SUMIFS(Реестр!$C:$C,Реестр!$I:$I,E$3,Реестр!$E:$E,$C6,Реестр!$H:$H,"факт")*IF($A6="-",-1,1) -> 10838710.26 | F6: =SUMIFS(Реестр!$C:$C,Реестр!$I:$I,F$3,Реестр!$E:$E,$C6,Реестр!$H:$H,"факт")*IF($A6="-",-1,1) -> 8509131.29 | G6: =SUMIFS(Реестр!$C:$C,Реестр!$I:$I,G$3,Реестр!$E:$E,$C6,Реестр!$H:$H,"факт")*IF($A6="-",-1,1) -> 10290400.16 | H6: =SUMIFS(Реестр!$C:$C,Реестр!$I:$I,H$3,Реестр!$E:$E,$C6,Реестр!$H:$H,"факт")*IF($A6="-",-1,1) -> 14168872.35 | I6: =SUMIFS(Реестр!$C:$C,Реестр!$I:$I,I$3,Реестр!$E:$E,$C6,Реестр!$H:$H,"факт")*IF($A6="-",-1,1) -> 12927454.88 | J6: =SUMIFS(Реестр!$C:$C,Реестр!$I:$I,J$3,Реестр!$E:$E,$C6,Реестр!$H:$H,"факт")*IF($A6="-",-1,1) -> 0 | K6: =SUMIFS(Реестр!$C:$C,Реестр!$I:$I,K$3,Реестр!$E:$E,$C6,Реестр!$H:$H,"факт")*IF($A6="-",-1,1) -> 0 | L6: =SUMIFS(Реестр!$C:$C,Реестр!$I:$I,L$3,Реестр!$E:$E,$C6,Реестр!$H:$H,"факт")*IF($A6="-",-1,1) -> 0 | M6: =SUMIFS(Реестр!$C:$C,Реестр!$I:$I,M$3,Реестр!$E:$E,$C6,Реестр!$H:$H,"факт")*IF($A6="-",-1,1) -> 0 | N6: =SUMIFS(Реестр!$C:$C,Реестр!$I:$I,N$3,Реестр!$E:$E,$C6,Реестр!$H:$H,"факт")*IF($A6="-",-1,1) -> 0 | O6: =SUMIFS(Реестр!$C:$C,Реестр!$I:$I,O$3,Реестр!$E:$E,$C6,Реестр!$H:$H,"факт")*IF($A6="-",-1,1) -> 0 | P6: =SUM(D6:O6) -> 64338087.72
A7: + | B7: 11002 | C7: Прочие поступления | D7: =SUMIFS(Реестр!$C:$C,Реестр!$I:$I,D$3,Реестр!$E:$E,$C7,Реестр!$H:$H,"факт")*IF($A7="-",-1,1) -> 5200 | E7: =SUMIFS(Реестр!$C:$C,Реестр!$I:$I,E$3,Реестр!$E:$E,$C7,Реестр!$H:$H,"факт")*IF($A7="-",-1,1) -> 3600 | F7: =SUMIFS(Реестр!$C:$C,Реестр!$I:$I,F$3,Реестр!$E:$E,$C7,Реестр!$H:$H,"факт")*IF($A7="-",-1,1) -> 4200 | G7: =SUMIFS(Реестр!$C:$C,Реестр!$I:$I,G$3,Реестр!$E:$E,$C7,Реестр!$H:$H,"факт")*IF($A7="-",-1,1) -> 8800 | H7: =SUMIFS(Реестр!$C:$C,Реестр!$I:$I,H$3,Реестр!$E:$E,$C7,Реестр!$H:$H,"факт")*IF($A7="-",-1,1) -> 6400 | I7: =SUMIFS(Реестр!$C:$C,Реестр!$I:$I,I$3,Реестр!$E:$E,$C7,Реестр!$H:$H,"факт")*IF($A7="-",-1,1) -> 2100 | J7: =SUMIFS(Реестр!$C:$C,Реестр!$I:$I,J$3,Реестр!$E:$E,$C7,Реестр!$H:$H,"факт")*IF($A7="-",-1,1) -> 0 | K7: =SUMIFS(Реестр!$C:$C,Реестр!$I:$I,K$3,Реестр!$E:$E,$C7,Реестр!$H:$H,"факт")*IF($A7="-",-1,1) -> 0 | L7: =SUMIFS(Реестр!$C:$C,Реестр!$I:$I,L$3,Реестр!$E:$E,$C7,Реестр!$H:$H,"факт")*IF($A7="-",-1,1) -> 0 | M7: =SUMIFS(Реестр!$C:$C,Реестр!$I:$I,M$3,Реестр!$E:$E,$C7,Реестр!$H:$H,"факт")*IF($A7="-",-1,1) -> 0 | N7: =SUMIFS(Реестр!$C:$C,Реестр!$I:$I,N$3,Реестр!$E:$E,$C7,Реестр!$H:$H,"факт")*IF($A7="-",-1,1) -> 0 | O7: =SUMIFS(Реестр!$C:$C,Реестр!$I:$I,O$3,Реестр!$E:$E,$C7,Реестр!$H:$H,"факт")*IF($A7="-",-1,1) -> 0 | P7: =SUM(D7:O7) -> 30300
B8: 12000 | C8: Платежи по операционной деятельности | D8: =D9+D12+D16+D21+D27+D33 -> 6642247.12 | E8: 8811672.8 | F8: 6559936.13 | G8: 4391486.57 | H8: 9178972.03 | I8: 10463285.74 | J8: 0 | K8: 0 | L8: 0 | M8: 0 | N8: 0 | O8: 0 | P8: 46047600.39
B9: 12100 | C9: Расчёты с площадками и клиентами | D9: =SUM(D10:D11) -> 3716354.62 | E9: 5539183.3 | F9: 3932925.63 | G9: 1341507.07 | H9: 6293437.53 | I9: 7109849.24 | J9: 0 | K9: 0 | L9: 0 | M9: 0 | N9: 0 | O9: 0 | P9: =SUM(D9:O9) -> 27933257.39
A10: - | B10: 12101 | C10: Услуги по размещению | D10: =SUMIFS(Реестр!$C:$C,Реестр!$I:$I,D$3,Реестр!$E:$E,$C10,Реестр!$H:$H,"факт")*IF($A10="-",-1,1) -> 3716354.62 | E10: =SUMIFS(Реестр!$C:$C,Реестр!$I:$I,E$3,Реестр!$E:$E,$C10,Реестр!$H:$H,"факт")*IF($A10="-",-1,1) -> 5539183.3 | F10: =SUMIFS(Реестр!$C:$C,Реестр!$I:$I,F$3,Реестр!$E:$E,$C10,Реестр!$H:$H,"факт")*IF($A10="-",-1,1) -> 3932925.63 | G10: =SUMIFS(Реестр!$C:$C,Реестр!$I:$I,G$3,Реестр!$E:$E,$C10,Реестр!$H:$H,"факт")*IF($A10="-",-1,1) -> 1341507.07 | H10: =SUMIFS(Реестр!$C:$C,Реестр!$I:$I,H$3,Реестр!$E:$E,$C10,Реестр!$H:$H,"факт")*IF($A10="-",-1,1) -> 6293437.53 | I10: =SUMIFS(Реестр!$C:$C,Реестр!$I:$I,I$3,Реестр!$E:$E,$C10,Реестр!$H:$H,"факт")*IF($A10="-",-1,1) -> 7109849.24 | J10: =SUMIFS(Реестр!$C:$C,Реестр!$I:$I,J$3,Реестр!$E:$E,$C10,Реестр!$H:$H,"факт")*IF($A10="-",-1,1) -> 0 | K10: =SUMIFS(Реестр!$C:$C,Реестр!$I:$I,K$3,Реестр!$E:$E,$C10,Реестр!$H:$H,"факт")*IF($A10="-",-1,1) -> 0 | L10: =SUMIFS(Реестр!$C:$C,Реестр!$I:$I,L$3,Реестр!$E:$E,$C10,Реестр!$H:$H,"факт")*IF($A10="-",-1,1) -> 0 | M10: =SUMIFS(Реестр!$C:$C,Реестр!$I:$I,M$3,Реестр!$E:$E,$C10,Реестр!$H:$H,"факт")*IF($A10="-",-1,1) -> 0 | N10: =SUMIFS(Реестр!$C:$C,Реестр!$I:$I,N$3,Реестр!$E:$E,$C10,Реестр!$H:$H,"факт")*IF($A10="-",-1,1) -> 0 | O10: =SUMIFS(Реестр!$C:$C,Реестр!$I:$I,O$3,Реестр!$E:$E,$C10,Реестр!$H:$H,"факт")*IF($A10="-",-1,1) -> 0 | P10: 27933257.39
A11: - | B11: 12102 | C11: Прочие прямые затраты | D11: =SUMIFS(Реестр!$C:$C,Реестр!$I:$I,D$3,Реестр!$E:$E,$C11,Реестр!$H:$H,"факт")*IF($A11="-",-1,1) -> 0 | E11: =SUMIFS(Реестр!$C:$C,Реестр!$I:$I,E$3,Реестр!$E:$E,$C11,Реестр!$H:$H,"факт")*IF($A11="-",-1,1) -> 0 | F11: =SUMIFS(Реестр!$C:$C,Реестр!$I:$I,F$3,Реестр!$E:$E,$C11,Реестр!$H:$H,"факт")*IF($A11="-",-1,1) -> 0 | G11: =SUMIFS(Реестр!$C:$C,Реестр!$I:$I,G$3,Реестр!$E:$E,$C11,Реестр!$H:$H,"факт")*IF($A11="-",-1,1) -> 0 | H11: =SUMIFS(Реестр!$C:$C,Реестр!$I:$I,H$3,Реестр!$E:$E,$C11,Реестр!$H:$H,"факт")*IF($A11="-",-1,1) -> 0 | I11: =SUMIFS(Реестр!$C:$C,Реестр!$I:$I,I$3,Реестр!$E:$E,$C11,Реестр!$H:$H,"факт")*IF($A11="-",-1,1) -> 0 | J11: =SUMIFS(Реестр!$C:$C,Реестр!$I:$I,J$3,Реестр!$E:$E,$C11,Реестр!$H:$H,"факт")*IF($A11="-",-1,1) -> 0 | K11: =SUMIFS(Реестр!$C:$C,Реестр!$I:$I,K$3,Реестр!$E:$E,$C11,Реестр!$H:$H,"факт")*IF($A11="-",-1,1) -> 0 | L11: =SUMIFS(Реестр!$C:$C,Реестр!$I:$I,L$3,Реестр!$E:$E,$C11,Реестр!$H:$H,"факт")*IF($A11="-",-1,1) -> 0 | M11: =SUMIFS(Реестр!$C:$C,Реестр!$I:$I,M$3,Реестр!$E:$E,$C11,Реестр!$H:$H,"факт")*IF($A11="-",-1,1) -> 0 | N11: =SUMIFS(Реестр!$C:$C,Реестр!$I:$I,N$3,Реестр!$E:$E,$C11,Реестр!$H:$H,"факт")*IF($A11="-",-1,1) -> 0 | O11: =SUMIFS(Реестр!$C:$C,Реестр!$I:$I,O$3,Реестр!$E:$E,$C11,Реестр!$H:$H,"факт")*IF($A11="-",-1,1) -> 0 | P11: 0
B12: 12200 | C12: Расчёты с персоналом | D12: =SUM(D13:D15) -> 955262.5 | E12: =SUM(E13:E15) -> 995337.5 | F12: 976537.5 | G12: 1020362.5 | H12: 1052187.5 | I12: 1073132.5 | J12: 0 | K12: 0 | L12: 0 | M12: 0 | N12: 0 | O12: 0 | P12: 6072820
A13: - | B13: 12201 | C13: Основная заработная плата | D13: =SUMIFS(Реестр!$C:$C,Реестр!$I:$I,D$3,Реестр!$E:$E,$C13,Реестр!$H:$H,"факт")*IF($A13="-",-1,1) -> 761650 | E13: =SUMIFS(Реестр!$C:$C,Реестр!$I:$I,E$3,Реестр!$E:$E,$C13,Реестр!$H:$H,"факт")*IF($A13="-",-1,1) -> 791950 | F13: =SUMIFS(Реестр!$C:$C,Реестр!$I:$I,F$3,Реестр!$E:$E,$C13,Реестр!$H:$H,"факт")*IF($A13="-",-1,1) -> 779150 | G13: =SUMIFS(Реестр!$C:$C,Реестр!$I:$I,G$3,Реестр!$E:$E,$C13,Реестр!$H:$H,"факт")*IF($A13="-",-1,1) -> 809570 | H13: =SUMIFS(Реестр!$C:$C,Реестр!$I:$I,H$3,Реестр!$E:$E,$C13,Реестр!$H:$H,"факт")*IF($A13="-",-1,1) -> 835750 | I13: =SUMIFS(Реестр!$C:$C,Реестр!$I:$I,I$3,Реестр!$E:$E,$C13,Реестр!$H:$H,"факт")*IF($A13="-",-1,1) -> 855306 | J13: =SUMIFS(Реестр!$C:$C,Реестр!$I:$I,J$3,Реестр!$E:$E,$C13,Реестр!$H:$H,"факт")*IF($A13="-",-1,1) -> 0 | K13: =SUMIFS(Реестр!$C:$C,Реестр!$I:$I,K$3,Реестр!$E:$E,$C13,Реестр!$H:$H,"факт")*IF($A13="-",-1,1) -> 0 | L13: =SUMIFS(Реестр!$C:$C,Реестр!$I:$I,L$3,Реестр!$E:$E,$C13,Реестр!$H:$H,"факт")*IF($A13="-",-1,1) -> 0 | M13: =SUMIFS(Реестр!$C:$C,Реестр!$I:$I,M$3,Реестр!$E:$E,$C13,Реестр!$H:$H,"факт")*IF($A13="-",-1,1) -> 0 | N13: =SUMIFS(Реестр!$C:$C,Реестр!$I:$I,N$3,Реестр!$E:$E,$C13,Реестр!$H:$H,"факт")*IF($A13="-",-1,1) -> 0 | O13: =SUMIFS(Реестр!$C:$C,Реестр!$I:$I,O$3,Реестр!$E:$E,$C13,Реестр!$H:$H,"факт")*IF($A13="-",-1,1) -> 0 | P13: 4833376
A14: - | B14: 12202 | C14: Премии, бонусы | D14: =SUMIFS(Реестр!$C:$C,Реестр!$I:$I,D$3,Реестр!$E:$E,$C14,Реестр!$H:$H,"факт")*IF($A14="-",-1,1) -> 190412.5 | E14: =SUMIFS(Реестр!$C:$C,Реестр!$I:$I,E$3,Реестр!$E:$E,$C14,Реестр!$H:$H,"факт")*IF($A14="-",-1,1) -> 197987.5 | F14: =SUMIFS(Реестр!$C:$C,Реестр!$I:$I,F$3,Реестр!$E:$E,$C14,Реестр!$H:$H,"факт")*IF($A14="-",-1,1) -> 194787.5 | G14: =SUMIFS(Реестр!$C:$C,Реестр!$I:$I,G$3,Реестр!$E:$E,$C14,Реестр!$H:$H,"факт")*IF($A14="-",-1,1) -> 202392.5 | H14: =SUMIFS(Реестр!$C:$C,Реестр!$I:$I,H$3,Реестр!$E:$E,$C14,Реестр!$H:$H,"факт")*IF($A14="-",-1,1) -> 208937.5 | I14: =SUMIFS(Реестр!$C:$C,Реестр!$I:$I,I$3,Реестр!$E:$E,$C14,Реестр!$H:$H,"факт")*IF($A14="-",-1,1) -> 213826.5 | J14: =SUMIFS(Реестр!$C:$C,Реестр!$I:$I,J$3,Реестр!$E:$E,$C14,Реестр!$H:$H,"факт")*IF($A14="-",-1,1) -> 0 | K14: =SUMIFS(Реестр!$C:$C,Реестр!$I:$I,K$3,Реестр!$E:$E,$C14,Реестр!$H:$H,"факт")*IF($A14="-",-1,1) -> 0 | L14: =SUMIFS(Реестр!$C:$C,Реестр!$I:$I,L$3,Реестр!$E:$E,$C14,Реестр!$H:$H,"факт")*IF($A14="-",-1,1) -> 0 | M14: =SUMIFS(Реестр!$C:$C,Реестр!$I:$I,M$3,Реестр!$E:$E,$C14,Реестр!$H:$H,"факт")*IF($A14="-",-1,1) -> 0 | N14: =SUMIFS(Реестр!$C:$C,Реестр!$I:$I,N$3,Реестр!$E:$E,$C14,Реестр!$H:$H,"факт")*IF($A14="-",-1,1) -> 0 | O14: =SUMIFS(Реестр!$C:$C,Реестр!$I:$I,O$3,Реестр!$E:$E,$C14,Реестр!$H:$H,"факт")*IF($A14="-",-1,1) -> 0 | P14: 1208344
A15: - | B15: 12203 | C15: Прочие затраты на оплату труда | D15: =SUMIFS(Реестр!$C:$C,Реестр!$I:$I,D$3,Реестр!$E:$E,$C15,Реестр!$H:$H,"факт")*IF($A15="-",-1,1) -> 3200 | E15: =SUMIFS(Реестр!$C:$C,Реестр!$I:$I,E$3,Реестр!$E:$E,$C15,Реестр!$H:$H,"факт")*IF($A15="-",-1,1) -> 5400 | F15: =SUMIFS(Реестр!$C:$C,Реестр!$I:$I,F$3,Реестр!$E:$E,$C15,Реестр!$H:$H,"факт")*IF($A15="-",-1,1) -> 2600 | G15: =SUMIFS(Реестр!$C:$C,Реестр!$I:$I,G$3,Реестр!$E:$E,$C15,Реестр!$H:$H,"факт")*IF($A15="-",-1,1) -> 8400 | H15: =SUMIFS(Реестр!$C:$C,Реестр!$I:$I,H$3,Реестр!$E:$E,$C15,Реестр!$H:$H,"факт")*IF($A15="-",-1,1) -> 7500 | I15: =SUMIFS(Реестр!$C:$C,Реестр!$I:$I,I$3,Реестр!$E:$E,$C15,Реестр!$H:$H,"факт")*IF($A15="-",-1,1) -> 4000 | J15: =SUMIFS(Реестр!$C:$C,Реестр!$I:$I,J$3,Реестр!$E:$E,$C15,Реестр!$H:$H,"факт")*IF($A15="-",-1,1) -> 0 | K15: =SUMIFS(Реестр!$C:$C,Реестр!$I:$I,K$3,Реестр!$E:$E,$C15,Реестр!$H:$H,"факт")*IF($A15="-",-1,1) -> 0 | L15: =SUMIFS(Реестр!$C:$C,Реестр!$I:$I,L$3,Реестр!$E:$E,$C15,Реестр!$H:$H,"факт")*IF($A15="-",-1,1) -> 0 | M15: =SUMIFS(Реестр!$C:$C,Реестр!$I:$I,M$3,Реестр!$E:$E,$C15,Реестр!$H:$H,"факт")*IF($A15="-",-1,1) -> 0 | N15: =SUMIFS(Реестр!$C:$C,Реестр!$I:$I,N$3,Реестр!$E:$E,$C15,Реестр!$H:$H,"факт")*IF($A15="-",-1,1) -> 0 | O15: =SUMIFS(Реестр!$C:$C,Реестр!$I:$I,O$3,Реестр!$E:$E,$C15,Реестр!$H:$H,"факт")*IF($A15="-",-1,1) -> 0 | P15: 31100
B16: 12300 | C16: Расчёты с бюджетом | D16: =SUM(D17:D20) -> 1287986 | E16: =SUM(E17:E20) -> 1513831 | F16: 937434 | G16: 1321429 | H16: 1086377 | I16: 1664534 | J16: 0 | K16: 0 | L16: 0 | M16: 0 | N16: 0 | O16: 0 | P16: 7811591
A17: - | B17: 12301 | C17: Налоги на фонд оплаты труда | D17: =SUMIFS(Реестр!$C:$C,Реестр!$I:$I,D$3,Реестр!$E:$E,$C17,Реестр!$H:$H,"факт")*IF($A17="-",-1,1) -> 107549 | E17: =SUMIFS(Реестр!$C:$C,Реестр!$I:$I,E$3,Реестр!$E:$E,$C17,Реестр!$H:$H,"факт")*IF($A17="-",-1,1) -> 117350 | F17: =SUMIFS(Реестр!$C:$C,Реестр!$I:$I,F$3,Реестр!$E:$E,$C17,Реестр!$H:$H,"факт")*IF($A17="-",-1,1) -> 125600 | G17: =SUMIFS(Реестр!$C:$C,Реестр!$I:$I,G$3,Реестр!$E:$E,$C17,Реестр!$H:$H,"факт")*IF($A17="-",-1,1) -> 133110 | H17: =SUMIFS(Реестр!$C:$C,Реестр!$I:$I,H$3,Реестр!$E:$E,$C17,Реестр!$H:$H,"факт")*IF($A17="-",-1,1) -> 147530 | I17: =SUMIFS(Реестр!$C:$C,Реестр!$I:$I,I$3,Реестр!$E:$E,$C17,Реестр!$H:$H,"факт")*IF($A17="-",-1,1) -> 150800 | J17: =SUMIFS(Реестр!$C:$C,Реестр!$I:$I,J$3,Реестр!$E:$E,$C17,Реестр!$H:$H,"факт")*IF($A17="-",-1,1) -> 0 | K17: =SUMIFS(Реестр!$C:$C,Реестр!$I:$I,K$3,Реестр!$E:$E,$C17,Реестр!$H:$H,"факт")*IF($A17="-",-1,1) -> 0 | L17: =SUMIFS(Реестр!$C:$C,Реестр!$I:$I,L$3,Реестр!$E:$E,$C17,Реестр!$H:$H,"факт")*IF($A17="-",-1,1) -> 0 | M17: =SUMIFS(Реестр!$C:$C,Реестр!$I:$I,M$3,Реестр!$E:$E,$C17,Реестр!$H:$H,"факт")*IF($A17="-",-1,1) -> 0 | N17: =SUMIFS(Реестр!$C:$C,Реестр!$I:$I,N$3,Реестр!$E:$E,$C17,Реестр!$H:$H,"факт")*IF($A17="-",-1,1) -> 0 | O17: =SUMIFS(Реестр!$C:$C,Реестр!$I:$I,O$3,Реестр!$E:$E,$C17,Реестр!$H:$H,"факт")*IF($A17="-",-1,1) -> 0 | P17: 781939
A18: - | B18: 12302 | C18: Налог на добавленную стоимость | D18: =SUMIFS(Реестр!$C:$C,Реестр!$I:$I,D$3,Реестр!$E:$E,$C18,Реестр!$H:$H,"факт")*IF($A18="-",-1,1) -> 560437 | E18: =SUMIFS(Реестр!$C:$C,Реестр!$I:$I,E$3,Реестр!$E:$E,$C18,Реестр!$H:$H,"факт")*IF($A18="-",-1,1) -> 756481 | F18: =SUMIFS(Реестр!$C:$C,Реестр!$I:$I,F$3,Реестр!$E:$E,$C18,Реестр!$H:$H,"факт")*IF($A18="-",-1,1) -> 471834 | G18: =SUMIFS(Реестр!$C:$C,Реестр!$I:$I,G$3,Реестр!$E:$E,$C18,Реестр!$H:$H,"факт")*IF($A18="-",-1,1) -> 658319 | H18: =SUMIFS(Реестр!$C:$C,Реестр!$I:$I,H$3,Реестр!$E:$E,$C18,Реестр!$H:$H,"факт")*IF($A18="-",-1,1) -> 471847 | I18: =SUMIFS(Реестр!$C:$C,Реестр!$I:$I,I$3,Реестр!$E:$E,$C18,Реестр!$H:$H,"факт")*IF($A18="-",-1,1) -> 881734 | J18: =SUMIFS(Реестр!$C:$C,Реестр!$I:$I,J$3,Реестр!$E:$E,$C18,Реестр!$H:$H,"факт")*IF($A18="-",-1,1) -> 0 | K18: =SUMIFS(Реестр!$C:$C,Реестр!$I:$I,K$3,Реестр!$E:$E,$C18,Реестр!$H:$H,"факт")*IF($A18="-",-1,1) -> 0 | L18: =SUMIFS(Реестр!$C:$C,Реестр!$I:$I,L$3,Реестр!$E:$E,$C18,Реестр!$H:$H,"факт")*IF($A18="-",-1,1) -> 0 | M18: =SUMIFS(Реестр!$C:$C,Реестр!$I:$I,M$3,Реестр!$E:$E,$C18,Реестр!$H:$H,"факт")*IF($A18="-",-1,1) -> 0 | N18: =SUMIFS(Реестр!$C:$C,Реестр!$I:$I,N$3,Реестр!$E:$E,$C18,Реестр!$H:$H,"факт")*IF($A18="-",-1,1) -> 0 | O18: =SUMIFS(Реестр!$C:$C,Реестр!$I:$I,O$3,Реестр!$E:$E,$C18,Реестр!$H:$H,"факт")*IF($A18="-",-1,1) -> 0 | P18: 3800652
A19: - | B19: 12303 | C19: Налог на прибыль | D19: =SUMIFS(Реестр!$C:$C,Реестр!$I:$I,D$3,Реестр!$E:$E,$C19,Реестр!$H:$H,"факт")*IF($A19="-",-1,1) -> 620000 | E19: =SUMIFS(Реестр!$C:$C,Реестр!$I:$I,E$3,Реестр!$E:$E,$C19,Реестр!$H:$H,"факт")*IF($A19="-",-1,1) -> 640000 | F19: =SUMIFS(Реестр!$C:$C,Реестр!$I:$I,F$3,Реестр!$E:$E,$C19,Реестр!$H:$H,"факт")*IF($A19="-",-1,1) -> 340000 | G19: =SUMIFS(Реестр!$C:$C,Реестр!$I:$I,G$3,Реестр!$E:$E,$C19,Реестр!$H:$H,"факт")*IF($A19="-",-1,1) -> 530000 | H19: =SUMIFS(Реестр!$C:$C,Реестр!$I:$I,H$3,Реестр!$E:$E,$C19,Реестр!$H:$H,"факт")*IF($A19="-",-1,1) -> 467000 | I19: =SUMIFS(Реестр!$C:$C,Реестр!$I:$I,I$3,Реестр!$E:$E,$C19,Реестр!$H:$H,"факт")*IF($A19="-",-1,1) -> 632000 | J19: =SUMIFS(Реестр!$C:$C,Реестр!$I:$I,J$3,Реестр!$E:$E,$C19,Реестр!$H:$H,"факт")*IF($A19="-",-1,1) -> 0 | K19: =SUMIFS(Реестр!$C:$C,Реестр!$I:$I,K$3,Реестр!$E:$E,$C19,Реестр!$H:$H,"факт")*IF($A19="-",-1,1) -> 0 | L19: =SUMIFS(Реестр!$C:$C,Реестр!$I:$I,L$3,Реестр!$E:$E,$C19,Реестр!$H:$H,"факт")*IF($A19="-",-1,1) -> 0 | M19: =SUMIFS(Реестр!$C:$C,Реестр!$I:$I,M$3,Реестр!$E:$E,$C19,Реестр!$H:$H,"факт")*IF($A19="-",-1,1) -> 0 | N19: =SUMIFS(Реестр!$C:$C,Реестр!$I:$I,N$3,Реестр!$E:$E,$C19,Реестр!$H:$H,"факт")*IF($A19="-",-1,1) -> 0 | O19: =SUMIFS(Реестр!$C:$C,Реестр!$I:$I,O$3,Реестр!$E:$E,$C19,Реестр!$H:$H,"факт")*IF($A19="-",-1,1) -> 0 | P19: 3229000
A20: - | B20: 12304 | C20: Прочие налоги и сборы | D20: =SUMIFS(Реестр!$C:$C,Реестр!$I:$I,D$3,Реестр!$E:$E,$C20,Реестр!$H:$H,"факт")*IF($A20="-",-1,1) -> 0 | E20: =SUMIFS(Реестр!$C:$C,Реестр!$I:$I,E$3,Реестр!$E:$E,$C20,Реестр!$H:$H,"факт")*IF($A20="-",-1,1) -> 0 | F20: =SUMIFS(Реестр!$C:$C,Реестр!$I:$I,F$3,Реестр!$E:$E,$C20,Реестр!$H:$H,"факт")*IF($A20="-",-1,1) -> 0 | G20: =SUMIFS(Реестр!$C:$C,Реестр!$I:$I,G$3,Реестр!$E:$E,$C20,Реестр!$H:$H,"факт")*IF($A20="-",-1,1) -> 0 | H20: =SUMIFS(Реестр!$C:$C,Реестр!$I:$I,H$3,Реестр!$E:$E,$C20,Реестр!$H:$H,"факт")*IF($A20="-",-1,1) -> 0 | I20: =SUMIFS(Реестр!$C:$C,Реестр!$I:$I,I$3,Реестр!$E:$E,$C20,Реестр!$H:$H,"факт")*IF($A20="-",-1,1) -> 0 | J20: =SUMIFS(Реестр!$C:$C,Реестр!$I:$I,J$3,Реестр!$E:$E,$C20,Реестр!$H:$H,"факт")*IF($A20="-",-1,1) -> 0 | K20: =SUMIFS(Реестр!$C:$C,Реестр!$I:$I,K$3,Реестр!$E:$E,$C20,Реестр!$H:$H,"факт")*IF($A20="-",-1,1) -> 0 | L20: =SUMIFS(Реестр!$C:$C,Реестр!$I:$I,L$3,Реестр!$E:$E,$C20,Реестр!$H:$H,"факт")*IF($A20="-",-1,1) -> 0 | M20: =SUMIFS(Реестр!$C:$C,Реестр!$I:$I,M$3,Реестр!$E:$E,$C20,Реестр!$H:$H,"факт")*IF($A20="-",-1,1) -> 0 | N20: =SUMIFS(Реестр!$C:$C,Реестр!$I:$I,N$3,Реестр!$E:$E,$C20,Реестр!$H:$H,"факт")*IF($A20="-",-1,1) -> 0 | O20: =SUMIFS(Реестр!$C:$C,Реестр!$I:$I,O$3,Реестр!$E:$E,$C20,Реестр!$H:$H,"факт")*IF($A20="-",-1,1) -> 0 | P20: 0
B21: 12400 | C21: Расходы на маркетинг | D21: =SUM(D22:D26) -> 191924 | E21: =SUM(E22:E26) -> 210332 | F21: 242783 | G21: 170234 | H21: 190742 | I21: 103843 | J21: 0 | K21: 0 | L21: 0 | M21: 0 | N21: 0 | O21: 0 | P21: 1109858
A22: - | B22: 12401 | C22: Участие в выставках | D22: =SUMIFS(Реестр!$C:$C,Реестр!$I:$I,D$3,Реестр!$E:$E,$C22,Реестр!$H:$H,"факт")*IF($A22="-",-1,1) -> 44618 | E22: =SUMIFS(Реестр!$C:$C,Реестр!$I:$I,E$3,Реестр!$E:$E,$C22,Реестр!$H:$H,"факт")*IF($A22="-",-1,1) -> 21332 | F22: =SUMIFS(Реестр!$C:$C,Реестр!$I:$I,F$3,Реестр!$E:$E,$C22,Реестр!$H:$H,"факт")*IF($A22="-",-1,1) -> 52486 | G22: =SUMIFS(Реестр!$C:$C,Реестр!$I:$I,G$3,Реестр!$E:$E,$C22,Реестр!$H:$H,"факт")*IF($A22="-",-1,1) -> 15975 | H22: =SUMIFS(Реестр!$C:$C,Реестр!$I:$I,H$3,Реестр!$E:$E,$C22,Реестр!$H:$H,"факт")*IF($A22="-",-1,1) -> 23674 | I22: =SUMIFS(Реестр!$C:$C,Реестр!$I:$I,I$3,Реестр!$E:$E,$C22,Реестр!$H:$H,"факт")*IF($A22="-",-1,1) -> 21945 | J22: =SUMIFS(Реестр!$C:$C,Реестр!$I:$I,J$3,Реестр!$E:$E,$C22,Реестр!$H:$H,"факт")*IF($A22="-",-1,1) -> 0 | K22: =SUMIFS(Реестр!$C:$C,Реестр!$I:$I,K$3,Реестр!$E:$E,$C22,Реестр!$H:$H,"факт")*IF($A22="-",-1,1) -> 0 | L22: =SUMIFS(Реестр!$C:$C,Реестр!$I:$I,L$3,Реестр!$E:$E,$C22,Реестр!$H:$H,"факт")*IF($A22="-",-1,1) -> 0 | M22: =SUMIFS(Реестр!$C:$C,Реестр!$I:$I,M$3,Реестр!$E:$E,$C22,Реестр!$H:$H,"факт")*IF($A22="-",-1,1) -> 0 | N22: =SUMIFS(Реестр!$C:$C,Реестр!$I:$I,N$3,Реестр!$E:$E,$C22,Реестр!$H:$H,"факт")*IF($A22="-",-1,1) -> 0 | O22: =SUMIFS(Реестр!$C:$C,Реестр!$I:$I,O$3,Реестр!$E:$E,$C22,Реестр!$H:$H,"факт")*IF($A22="-",-1,1) -> 0 | P22: 180030
A23: - | B23: 12402 | C23: Сувениры, подарки | D23: =SUMIFS(Реестр!$C:$C,Реестр!$I:$I,D$3,Реестр!$E:$E,$C23,Реестр!$H:$H,"факт")*IF($A23="-",-1,1) -> 37668 | E23: =SUMIFS(Реестр!$C:$C,Реестр!$I:$I,E$3,Реестр!$E:$E,$C23,Реестр!$H:$H,"факт")*IF($A23="-",-1,1) -> 36596 | F23: =SUMIFS(Реестр!$C:$C,Реестр!$I:$I,F$3,Реестр!$E:$E,$C23,Реестр!$H:$H,"факт")*IF($A23="-",-1,1) -> 54915 | G23: =SUMIFS(Реестр!$C:$C,Реестр!$I:$I,G$3,Реестр!$E:$E,$C23,Реестр!$H:$H,"факт")*IF($A23="-",-1,1) -> 38067 | H23: =SUMIFS(Реестр!$C:$C,Реестр!$I:$I,H$3,Реестр!$E:$E,$C23,Реестр!$H:$H,"факт")*IF($A23="-",-1,1) -> 29533 | I23: =SUMIFS(Реестр!$C:$C,Реестр!$I:$I,I$3,Реестр!$E:$E,$C23,Реестр!$H:$H,"факт")*IF($A23="-",-1,1) -> 27686 | J23: =SUMIFS(Реестр!$C:$C,Реестр!$I:$I,J$3,Реестр!$E:$E,$C23,Реестр!$H:$H,"факт")*IF($A23="-",-1,1) -> 0 | K23: =SUMIFS(Реестр!$C:$C,Реестр!$I:$I,K$3,Реестр!$E:$E,$C23,Реестр!$H:$H,"факт")*IF($A23="-",-1,1) -> 0 | L23: =SUMIFS(Реестр!$C:$C,Реестр!$I:$I,L$3,Реестр!$E:$E,$C23,Реестр!$H:$H,"факт")*IF($A23="-",-1,1) -> 0 | M23: =SUMIFS(Реестр!$C:$C,Реестр!$I:$I,M$3,Реестр!$E:$E,$C23,Реестр!$H:$H,"факт")*IF($A23="-",-1,1) -> 0 | N23: =SUMIFS(Реестр!$C:$C,Реестр!$I:$I,N$3,Реестр!$E:$E,$C23,Реестр!$H:$H,"факт")*IF($A23="-",-1,1) -> 0 | O23: =SUMIFS(Реестр!$C:$C,Реестр!$I:$I,O$3,Реестр!$E:$E,$C23,Реестр!$H:$H,"факт")*IF($A23="-",-1,1) -> 0 | P23: 224465
A24: - | B24: 12403 | C24: Реклама и PR | D24: =SUMIFS(Реестр!$C:$C,Реестр!$I:$I,D$3,Реестр!$E:$E,$C24,Реестр!$H:$H,"факт")*IF($A24="-",-1,1) -> 32619 | E24: =SUMIFS(Реестр!$C:$C,Реестр!$I:$I,E$3,Реестр!$E:$E,$C24,Реестр!$H:$H,"факт")*IF($A24="-",-1,1) -> 58852 | F24: =SUMIFS(Реестр!$C:$C,Реестр!$I:$I,F$3,Реестр!$E:$E,$C24,Реестр!$H:$H,"факт")*IF($A24="-",-1,1) -> 49530 | G24: =SUMIFS(Реестр!$C:$C,Реестр!$I:$I,G$3,Реестр!$E:$E,$C24,Реестр!$H:$H,"факт")*IF($A24="-",-1,1) -> 48980 | H24: =SUMIFS(Реестр!$C:$C,Реестр!$I:$I,H$3,Реестр!$E:$E,$C24,Реестр!$H:$H,"факт")*IF($A24="-",-1,1) -> 59729 | I24: =SUMIFS(Реестр!$C:$C,Реестр!$I:$I,I$3,Реестр!$E:$E,$C24,Реестр!$H:$H,"факт")*IF($A24="-",-1,1) -> 14672 | J24: =SUMIFS(Реестр!$C:$C,Реестр!$I:$I,J$3,Реестр!$E:$E,$C24,Реестр!$H:$H,"факт")*IF($A24="-",-1,1) -> 0 | K24: =SUMIFS(Реестр!$C:$C,Реестр!$I:$I,K$3,Реестр!$E:$E,$C24,Реестр!$H:$H,"факт")*IF($A24="-",-1,1) -> 0 | L24: =SUMIFS(Реестр!$C:$C,Реестр!$I:$I,L$3,Реестр!$E:$E,$C24,Реестр!$H:$H,"факт")*IF($A24="-",-1,1) -> 0 | M24: =SUMIFS(Реестр!$C:$C,Реестр!$I:$I,M$3,Реестр!$E:$E,$C24,Реестр!$H:$H,"факт")*IF($A24="-",-1,1) -> 0 | N24: =SUMIFS(Реестр!$C:$C,Реестр!$I:$I,N$3,Реестр!$E:$E,$C24,Реестр!$H:$H,"факт")*IF($A24="-",-1,1) -> 0 | O24: =SUMIFS(Реестр!$C:$C,Реестр!$I:$I,O$3,Реестр!$E:$E,$C24,Реестр!$H:$H,"факт")*IF($A24="-",-1,1) -> 0 | P24: 264382
A25: - | B25: 12404 | C25: Креатив и концепции | D25: =SUMIFS(Реестр!$C:$C,Реестр!$I:$I,D$3,Реестр!$E:$E,$C25,Реестр!$H:$H,"факт")*IF($A25="-",-1,1) -> 24537 | E25: =SUMIFS(Реестр!$C:$C,Реестр!$I:$I,E$3,Реестр!$E:$E,$C25,Реестр!$H:$H,"факт")*IF($A25="-",-1,1) -> 42637 | F25: =SUMIFS(Реестр!$C:$C,Реестр!$I:$I,F$3,Реестр!$E:$E,$C25,Реестр!$H:$H,"факт")*IF($A25="-",-1,1) -> 45359 | G25: =SUMIFS(Реестр!$C:$C,Реестр!$I:$I,G$3,Реестр!$E:$E,$C25,Реестр!$H:$H,"факт")*IF($A25="-",-1,1) -> 23282 | H25: =SUMIFS(Реестр!$C:$C,Реестр!$I:$I,H$3,Реестр!$E:$E,$C25,Реестр!$H:$H,"факт")*IF($A25="-",-1,1) -> 32729 | I25: =SUMIFS(Реестр!$C:$C,Реестр!$I:$I,I$3,Реестр!$E:$E,$C25,Реестр!$H:$H,"факт")*IF($A25="-",-1,1) -> 16126 | J25: =SUMIFS(Реестр!$C:$C,Реестр!$I:$I,J$3,Реестр!$E:$E,$C25,Реестр!$H:$H,"факт")*IF($A25="-",-1,1) -> 0 | K25: =SUMIFS(Реестр!$C:$C,Реестр!$I:$I,K$3,Реестр!$E:$E,$C25,Реестр!$H:$H,"факт")*IF($A25="-",-1,1) -> 0 | L25: =SUMIFS(Реестр!$C:$C,Реестр!$I:$I,L$3,Реестр!$E:$E,$C25,Реестр!$H:$H,"факт")*IF($A25="-",-1,1) -> 0 | M25: =SUMIFS(Реестр!$C:$C,Реестр!$I:$I,M$3,Реестр!$E:$E,$C25,Реестр!$H:$H,"факт")*IF($A25="-",-1,1) -> 0 | N25: =SUMIFS(Реестр!$C:$C,Реестр!$I:$I,N$3,Реестр!$E:$E,$C25,Реестр!$H:$H,"факт")*IF($A25="-",-1,1) -> 0 | O25: =SUMIFS(Реестр!$C:$C,Реестр!$I:$I,O$3,Реестр!$E:$E,$C25,Реестр!$H:$H,"факт")*IF($A25="-",-1,1) -> 0 | P25: 184670
A26: - | B26: 12405 | C26: Прочие расходы на маркетинг | D26: =SUMIFS(Реестр!$C:$C,Реестр!$I:$I,D$3,Реестр!$E:$E,$C26,Реестр!$H:$H,"факт")*IF($A26="-",-1,1) -> 52482 | E26: =SUMIFS(Реестр!$C:$C,Реестр!$I:$I,E$3,Реестр!$E:$E,$C26,Реестр!$H:$H,"факт")*IF($A26="-",-1,1) -> 50915 | F26: =SUMIFS(Реестр!$C:$C,Реестр!$I:$I,F$3,Реестр!$E:$E,$C26,Реестр!$H:$H,"факт")*IF($A26="-",-1,1) -> 40493 | G26: =SUMIFS(Реестр!$C:$C,Реестр!$I:$I,G$3,Реестр!$E:$E,$C26,Реестр!$H:$H,"факт")*IF($A26="-",-1,1) -> 43930 | H26: =SUMIFS(Реестр!$C:$C,Реестр!$I:$I,H$3,Реестр!$E:$E,$C26,Реестр!$H:$H,"факт")*IF($A26="-",-1,1) -> 45077 | I26: =SUMIFS(Реестр!$C:$C,Реестр!$I:$I,I$3,Реестр!$E:$E,$C26,Реестр!$H:$H,"факт")*IF($A26="-",-1,1) -> 23414 | J26: =SUMIFS(Реестр!$C:$C,Реестр!$I:$I,J$3,Реестр!$E:$E,$C26,Реестр!$H:$H,"факт")*IF($A26="-",-1,1) -> 0 | K26: =SUMIFS(Реестр!$C:$C,Реестр!$I:$I,K$3,Реестр!$E:$E,$C26,Реестр!$H:$H,"факт")*IF($A26="-",-1,1) -> 0 | L26: =SUMIFS(Реестр!$C:$C,Реестр!$I:$I,L$3,Реестр!$E:$E,$C26,Реестр!$H:$H,"факт")*IF($A26="-",-1,1) -> 0 | M26: =SUMIFS(Реестр!$C:$C,Реестр!$I:$I,M$3,Реестр!$E:$E,$C26,Реестр!$H:$H,"факт")*IF($A26="-",-1,1) -> 0 | N26: =SUMIFS(Реестр!$C:$C,Реестр!$I:$I,N$3,Реестр!$E:$E,$C26,Реестр!$H:$H,"факт")*IF($A26="-",-1,1) -> 0 | O26: =SUMIFS(Реестр!$C:$C,Реестр!$I:$I,O$3,Реестр!$E:$E,$C26,Реестр!$H:$H,"факт")*IF($A26="-",-1,1) -> 0 | P26: 256311
B27: 12500 | C27: Производственные расходы | D27: =SUM(D28:D32) -> 126401 | E27: =SUM(E28:E32) -> 182972 | F27: 167907 | G27: 141078 | H27: 181992 | I27: 200745 | J27: 0 | K27: 0 | L27: 0 | M27: 0 | N27: 0 | O27: 0 | P27: 1001095
A28: - | B28: 12501 | C28: Хостинг серверов | D28: =SUMIFS(Реестр!$C:$C,Реестр!$I:$I,D$3,Реестр!$E:$E,$C28,Реестр!$H:$H,"факт")*IF($A28="-",-1,1) -> 31154 | E28: =SUMIFS(Реестр!$C:$C,Реестр!$I:$I,E$3,Реестр!$E:$E,$C28,Реестр!$H:$H,"факт")*IF($A28="-",-1,1) -> 24957 | F28: =SUMIFS(Реестр!$C:$C,Реестр!$I:$I,F$3,Реестр!$E:$E,$C28,Реестр!$H:$H,"факт")*IF($A28="-",-1,1) -> 50457 | G28: =SUMIFS(Реестр!$C:$C,Реестр!$I:$I,G$3,Реестр!$E:$E,$C28,Реестр!$H:$H,"факт")*IF($A28="-",-1,1) -> 23451 | H28: =SUMIFS(Реестр!$C:$C,Реестр!$I:$I,H$3,Реестр!$E:$E,$C28,Реестр!$H:$H,"факт")*IF($A28="-",-1,1) -> 50320 | I28: =SUMIFS(Реестр!$C:$C,Реестр!$I:$I,I$3,Реестр!$E:$E,$C28,Реестр!$H:$H,"факт")*IF($A28="-",-1,1) -> 43374 | J28: =SUMIFS(Реестр!$C:$C,Реестр!$I:$I,J$3,Реестр!$E:$E,$C28,Реестр!$H:$H,"факт")*IF($A28="-",-1,1) -> 0 | K28: =SUMIFS(Реестр!$C:$C,Реестр!$I:$I,K$3,Реестр!$E:$E,$C28,Реестр!$H:$H,"факт")*IF($A28="-",-1,1) -> 0 | L28: =SUMIFS(Реестр!$C:$C,Реестр!$I:$I,L$3,Реестр!$E:$E,$C28,Реестр!$H:$H,"факт")*IF($A28="-",-1,1) -> 0 | M28: =SUMIFS(Реестр!$C:$C,Реестр!$I:$I,M$3,Реестр!$E:$E,$C28,Реестр!$H:$H,"факт")*IF($A28="-",-1,1) -> 0 | N28: =SUMIFS(Реестр!$C:$C,Реестр!$I:$I,N$3,Реестр!$E:$E,$C28,Реестр!$H:$H,"факт")*IF($A28="-",-1,1) -> 0 | O28: =SUMIFS(Реестр!$C:$C,Реестр!$I:$I,O$3,Реестр!$E:$E,$C28,Реестр!$H:$H,"факт")*IF($A28="-",-1,1) -> 0 | P28: 223713
A29: - | B29: 12502 | C29: Телематические услуги | D29: =SUMIFS(Реестр!$C:$C,Реестр!$I:$I,D$3,Реестр!$E:$E,$C29,Реестр!$H:$H,"факт")*IF($A29="-",-1,1) -> 16162 | E29: =SUMIFS(Реестр!$C:$C,Реестр!$I:$I,E$3,Реестр!$E:$E,$C29,Реестр!$H:$H,"факт")*IF($A29="-",-1,1) -> 11609 | F29: =SUMIFS(Реестр!$C:$C,Реестр!$I:$I,F$3,Реестр!$E:$E,$C29,Реестр!$H:$H,"факт")*IF($A29="-",-1,1) -> 14729 | G29: =SUMIFS(Реестр!$C:$C,Реестр!$I:$I,G$3,Реестр!$E:$E,$C29,Реестр!$H:$H,"факт")*IF($A29="-",-1,1) -> 30250 | H29: =SUMIFS(Реестр!$C:$C,Реестр!$I:$I,H$3,Реестр!$E:$E,$C29,Реестр!$H:$H,"факт")*IF($A29="-",-1,1) -> 13317 | I29: =SUMIFS(Реестр!$C:$C,Реестр!$I:$I,I$3,Реестр!$E:$E,$C29,Реестр!$H:$H,"факт")*IF($A29="-",-1,1) -> 32198 | J29: =SUMIFS(Реестр!$C:$C,Реестр!$I:$I,J$3,Реестр!$E:$E,$C29,Реестр!$H:$H,"факт")*IF($A29="-",-1,1) -> 0 | K29: =SUMIFS(Реестр!$C:$C,Реестр!$I:$I,K$3,Реестр!$E:$E,$C29,Реестр!$H:$H,"факт")*IF($A29="-",-1,1) -> 0 | L29: =SUMIFS(Реестр!$C:$C,Реестр!$I:$I,L$3,Реестр!$E:$E,$C29,Реестр!$H:$H,"факт")*IF($A29="-",-1,1) -> 0 | M29: =SUMIFS(Реестр!$C:$C,Реестр!$I:$I,M$3,Реестр!$E:$E,$C29,Реестр!$H:$H,"факт")*IF($A29="-",-1,1) -> 0 | N29: =SUMIFS(Реестр!$C:$C,Реестр!$I:$I,N$3,Реестр!$E:$E,$C29,Реестр!$H:$H,"факт")*IF($A29="-",-1,1) -> 0 | O29: =SUMIFS(Реестр!$C:$C,Реестр!$I:$I,O$3,Реестр!$E:$E,$C29,Реестр!$H:$H,"факт")*IF($A29="-",-1,1) -> 0 | P29: 118265
A30: - | B30: 12503 | C30: Домены и обслуживание сайтов | D30: =SUMIFS(Реестр!$C:$C,Реестр!$I:$I,D$3,Реестр!$E:$E,$C30,Реестр!$H:$H,"факт")*IF($A30="-",-1,1) -> 41516 | E30: =SUMIFS(Реестр!$C:$C,Реестр!$I:$I,E$3,Реестр!$E:$E,$C30,Реестр!$H:$H,"факт")*IF($A30="-",-1,1) -> 57493 | F30: =SUMIFS(Реестр!$C:$C,Реестр!$I:$I,F$3,Реестр!$E:$E,$C30,Реестр!$H:$H,"факт")*IF($A30="-",-1,1) -> 15358 | G30: =SUMIFS(Реестр!$C:$C,Реестр!$I:$I,G$3,Реестр!$E:$E,$C30,Реестр!$H:$H,"факт")*IF($A30="-",-1,1) -> 43327 | H30: =SUMIFS(Реестр!$C:$C,Реестр!$I:$I,H$3,Реестр!$E:$E,$C30,Реестр!$H:$H,"факт")*IF($A30="-",-1,1) -> 18040 | I30: =SUMIFS(Реестр!$C:$C,Реестр!$I:$I,I$3,Реестр!$E:$E,$C30,Реестр!$H:$H,"факт")*IF($A30="-",-1,1) -> 40234 | J30: =SUMIFS(Реестр!$C:$C,Реестр!$I:$I,J$3,Реестр!$E:$E,$C30,Реестр!$H:$H,"факт")*IF($A30="-",-1,1) -> 0 | K30: =SUMIFS(Реестр!$C:$C,Реестр!$I:$I,K$3,Реестр!$E:$E,$C30,Реестр!$H:$H,"факт")*IF($A30="-",-1,1) -> 0 | L30: =SUMIFS(Реестр!$C:$C,Реестр!$I:$I,L$3,Реестр!$E:$E,$C30,Реестр!$H:$H,"факт")*IF($A30="-",-1,1) -> 0 | M30: =SUMIFS(Реестр!$C:$C,Реестр!$I:$I,M$3,Реестр!$E:$E,$C30,Реестр!$H:$H,"факт")*IF($A30="-",-1,1) -> 0 | N30: =SUMIFS(Реестр!$C:$C,Реестр!$I:$I,N$3,Реестр!$E:$E,$C30,Реестр!$H:$H,"факт")*IF($A30="-",-1,1) -> 0 | O30: =SUMIFS(Реестр!$C:$C,Реестр!$I:$I,O$3,Реестр!$E:$E,$C30,Реестр!$H:$H,"факт")*IF($A30="-",-1,1) -> 0 | P30: 215968
A31: - | B31: 12504 | C31: Интернет на площадке | D31: =SUMIFS(Реестр!$C:$C,Реестр!$I:$I,D$3,Реестр!$E:$E,$C31,Реестр!$H:$H,"факт")*IF($A31="-",-1,1) -> 17296 | E31: =SUMIFS(Реестр!$C:$C,Реестр!$I:$I,E$3,Реестр!$E:$E,$C31,Реестр!$H:$H,"факт")*IF($A31="-",-1,1) -> 30691 | F31: =SUMIFS(Реестр!$C:$C,Реестр!$I:$I,F$3,Реестр!$E:$E,$C31,Реестр!$H:$H,"факт")*IF($A31="-",-1,1) -> 30835 | G31: =SUMIFS(Реестр!$C:$C,Реестр!$I:$I,G$3,Реестр!$E:$E,$C31,Реестр!$H:$H,"факт")*IF($A31="-",-1,1) -> 22318 | H31: =SUMIFS(Реестр!$C:$C,Реестр!$I:$I,H$3,Реестр!$E:$E,$C31,Реестр!$H:$H,"факт")*IF($A31="-",-1,1) -> 59097 | I31: =SUMIFS(Реестр!$C:$C,Реестр!$I:$I,I$3,Реестр!$E:$E,$C31,Реестр!$H:$H,"факт")*IF($A31="-",-1,1) -> 49960 | J31: =SUMIFS(Реестр!$C:$C,Реестр!$I:$I,J$3,Реестр!$E:$E,$C31,Реестр!$H:$H,"факт")*IF($A31="-",-1,1) -> 0 | K31: =SUMIFS(Реестр!$C:$C,Реестр!$I:$I,K$3,Реестр!$E:$E,$C31,Реестр!$H:$H,"факт")*IF($A31="-",-1,1) -> 0 | L31: =SUMIFS(Реестр!$C:$C,Реестр!$I:$I,L$3,Реестр!$E:$E,$C31,Реестр!$H:$H,"факт")*IF($A31="-",-1,1) -> 0 | M31: =SUMIFS(Реестр!$C:$C,Реестр!$I:$I,M$3,Реестр!$E:$E,$C31,Реестр!$H:$H,"факт")*IF($A31="-",-1,1) -> 0 | N31: =SUMIFS(Реестр!$C:$C,Реестр!$I:$I,N$3,Реестр!$E:$E,$C31,Реестр!$H:$H,"факт")*IF($A31="-",-1,1) -> 0 | O31: =SUMIFS(Реестр!$C:$C,Реестр!$I:$I,O$3,Реестр!$E:$E,$C31,Реестр!$H:$H,"факт")*IF($A31="-",-1,1) -> 0 | P31: 210197
A32: - | B32: 12505 | C32: Прочие производственные расходы | D32: =SUMIFS(Реестр!$C:$C,Реестр!$I:$I,D$3,Реестр!$E:$E,$C32,Реестр!$H:$H,"факт")*IF($A32="-",-1,1) -> 20273 | E32: =SUMIFS(Реестр!$C:$C,Реестр!$I:$I,E$3,Реестр!$E:$E,$C32,Реестр!$H:$H,"факт")*IF($A32="-",-1,1) -> 58222 | F32: =SUMIFS(Реестр!$C:$C,Реестр!$I:$I,F$3,Реестр!$E:$E,$C32,Реестр!$H:$H,"факт")*IF($A32="-",-1,1) -> 56528 | G32: =SUMIFS(Реестр!$C:$C,Реестр!$I:$I,G$3,Реестр!$E:$E,$C32,Реестр!$H:$H,"факт")*IF($A32="-",-1,1) -> 21732 | H32: =SUMIFS(Реестр!$C:$C,Реестр!$I:$I,H$3,Реестр!$E:$E,$C32,Реестр!$H:$H,"факт")*IF($A32="-",-1,1) -> 41218 | I32: =SUMIFS(Реестр!$C:$C,Реестр!$I:$I,I$3,Реестр!$E:$E,$C32,Реестр!$H:$H,"факт")*IF($A32="-",-1,1) -> 34979 | J32: =SUMIFS(Реестр!$C:$C,Реестр!$I:$I,J$3,Реестр!$E:$E,$C32,Реестр!$H:$H,"факт")*IF($A32="-",-1,1) -> 0 | K32: =SUMIFS(Реестр!$C:$C,Реестр!$I:$I,K$3,Реестр!$E:$E,$C32,Реестр!$H:$H,"факт")*IF($A32="-",-1,1) -> 0 | L32: =SUMIFS(Реестр!$C:$C,Реестр!$I:$I,L$3,Реестр!$E:$E,$C32,Реестр!$H:$H,"факт")*IF($A32="-",-1,1) -> 0 | M32: =SUMIFS(Реестр!$C:$C,Реестр!$I:$I,M$3,Реестр!$E:$E,$C32,Реестр!$H:$H,"факт")*IF($A32="-",-1,1) -> 0 | N32: =SUMIFS(Реестр!$C:$C,Реестр!$I:$I,N$3,Реестр!$E:$E,$C32,Реестр!$H:$H,"факт")*IF($A32="-",-1,1) -> 0 | O32: =SUMIFS(Реестр!$C:$C,Реестр!$I:$I,O$3,Реестр!$E:$E,$C32,Реестр!$H:$H,"факт")*IF($A32="-",-1,1) -> 0 | P32: 232952
B33: 12600 | C33: Административные расходы | D33: =SUM(D34:D42) -> 364319 | E33: =SUM(E34:E42) -> 370017 | F33: 302349 | G33: 396876 | H33: 374236 | I33: 311182 | J33: 0 | K33: 0 | L33: 0 | M33: 0 | N33: 0 | O33: 0 | P33: 2118979
A34: - | B34: 12601 | C34: Аренда офиса | D34: =SUMIFS(Реестр!$C:$C,Реестр!$I:$I,D$3,Реестр!$E:$E,$C34,Реестр!$H:$H,"факт")*IF($A34="-",-1,1) -> 41222 | E34: =SUMIFS(Реестр!$C:$C,Реестр!$I:$I,E$3,Реестр!$E:$E,$C34,Реестр!$H:$H,"факт")*IF($A34="-",-1,1) -> 16497 | F34: =SUMIFS(Реестр!$C:$C,Реестр!$I:$I,F$3,Реестр!$E:$E,$C34,Реестр!$H:$H,"факт")*IF($A34="-",-1,1) -> 50868 | G34: =SUMIFS(Реестр!$C:$C,Реестр!$I:$I,G$3,Реестр!$E:$E,$C34,Реестр!$H:$H,"факт")*IF($A34="-",-1,1) -> 28877 | H34: =SUMIFS(Реестр!$C:$C,Реестр!$I:$I,H$3,Реестр!$E:$E,$C34,Реестр!$H:$H,"факт")*IF($A34="-",-1,1) -> 58455 | I34: =SUMIFS(Реестр!$C:$C,Реестр!$I:$I,I$3,Реестр!$E:$E,$C34,Реестр!$H:$H,"факт")*IF($A34="-",-1,1) -> 25302 | J34: =SUMIFS(Реестр!$C:$C,Реестр!$I:$I,J$3,Реестр!$E:$E,$C34,Реестр!$H:$H,"факт")*IF($A34="-",-1,1) -> 0 | K34: =SUMIFS(Реестр!$C:$C,Реестр!$I:$I,K$3,Реестр!$E:$E,$C34,Реестр!$H:$H,"факт")*IF($A34="-",-1,1) -> 0 | L34: =SUMIFS(Реестр!$C:$C,Реестр!$I:$I,L$3,Реестр!$E:$E,$C34,Реестр!$H:$H,"факт")*IF($A34="-",-1,1) -> 0 | M34: =SUMIFS(Реестр!$C:$C,Реестр!$I:$I,M$3,Реестр!$E:$E,$C34,Реестр!$H:$H,"факт")*IF($A34="-",-1,1) -> 0 | N34: =SUMIFS(Реестр!$C:$C,Реестр!$I:$I,N$3,Реестр!$E:$E,$C34,Реестр!$H:$H,"факт")*IF($A34="-",-1,1) -> 0 | O34: =SUMIFS(Реестр!$C:$C,Реестр!$I:$I,O$3,Реестр!$E:$E,$C34,Реестр!$H:$H,"факт")*IF($A34="-",-1,1) -> 0 | P34: 221221
A35: - | B35: 12602 | C35: Банковские услуги | D35: =SUMIFS(Реестр!$C:$C,Реестр!$I:$I,D$3,Реестр!$E:$E,$C35,Реестр!$H:$H,"факт")*IF($A35="-",-1,1) -> 19932 | E35: =SUMIFS(Реестр!$C:$C,Реестр!$I:$I,E$3,Реестр!$E:$E,$C35,Реестр!$H:$H,"факт")*IF($A35="-",-1,1) -> 51141 | F35: =SUMIFS(Реестр!$C:$C,Реестр!$I:$I,F$3,Реестр!$E:$E,$C35,Реестр!$H:$H,"факт")*IF($A35="-",-1,1) -> 13090 | G35: =SUMIFS(Реестр!$C:$C,Реестр!$I:$I,G$3,Реестр!$E:$E,$C35,Реестр!$H:$H,"факт")*IF($A35="-",-1,1) -> 54316 | H35: =SUMIFS(Реестр!$C:$C,Реестр!$I:$I,H$3,Реестр!$E:$E,$C35,Реестр!$H:$H,"факт")*IF($A35="-",-1,1) -> 13859 | I35: =SUMIFS(Реестр!$C:$C,Реестр!$I:$I,I$3,Реестр!$E:$E,$C35,Реестр!$H:$H,"факт")*IF($A35="-",-1,1) -> 34912 | J35: =SUMIFS(Реестр!$C:$C,Реестр!$I:$I,J$3,Реестр!$E:$E,$C35,Реестр!$H:$H,"факт")*IF($A35="-",-1,1) -> 0 | K35: =SUMIFS(Реестр!$C:$C,Реестр!$I:$I,K$3,Реестр!$E:$E,$C35,Реестр!$H:$H,"факт")*IF($A35="-",-1,1) -> 0 | L35: =SUMIFS(Реестр!$C:$C,Реестр!$I:$I,L$3,Реестр!$E:$E,$C35,Реестр!$H:$H,"факт")*IF($A35="-",-1,1) -> 0 | M35: =SUMIFS(Реестр!$C:$C,Реестр!$I:$I,M$3,Реестр!$E:$E,$C35,Реестр!$H:$H,"факт")*IF($A35="-",-1,1) -> 0 | N35: =SUMIFS(Реестр!$C:$C,Реестр!$I:$I,N$3,Реестр!$E:$E,$C35,Реестр!$H:$H,"факт")*IF($A35="-",-1,1) -> 0 | O35: =SUMIFS(Реестр!$C:$C,Реестр!$I:$I,O$3,Реестр!$E:$E,$C35,Реестр!$H:$H,"факт")*IF($A35="-",-1,1) -> 0 | P35: 187250
A36: - | B36: 12603 | C36: Проценты по кредитам | D36: =SUMIFS(Реестр!$C:$C,Реестр!$I:$I,D$3,Реестр!$E:$E,$C36,Реестр!$H:$H,"факт")*IF($A36="-",-1,1) -> 80000 | E36: =SUMIFS(Реестр!$C:$C,Реестр!$I:$I,E$3,Реестр!$E:$E,$C36,Реестр!$H:$H,"факт")*IF($A36="-",-1,1) -> 75000 | F36: =SUMIFS(Реестр!$C:$C,Реестр!$I:$I,F$3,Реестр!$E:$E,$C36,Реестр!$H:$H,"факт")*IF($A36="-",-1,1) -> 70000 | G36: =SUMIFS(Реестр!$C:$C,Реестр!$I:$I,G$3,Реестр!$E:$E,$C36,Реестр!$H:$H,"факт")*IF($A36="-",-1,1) -> 65000 | H36: =SUMIFS(Реестр!$C:$C,Реестр!$I:$I,H$3,Реестр!$E:$E,$C36,Реестр!$H:$H,"факт")*IF($A36="-",-1,1) -> 60000 | I36: =SUMIFS(Реестр!$C:$C,Реестр!$I:$I,I$3,Реестр!$E:$E,$C36,Реестр!$H:$H,"факт")*IF($A36="-",-1,1) -> 50000 | J36: =SUMIFS(Реестр!$C:$C,Реестр!$I:$I,J$3,Реестр!$E:$E,$C36,Реестр!$H:$H,"факт")*IF($A36="-",-1,1) -> 0 | K36: =SUMIFS(Реестр!$C:$C,Реестр!$I:$I,K$3,Реестр!$E:$E,$C36,Реестр!$H:$H,"факт")*IF($A36="-",-1,1) -> 0 | L36: =SUMIFS(Реестр!$C:$C,Реестр!$I:$I,L$3,Реестр!$E:$E,$C36,Реестр!$H:$H,"факт")*IF($A36="-",-1,1) -> 0 | M36: =SUMIFS(Реестр!$C:$C,Реестр!$I:$I,M$3,Реестр!$E:$E,$C36,Реестр!$H:$H,"факт")*IF($A36="-",-1,1) -> 0 | N36: =SUMIFS(Реестр!$C:$C,Реестр!$I:$I,N$3,Реестр!$E:$E,$C36,Реестр!$H:$H,"факт")*IF($A36="-",-1,1) -> 0 | O36: =SUMIFS(Реестр!$C:$C,Реестр!$I:$I,O$3,Реестр!$E:$E,$C36,Реестр!$H:$H,"факт")*IF($A36="-",-1,1) -> 0 | P36: =SUM(D36:O36) -> 400000
A37: - | B37: 12604 | C37: Услуги связи | D37: =SUMIFS(Реестр!$C:$C,Реестр!$I:$I,D$3,Реестр!$E:$E,$C37,Реестр!$H:$H,"факт")*IF($A37="-",-1,1) -> 31429 | E37: =SUMIFS(Реестр!$C:$C,Реестр!$I:$I,E$3,Реестр!$E:$E,$C37,Реестр!$H:$H,"факт")*IF($A37="-",-1,1) -> 45295 | F37: =SUMIFS(Реестр!$C:$C,Реестр!$I:$I,F$3,Реестр!$E:$E,$C37,Реестр!$H:$H,"факт")*IF($A37="-",-1,1) -> 17110 | G37: =SUMIFS(Реестр!$C:$C,Реестр!$I:$I,G$3,Реестр!$E:$E,$C37,Реестр!$H:$H,"факт")*IF($A37="-",-1,1) -> 56430 | H37: =SUMIFS(Реестр!$C:$C,Реестр!$I:$I,H$3,Реестр!$E:$E,$C37,Реестр!$H:$H,"факт")*IF($A37="-",-1,1) -> 56972 | I37: =SUMIFS(Реестр!$C:$C,Реестр!$I:$I,I$3,Реестр!$E:$E,$C37,Реестр!$H:$H,"факт")*IF($A37="-",-1,1) -> 45034 | J37: =SUMIFS(Реестр!$C:$C,Реестр!$I:$I,J$3,Реестр!$E:$E,$C37,Реестр!$H:$H,"факт")*IF($A37="-",-1,1) -> 0 | K37: =SUMIFS(Реестр!$C:$C,Реестр!$I:$I,K$3,Реестр!$E:$E,$C37,Реестр!$H:$H,"факт")*IF($A37="-",-1,1) -> 0 | L37: =SUMIFS(Реестр!$C:$C,Реестр!$I:$I,L$3,Реестр!$E:$E,$C37,Реестр!$H:$H,"факт")*IF($A37="-",-1,1) -> 0 | M37: =SUMIFS(Реестр!$C:$C,Реестр!$I:$I,M$3,Реестр!$E:$E,$C37,Реестр!$H:$H,"факт")*IF($A37="-",-1,1) -> 0 | N37: =SUMIFS(Реестр!$C:$C,Реестр!$I:$I,N$3,Реестр!$E:$E,$C37,Реестр!$H:$H,"факт")*IF($A37="-",-1,1) -> 0 | O37: =SUMIFS(Реестр!$C:$C,Реестр!$I:$I,O$3,Реестр!$E:$E,$C37,Реестр!$H:$H,"факт")*IF($A37="-",-1,1) -> 0 | P37: 252270
A38: - | B38: 12605 | C38: Юридические и информационные услуги | D38: =SUMIFS(Реестр!$C:$C,Реестр!$I:$I,D$3,Реестр!$E:$E,$C38,Реестр!$H:$H,"факт")*IF($A38="-",-1,1) -> 57331 | E38: =SUMIFS(Реестр!$C:$C,Реестр!$I:$I,E$3,Реестр!$E:$E,$C38,Реестр!$H:$H,"факт")*IF($A38="-",-1,1) -> 49870 | F38: =SUMIFS(Реестр!$C:$C,Реестр!$I:$I,F$3,Реестр!$E:$E,$C38,Реестр!$H:$H,"факт")*IF($A38="-",-1,1) -> 36598 | G38: =SUMIFS(Реестр!$C:$C,Реестр!$I:$I,G$3,Реестр!$E:$E,$C38,Реестр!$H:$H,"факт")*IF($A38="-",-1,1) -> 28836 | H38: =SUMIFS(Реестр!$C:$C,Реестр!$I:$I,H$3,Реестр!$E:$E,$C38,Реестр!$H:$H,"факт")*IF($A38="-",-1,1) -> 54057 | I38: =SUMIFS(Реестр!$C:$C,Реестр!$I:$I,I$3,Реестр!$E:$E,$C38,Реестр!$H:$H,"факт")*IF($A38="-",-1,1) -> 38800 | J38: =SUMIFS(Реестр!$C:$C,Реестр!$I:$I,J$3,Реестр!$E:$E,$C38,Реестр!$H:$H,"факт")*IF($A38="-",-1,1) -> 0 | K38: =SUMIFS(Реестр!$C:$C,Реестр!$I:$I,K$3,Реестр!$E:$E,$C38,Реестр!$H:$H,"факт")*IF($A38="-",-1,1) -> 0 | L38: =SUMIFS(Реестр!$C:$C,Реестр!$I:$I,L$3,Реестр!$E:$E,$C38,Реестр!$H:$H,"факт")*IF($A38="-",-1,1) -> 0 | M38: =SUMIFS(Реестр!$C:$C,Реестр!$I:$I,M$3,Реестр!$E:$E,$C38,Реестр!$H:$H,"факт")*IF($A38="-",-1,1) -> 0 | N38: =SUMIFS(Реестр!$C:$C,Реестр!$I:$I,N$3,Реестр!$E:$E,$C38,Реестр!$H:$H,"факт")*IF($A38="-",-1,1) -> 0 | O38: =SUMIFS(Реестр!$C:$C,Реестр!$I:$I,O$3,Реестр!$E:$E,$C38,Реестр!$H:$H,"факт")*IF($A38="-",-1,1) -> 0 | P38: 265492
A39: - | B39: 12606 | C39: Канцелярские товары | D39: =SUMIFS(Реестр!$C:$C,Реестр!$I:$I,D$3,Реестр!$E:$E,$C39,Реестр!$H:$H,"факт")*IF($A39="-",-1,1) -> 32777 | E39: =SUMIFS(Реестр!$C:$C,Реестр!$I:$I,E$3,Реестр!$E:$E,$C39,Реестр!$H:$H,"факт")*IF($A39="-",-1,1) -> 22884 | F39: =SUMIFS(Реестр!$C:$C,Реестр!$I:$I,F$3,Реестр!$E:$E,$C39,Реестр!$H:$H,"факт")*IF($A39="-",-1,1) -> 23871 | G39: =SUMIFS(Реестр!$C:$C,Реестр!$I:$I,G$3,Реестр!$E:$E,$C39,Реестр!$H:$H,"факт")*IF($A39="-",-1,1) -> 28215 | H39: =SUMIFS(Реестр!$C:$C,Реестр!$I:$I,H$3,Реестр!$E:$E,$C39,Реестр!$H:$H,"факт")*IF($A39="-",-1,1) -> 35683 | I39: =SUMIFS(Реестр!$C:$C,Реестр!$I:$I,I$3,Реестр!$E:$E,$C39,Реестр!$H:$H,"факт")*IF($A39="-",-1,1) -> 14714 | J39: =SUMIFS(Реестр!$C:$C,Реестр!$I:$I,J$3,Реестр!$E:$E,$C39,Реестр!$H:$H,"факт")*IF($A39="-",-1,1) -> 0 | K39: =SUMIFS(Реестр!$C:$C,Реестр!$I:$I,K$3,Реестр!$E:$E,$C39,Реестр!$H:$H,"факт")*IF($A39="-",-1,1) -> 0 | L39: =SUMIFS(Реестр!$C:$C,Реестр!$I:$I,L$3,Реестр!$E:$E,$C39,Реестр!$H:$H,"факт")*IF($A39="-",-1,1) -> 0 | M39: =SUMIFS(Реестр!$C:$C,Реестр!$I:$I,M$3,Реестр!$E:$E,$C39,Реестр!$H:$H,"факт")*IF($A39="-",-1,1) -> 0 | N39: =SUMIFS(Реестр!$C:$C,Реестр!$I:$I,N$3,Реестр!$E:$E,$C39,Реестр!$H:$H,"факт")*IF($A39="-",-1,1) -> 0 | O39: =SUMIFS(Реестр!$C:$C,Реестр!$I:$I,O$3,Реестр!$E:$E,$C39,Реестр!$H:$H,"факт")*IF($A39="-",-1,1) -> 0 | P39: 158144
A40: - | B40: 12607 | C40: Представительские расходы | D40: =SUMIFS(Реестр!$C:$C,Реестр!$I:$I,D$3,Реестр!$E:$E,$C40,Реестр!$H:$H,"факт")*IF($A40="-",-1,1) -> 26167 | E40: =SUMIFS(Реестр!$C:$C,Реестр!$I:$I,E$3,Реестр!$E:$E,$C40,Реестр!$H:$H,"факт")*IF($A40="-",-1,1) -> 24115 | F40: =SUMIFS(Реестр!$C:$C,Реестр!$I:$I,F$3,Реестр!$E:$E,$C40,Реестр!$H:$H,"факт")*IF($A40="-",-1,1) -> 13278 | G40: =SUMIFS(Реестр!$C:$C,Реестр!$I:$I,G$3,Реестр!$E:$E,$C40,Реестр!$H:$H,"факт")*IF($A40="-",-1,1) -> 36448 | H40: =SUMIFS(Реестр!$C:$C,Реестр!$I:$I,H$3,Реестр!$E:$E,$C40,Реестр!$H:$H,"факт")*IF($A40="-",-1,1) -> 29518 | I40: =SUMIFS(Реестр!$C:$C,Реестр!$I:$I,I$3,Реестр!$E:$E,$C40,Реестр!$H:$H,"факт")*IF($A40="-",-1,1) -> 55518 | J40: =SUMIFS(Реестр!$C:$C,Реестр!$I:$I,J$3,Реестр!$E:$E,$C40,Реестр!$H:$H,"факт")*IF($A40="-",-1,1) -> 0 | K40: =SUMIFS(Реестр!$C:$C,Реестр!$I:$I,K$3,Реестр!$E:$E,$C40,Реестр!$H:$H,"факт")*IF($A40="-",-1,1) -> 0 | L40: =SUMIFS(Реестр!$C:$C,Реестр!$I:$I,L$3,Реестр!$E:$E,$C40,Реестр!$H:$H,"факт")*IF($A40="-",-1,1) -> 0 | M40: =SUMIFS(Реестр!$C:$C,Реестр!$I:$I,M$3,Реестр!$E:$E,$C40,Реестр!$H:$H,"факт")*IF($A40="-",-1,1) -> 0 | N40: =SUMIFS(Реестр!$C:$C,Реестр!$I:$I,N$3,Реестр!$E:$E,$C40,Реестр!$H:$H,"факт")*IF($A40="-",-1,1) -> 0 | O40: =SUMIFS(Реестр!$C:$C,Реестр!$I:$I,O$3,Реестр!$E:$E,$C40,Реестр!$H:$H,"факт")*IF($A40="-",-1,1) -> 0 | P40: 185044
A41: - | B41: 12608 | C41: Командировочные расходы | D41: =SUMIFS(Реестр!$C:$C,Реестр!$I:$I,D$3,Реестр!$E:$E,$C41,Реестр!$H:$H,"факт")*IF($A41="-",-1,1) -> 35452 | E41: =SUMIFS(Реестр!$C:$C,Реестр!$I:$I,E$3,Реестр!$E:$E,$C41,Реестр!$H:$H,"факт")*IF($A41="-",-1,1) -> 35217 | F41: =SUMIFS(Реестр!$C:$C,Реестр!$I:$I,F$3,Реестр!$E:$E,$C41,Реестр!$H:$H,"факт")*IF($A41="-",-1,1) -> 17664 | G41: =SUMIFS(Реестр!$C:$C,Реестр!$I:$I,G$3,Реестр!$E:$E,$C41,Реестр!$H:$H,"факт")*IF($A41="-",-1,1) -> 57207 | H41: =SUMIFS(Реестр!$C:$C,Реестр!$I:$I,H$3,Реестр!$E:$E,$C41,Реестр!$H:$H,"факт")*IF($A41="-",-1,1) -> 50431 | I41: =SUMIFS(Реестр!$C:$C,Реестр!$I:$I,I$3,Реестр!$E:$E,$C41,Реестр!$H:$H,"факт")*IF($A41="-",-1,1) -> 27609 | J41: =SUMIFS(Реестр!$C:$C,Реестр!$I:$I,J$3,Реестр!$E:$E,$C41,Реестр!$H:$H,"факт")*IF($A41="-",-1,1) -> 0 | K41: =SUMIFS(Реестр!$C:$C,Реестр!$I:$I,K$3,Реестр!$E:$E,$C41,Реестр!$H:$H,"факт")*IF($A41="-",-1,1) -> 0 | L41: =SUMIFS(Реестр!$C:$C,Реестр!$I:$I,L$3,Реестр!$E:$E,$C41,Реестр!$H:$H,"факт")*IF($A41="-",-1,1) -> 0 | M41: =SUMIFS(Реестр!$C:$C,Реестр!$I:$I,M$3,Реестр!$E:$E,$C41,Реестр!$H:$H,"факт")*IF($A41="-",-1,1) -> 0 | N41: =SUMIFS(Реестр!$C:$C,Реестр!$I:$I,N$3,Реестр!$E:$E,$C41,Реестр!$H:$H,"факт")*IF($A41="-",-1,1) -> 0 | O41: =SUMIFS(Реестр!$C:$C,Реестр!$I:$I,O$3,Реестр!$E:$E,$C41,Реестр!$H:$H,"факт")*IF($A41="-",-1,1) -> 0 | P41: 223580
A42: - | B42: 12609 | C42: Прочие операционные расходы | D42: =SUMIFS(Реестр!$C:$C,Реестр!$I:$I,D$3,Реестр!$E:$E,$C42,Реестр!$H:$H,"факт")*IF($A42="-",-1,1) -> 40009 | E42: =SUMIFS(Реестр!$C:$C,Реестр!$I:$I,E$3,Реестр!$E:$E,$C42,Реестр!$H:$H,"факт")*IF($A42="-",-1,1) -> 49998 | F42: =SUMIFS(Реестр!$C:$C,Реестр!$I:$I,F$3,Реестр!$E:$E,$C42,Реестр!$H:$H,"факт")*IF($A42="-",-1,1) -> 59870 | G42: =SUMIFS(Реестр!$C:$C,Реестр!$I:$I,G$3,Реестр!$E:$E,$C42,Реестр!$H:$H,"факт")*IF($A42="-",-1,1) -> 41547 | H42: =SUMIFS(Реестр!$C:$C,Реестр!$I:$I,H$3,Реестр!$E:$E,$C42,Реестр!$H:$H,"факт")*IF($A42="-",-1,1) -> 15261 | I42: =SUMIFS(Реестр!$C:$C,Реестр!$I:$I,I$3,Реестр!$E:$E,$C42,Реестр!$H:$H,"факт")*IF($A42="-",-1,1) -> 19293 | J42: =SUMIFS(Реестр!$C:$C,Реестр!$I:$I,J$3,Реестр!$E:$E,$C42,Реестр!$H:$H,"факт")*IF($A42="-",-1,1) -> 0 | K42: =SUMIFS(Реестр!$C:$C,Реестр!$I:$I,K$3,Реестр!$E:$E,$C42,Реестр!$H:$H,"факт")*IF($A42="-",-1,1) -> 0 | L42: =SUMIFS(Реестр!$C:$C,Реестр!$I:$I,L$3,Реестр!$E:$E,$C42,Реестр!$H:$H,"факт")*IF($A42="-",-1,1) -> 0 | M42: =SUMIFS(Реестр!$C:$C,Реестр!$I:$I,M$3,Реестр!$E:$E,$C42,Реестр!$H:$H,"факт")*IF($A42="-",-1,1) -> 0 | N42: =SUMIFS(Реестр!$C:$C,Реестр!$I:$I,N$3,Реестр!$E:$E,$C42,Реестр!$H:$H,"факт")*IF($A42="-",-1,1) -> 0 | O42: =SUMIFS(Реестр!$C:$C,Реестр!$I:$I,O$3,Реестр!$E:$E,$C42,Реестр!$H:$H,"факт")*IF($A42="-",-1,1) -> 0 | P42: 225978
B43: 19999 | C43: Сальдо по операционной деятельности | D43: =D5-D8 -> 966471.66 | E43: 2030637.46 | F43: 1953395.16 | G43: 5907713.59 | H43: 4996300.32 | I43: 2466269.14 | J43: 0 | K43: 0 | L43: 0 | M43: 0 | N43: 0 | O43: 0 | P43: 18320787.33
B45: финансовая деятельность
B46: 21000 | C46: Поступления от финансовой деятельности | D46: =SUM(D47:D50) -> 770000 | E46: =SUM(E47:E50) -> 770000 | F46: 770000 | G46: 770000 | H46: 770000 | I46: 770000 | J46: 0 | K46: 0 | L46: 0 | M46: 0 | N46: 0 | O46: 0 | P46: =SUM(D46:O46) -> 4620000
A47: + | B47: 21001 | C47: Поступления от акционеров | D47: =SUMIFS(Реестр!$C:$C,Реестр!$I:$I,D$3,Реестр!$E:$E,$C47,Реестр!$H:$H,"факт")*IF($A47="-",-1,1) -> 0 | E47: =SUMIFS(Реестр!$C:$C,Реестр!$I:$I,E$3,Реестр!$E:$E,$C47,Реестр!$H:$H,"факт")*IF($A47="-",-1,1) -> 0 | F47: =SUMIFS(Реестр!$C:$C,Реестр!$I:$I,F$3,Реестр!$E:$E,$C47,Реестр!$H:$H,"факт")*IF($A47="-",-1,1) -> 0 | G47: =SUMIFS(Реестр!$C:$C,Реестр!$I:$I,G$3,Реестр!$E:$E,$C47,Реестр!$H:$H,"факт")*IF($A47="-",-1,1) -> 0 | H47: =SUMIFS(Реестр!$C:$C,Реестр!$I:$I,H$3,Реестр!$E:$E,$C47,Реестр!$H:$H,"факт")*IF($A47="-",-1,1) -> 0 | I47: =SUMIFS(Реестр!$C:$C,Реестр!$I:$I,I$3,Реестр!$E:$E,$C47,Реестр!$H:$H,"факт")*IF($A47="-",-1,1) -> 0 | J47: =SUMIFS(Реестр!$C:$C,Реестр!$I:$I,J$3,Реестр!$E:$E,$C47,Реестр!$H:$H,"факт")*IF($A47="-",-1,1) -> 0 | K47: =SUMIFS(Реестр!$C:$C,Реестр!$I:$I,K$3,Реестр!$E:$E,$C47,Реестр!$H:$H,"факт")*IF($A47="-",-1,1) -> 0 | L47: =SUMIFS(Реестр!$C:$C,Реестр!$I:$I,L$3,Реестр!$E:$E,$C47,Реестр!$H:$H,"факт")*IF($A47="-",-1,1) -> 0 | M47: =SUMIFS(Реестр!$C:$C,Реестр!$I:$I,M$3,Реестр!$E:$E,$C47,Реестр!$H:$H,"факт")*IF($A47="-",-1,1) -> 0 | N47: =SUMIFS(Реестр!$C:$C,Реестр!$I:$I,N$3,Реестр!$E:$E,$C47,Реестр!$H:$H,"факт")*IF($A47="-",-1,1) -> 0 | O47: =SUMIFS(Реестр!$C:$C,Реестр!$I:$I,O$3,Реестр!$E:$E,$C47,Реестр!$H:$H,"факт")*IF($A47="-",-1,1) -> 0 | P47: 0
A48: + | B48: 21002 | C48: Получение банковских кредитов | D48: =SUMIFS(Реестр!$C:$C,Реестр!$I:$I,D$3,Реестр!$E:$E,$C48,Реестр!$H:$H,"факт")*IF($A48="-",-1,1) -> 0 | E48: =SUMIFS(Реестр!$C:$C,Реестр!$I:$I,E$3,Реестр!$E:$E,$C48,Реестр!$H:$H,"факт")*IF($A48="-",-1,1) -> 0 | F48: =SUMIFS(Реестр!$C:$C,Реестр!$I:$I,F$3,Реестр!$E:$E,$C48,Реестр!$H:$H,"факт")*IF($A48="-",-1,1) -> 0 | G48: =SUMIFS(Реестр!$C:$C,Реестр!$I:$I,G$3,Реестр!$E:$E,$C48,Реестр!$H:$H,"факт")*IF($A48="-",-1,1) -> 0 | H48: =SUMIFS(Реестр!$C:$C,Реестр!$I:$I,H$3,Реестр!$E:$E,$C48,Реестр!$H:$H,"факт")*IF($A48="-",-1,1) -> 0 | I48: =SUMIFS(Реестр!$C:$C,Реестр!$I:$I,I$3,Реестр!$E:$E,$C48,Реестр!$H:$H,"факт")*IF($A48="-",-1,1) -> 0 | J48: =SUMIFS(Реестр!$C:$C,Реестр!$I:$I,J$3,Реестр!$E:$E,$C48,Реестр!$H:$H,"факт")*IF($A48="-",-1,1) -> 0 | K48: =SUMIFS(Реестр!$C:$C,Реестр!$I:$I,K$3,Реестр!$E:$E,$C48,Реестр!$H:$H,"факт")*IF($A48="-",-1,1) -> 0 | L48: =SUMIFS(Реестр!$C:$C,Реестр!$I:$I,L$3,Реестр!$E:$E,$C48,Реестр!$H:$H,"факт")*IF($A48="-",-1,1) -> 0 | M48: =SUMIFS(Реестр!$C:$C,Реестр!$I:$I,M$3,Реестр!$E:$E,$C48,Реестр!$H:$H,"факт")*IF($A48="-",-1,1) -> 0 | N48: =SUMIFS(Реестр!$C:$C,Реестр!$I:$I,N$3,Реестр!$E:$E,$C48,Реестр!$H:$H,"факт")*IF($A48="-",-1,1) -> 0 | O48: =SUMIFS(Реестр!$C:$C,Реестр!$I:$I,O$3,Реестр!$E:$E,$C48,Реестр!$H:$H,"факт")*IF($A48="-",-1,1) -> 0 | P48: 0
A49: + | B49: 21003 | C49: Получение займов | D49: =SUMIFS(Реестр!$C:$C,Реестр!$I:$I,D$3,Реестр!$E:$E,$C49,Реестр!$H:$H,"факт")*IF($A49="-",-1,1) -> 770000 | E49: =SUMIFS(Реестр!$C:$C,Реестр!$I:$I,E$3,Реестр!$E:$E,$C49,Реестр!$H:$H,"факт")*IF($A49="-",-1,1) -> 770000 | F49: =SUMIFS(Реестр!$C:$C,Реестр!$I:$I,F$3,Реестр!$E:$E,$C49,Реестр!$H:$H,"факт")*IF($A49="-",-1,1) -> 770000 | G49: =SUMIFS(Реестр!$C:$C,Реестр!$I:$I,G$3,Реестр!$E:$E,$C49,Реестр!$H:$H,"факт")*IF($A49="-",-1,1) -> 770000 | H49: =SUMIFS(Реестр!$C:$C,Реестр!$I:$I,H$3,Реестр!$E:$E,$C49,Реестр!$H:$H,"факт")*IF($A49="-",-1,1) -> 770000 | I49: =SUMIFS(Реестр!$C:$C,Реестр!$I:$I,I$3,Реестр!$E:$E,$C49,Реестр!$H:$H,"факт")*IF($A49="-",-1,1) -> 770000 | J49: =SUMIFS(Реестр!$C:$C,Реестр!$I:$I,J$3,Реестр!$E:$E,$C49,Реестр!$H:$H,"факт")*IF($A49="-",-1,1) -> 0 | K49: =SUMIFS(Реестр!$C:$C,Реестр!$I:$I,K$3,Реестр!$E:$E,$C49,Реестр!$H:$H,"факт")*IF($A49="-",-1,1) -> 0 | L49: =SUMIFS(Реестр!$C:$C,Реестр!$I:$I,L$3,Реестр!$E:$E,$C49,Реестр!$H:$H,"факт")*IF($A49="-",-1,1) -> 0 | M49: =SUMIFS(Реестр!$C:$C,Реестр!$I:$I,M$3,Реестр!$E:$E,$C49,Реестр!$H:$H,"факт")*IF($A49="-",-1,1) -> 0 | N49: =SUMIFS(Реестр!$C:$C,Реестр!$I:$I,N$3,Реестр!$E:$E,$C49,Реестр!$H:$H,"факт")*IF($A49="-",-1,1) -> 0 | O49: =SUMIFS(Реестр!$C:$C,Реестр!$I:$I,O$3,Реестр!$E:$E,$C49,Реестр!$H:$H,"факт")*IF($A49="-",-1,1) -> 0 | P49: 4620000
A50: + | B50: 21004 | C50: Прочие поступления от финансовой деятельности | D50: =SUMIFS(Реестр!$C:$C,Реестр!$I:$I,D$3,Реестр!$E:$E,$C50,Реестр!$H:$H,"факт")*IF($A50="-",-1,1) -> 0 | E50: =SUMIFS(Реестр!$C:$C,Реестр!$I:$I,E$3,Реестр!$E:$E,$C50,Реестр!$H:$H,"факт")*IF($A50="-",-1,1) -> 0 | F50: =SUMIFS(Реестр!$C:$C,Реестр!$I:$I,F$3,Реестр!$E:$E,$C50,Реестр!$H:$H,"факт")*IF($A50="-",-1,1) -> 0 | G50: =SUMIFS(Реестр!$C:$C,Реестр!$I:$I,G$3,Реестр!$E:$E,$C50,Реестр!$H:$H,"факт")*IF($A50="-",-1,1) -> 0 | H50: =SUMIFS(Реестр!$C:$C,Реестр!$I:$I,H$3,Реестр!$E:$E,$C50,Реестр!$H:$H,"факт")*IF($A50="-",-1,1) -> 0 | I50: =SUMIFS(Реестр!$C:$C,Реестр!$I:$I,I$3,Реестр!$E:$E,$C50,Реестр!$H:$H,"факт")*IF($A50="-",-1,1) -> 0 | J50: =SUMIFS(Реестр!$C:$C,Реестр!$I:$I,J$3,Реестр!$E:$E,$C50,Реестр!$H:$H,"факт")*IF($A50="-",-1,1) -> 0 | K50: =SUMIFS(Реестр!$C:$C,Реестр!$I:$I,K$3,Реестр!$E:$E,$C50,Реестр!$H:$H,"факт")*IF($A50="-",-1,1) -> 0 | L50: =SUMIFS(Реестр!$C:$C,Реестр!$I:$I,L$3,Реестр!$E:$E,$C50,Реестр!$H:$H,"факт")*IF($A50="-",-1,1) -> 0 | M50: =SUMIFS(Реестр!$C:$C,Реестр!$I:$I,M$3,Реестр!$E:$E,$C50,Реестр!$H:$H,"факт")*IF($A50="-",-1,1) -> 0 | N50: =SUMIFS(Реестр!$C:$C,Реестр!$I:$I,N$3,Реестр!$E:$E,$C50,Реестр!$H:$H,"факт")*IF($A50="-",-1,1) -> 0 | O50: =SUMIFS(Реестр!$C:$C,Реестр!$I:$I,O$3,Реестр!$E:$E,$C50,Реестр!$H:$H,"факт")*IF($A50="-",-1,1) -> 0 | P50: 0
B51: 22000 | C51: Платежи по финансовой деятельности | D51: =SUM(D52:D55) -> 750000 | E51: =SUM(E52:E55) -> 1750000 | F51: 2750000 | G51: 3750000 | H51: 3250000 | I51: 2250000 | J51: 0 | K51: 0 | L51: 0 | M51: 0 | N51: 0 | O51: 0 | P51: 14500000
A52: - | B52: 22001 | C52: Платежи акционерам | D52: =SUMIFS(Реестр!$C:$C,Реестр!$I:$I,D$3,Реестр!$E:$E,$C52,Реестр!$H:$H,"факт")*IF($A52="-",-1,1) -> 500000 | E52: =SUMIFS(Реестр!$C:$C,Реестр!$I:$I,E$3,Реестр!$E:$E,$C52,Реестр!$H:$H,"факт")*IF($A52="-",-1,1) -> 1500000 | F52: =SUMIFS(Реестр!$C:$C,Реестр!$I:$I,F$3,Реестр!$E:$E,$C52,Реестр!$H:$H,"факт")*IF($A52="-",-1,1) -> 2500000 | G52: =SUMIFS(Реестр!$C:$C,Реестр!$I:$I,G$3,Реестр!$E:$E,$C52,Реестр!$H:$H,"факт")*IF($A52="-",-1,1) -> 3500000 | H52: =SUMIFS(Реестр!$C:$C,Реестр!$I:$I,H$3,Реестр!$E:$E,$C52,Реестр!$H:$H,"факт")*IF($A52="-",-1,1) -> 3000000 | I52: =SUMIFS(Реестр!$C:$C,Реестр!$I:$I,I$3,Реестр!$E:$E,$C52,Реестр!$H:$H,"факт")*IF($A52="-",-1,1) -> 2000000 | J52: =SUMIFS(Реестр!$C:$C,Реестр!$I:$I,J$3,Реестр!$E:$E,$C52,Реестр!$H:$H,"факт")*IF($A52="-",-1,1) -> 0 | K52: =SUMIFS(Реестр!$C:$C,Реестр!$I:$I,K$3,Реестр!$E:$E,$C52,Реестр!$H:$H,"факт")*IF($A52="-",-1,1) -> 0 | L52: =SUMIFS(Реестр!$C:$C,Реестр!$I:$I,L$3,Реестр!$E:$E,$C52,Реестр!$H:$H,"факт")*IF($A52="-",-1,1) -> 0 | M52: =SUMIFS(Реестр!$C:$C,Реестр!$I:$I,M$3,Реестр!$E:$E,$C52,Реестр!$H:$H,"факт")*IF($A52="-",-1,1) -> 0 | N52: =SUMIFS(Реестр!$C:$C,Реестр!$I:$I,N$3,Реестр!$E:$E,$C52,Реестр!$H:$H,"факт")*IF($A52="-",-1,1) -> 0 | O52: =SUMIFS(Реестр!$C:$C,Реестр!$I:$I,O$3,Реестр!$E:$E,$C52,Реестр!$H:$H,"факт")*IF($A52="-",-1,1) -> 0 | P52: 13000000
A53: - | B53: 22002 | C53: Погашение банковских кредитов | D53: =SUMIFS(Реестр!$C:$C,Реестр!$I:$I,D$3,Реестр!$E:$E,$C53,Реестр!$H:$H,"факт")*IF($A53="-",-1,1) -> 250000 | E53: =SUMIFS(Реестр!$C:$C,Реестр!$I:$I,E$3,Реестр!$E:$E,$C53,Реестр!$H:$H,"факт")*IF($A53="-",-1,1) -> 250000 | F53: =SUMIFS(Реестр!$C:$C,Реестр!$I:$I,F$3,Реестр!$E:$E,$C53,Реестр!$H:$H,"факт")*IF($A53="-",-1,1) -> 250000 | G53: =SUMIFS(Реестр!$C:$C,Реестр!$I:$I,G$3,Реестр!$E:$E,$C53,Реестр!$H:$H,"факт")*IF($A53="-",-1,1) -> 250000 | H53: =SUMIFS(Реестр!$C:$C,Реестр!$I:$I,H$3,Реестр!$E:$E,$C53,Реестр!$H:$H,"факт")*IF($A53="-",-1,1) -> 250000 | I53: =SUMIFS(Реестр!$C:$C,Реестр!$I:$I,I$3,Реестр!$E:$E,$C53,Реестр!$H:$H,"факт")*IF($A53="-",-1,1) -> 250000 | J53: =SUMIFS(Реестр!$C:$C,Реестр!$I:$I,J$3,Реестр!$E:$E,$C53,Реестр!$H:$H,"факт")*IF($A53="-",-1,1) -> 0 | K53: =SUMIFS(Реестр!$C:$C,Реестр!$I:$I,K$3,Реестр!$E:$E,$C53,Реестр!$H:$H,"факт")*IF($A53="-",-1,1) -> 0 | L53: =SUMIFS(Реестр!$C:$C,Реестр!$I:$I,L$3,Реестр!$E:$E,$C53,Реестр!$H:$H,"факт")*IF($A53="-",-1,1) -> 0 | M53: =SUMIFS(Реестр!$C:$C,Реестр!$I:$I,M$3,Реестр!$E:$E,$C53,Реестр!$H:$H,"факт")*IF($A53="-",-1,1) -> 0 | N53: =SUMIFS(Реестр!$C:$C,Реестр!$I:$I,N$3,Реестр!$E:$E,$C53,Реестр!$H:$H,"факт")*IF($A53="-",-1,1) -> 0 | O53: =SUMIFS(Реестр!$C:$C,Реестр!$I:$I,O$3,Реестр!$E:$E,$C53,Реестр!$H:$H,"факт")*IF($A53="-",-1,1) -> 0 | P53: 1500000
A54: - | B54: 22003 | C54: Погашение займов | D54: =SUMIFS(Реестр!$C:$C,Реестр!$I:$I,D$3,Реестр!$E:$E,$C54,Реестр!$H:$H,"факт")*IF($A54="-",-1,1) -> 0 | E54: =SUMIFS(Реестр!$C:$C,Реестр!$I:$I,E$3,Реестр!$E:$E,$C54,Реестр!$H:$H,"факт")*IF($A54="-",-1,1) -> 0 | F54: =SUMIFS(Реестр!$C:$C,Реестр!$I:$I,F$3,Реестр!$E:$E,$C54,Реестр!$H:$H,"факт")*IF($A54="-",-1,1) -> 0 | G54: =SUMIFS(Реестр!$C:$C,Реестр!$I:$I,G$3,Реестр!$E:$E,$C54,Реестр!$H:$H,"факт")*IF($A54="-",-1,1) -> 0 | H54: =SUMIFS(Реестр!$C:$C,Реестр!$I:$I,H$3,Реестр!$E:$E,$C54,Реестр!$H:$H,"факт")*IF($A54="-",-1,1) -> 0 | I54: =SUMIFS(Реестр!$C:$C,Реестр!$I:$I,I$3,Реестр!$E:$E,$C54,Реестр!$H:$H,"факт")*IF($A54="-",-1,1) -> 0 | J54: =SUMIFS(Реестр!$C:$C,Реестр!$I:$I,J$3,Реестр!$E:$E,$C54,Реестр!$H:$H,"факт")*IF($A54="-",-1,1) -> 0 | K54: =SUMIFS(Реестр!$C:$C,Реестр!$I:$I,K$3,Реестр!$E:$E,$C54,Реестр!$H:$H,"факт")*IF($A54="-",-1,1) -> 0 | L54: =SUMIFS(Реестр!$C:$C,Реестр!$I:$I,L$3,Реестр!$E:$E,$C54,Реестр!$H:$H,"факт")*IF($A54="-",-1,1) -> 0 | M54: =SUMIFS(Реестр!$C:$C,Реестр!$I:$I,M$3,Реестр!$E:$E,$C54,Реестр!$H:$H,"факт")*IF($A54="-",-1,1) -> 0 | N54: =SUMIFS(Реестр!$C:$C,Реестр!$I:$I,N$3,Реестр!$E:$E,$C54,Реестр!$H:$H,"факт")*IF($A54="-",-1,1) -> 0 | O54: =SUMIFS(Реестр!$C:$C,Реестр!$I:$I,O$3,Реестр!$E:$E,$C54,Реестр!$H:$H,"факт")*IF($A54="-",-1,1) -> 0 | P54: =SUM(D54:O54) -> 0
A55: - | B55: 22004 | C55: Прочие платежи по финансовой деятельности | D55: =SUMIFS(Реестр!$C:$C,Реестр!$I:$I,D$3,Реестр!$E:$E,$C55,Реестр!$H:$H,"факт")*IF($A55="-",-1,1) -> 0 | E55: =SUMIFS(Реестр!$C:$C,Реестр!$I:$I,E$3,Реестр!$E:$E,$C55,Реестр!$H:$H,"факт")*IF($A55="-",-1,1) -> 0 | F55: =SUMIFS(Реестр!$C:$C,Реестр!$I:$I,F$3,Реестр!$E:$E,$C55,Реестр!$H:$H,"факт")*IF($A55="-",-1,1) -> 0 | G55: =SUMIFS(Реестр!$C:$C,Реестр!$I:$I,G$3,Реестр!$E:$E,$C55,Реестр!$H:$H,"факт")*IF($A55="-",-1,1) -> 0 | H55: =SUMIFS(Реестр!$C:$C,Реестр!$I:$I,H$3,Реестр!$E:$E,$C55,Реестр!$H:$H,"факт")*IF($A55="-",-1,1) -> 0 | I55: =SUMIFS(Реестр!$C:$C,Реестр!$I:$I,I$3,Реестр!$E:$E,$C55,Реестр!$H:$H,"факт")*IF($A55="-",-1,1) -> 0 | J55: =SUMIFS(Реестр!$C:$C,Реестр!$I:$I,J$3,Реестр!$E:$E,$C55,Реестр!$H:$H,"факт")*IF($A55="-",-1,1) -> 0 | K55: =SUMIFS(Реестр!$C:$C,Реестр!$I:$I,K$3,Реестр!$E:$E,$C55,Реестр!$H:$H,"факт")*IF($A55="-",-1,1) -> 0 | L55: =SUMIFS(Реестр!$C:$C,Реестр!$I:$I,L$3,Реестр!$E:$E,$C55,Реестр!$H:$H,"факт")*IF($A55="-",-1,1) -> 0 | M55: =SUMIFS(Реестр!$C:$C,Реестр!$I:$I,M$3,Реестр!$E:$E,$C55,Реестр!$H:$H,"факт")*IF($A55="-",-1,1) -> 0 | N55: =SUMIFS(Реестр!$C:$C,Реестр!$I:$I,N$3,Реестр!$E:$E,$C55,Реестр!$H:$H,"факт")*IF($A55="-",-1,1) -> 0 | O55: =SUMIFS(Реестр!$C:$C,Реестр!$I:$I,O$3,Реестр!$E:$E,$C55,Реестр!$H:$H,"факт")*IF($A55="-",-1,1) -> 0 | P55: 0
B56: 29999 | C56: Сальдо по финансовой деятельности | D56: =D46-D51 -> 20000 | E56: =E46-E51 -> -980000 | F56: -1980000 | G56: -2980000 | H56: -2480000 | I56: -1480000 | J56: 0 | K56: 0 | L56: 0 | M56: 0 | N56: 0 | O56: 0 | P56: -9880000
B58: инвестиционная деятельность
B59: 31000 | C59: Поступления от инвестиционной деятельности | D59: =SUM(D60:D62) -> 0 | E59: =SUM(E60:E62) -> 0 | F59: 0 | G59: 0 | H59: 0 | I59: 0 | J59: 0 | K59: 0 | L59: 0 | M59: 0 | N59: 0 | O59: 0 | P59: =SUM(D59:O59) -> 0
A60: + | B60: 31100 | C60: Поступления от продажи основных средств | D60: =SUMIFS(Реестр!$C:$C,Реестр!$I:$I,D$3,Реестр!$E:$E,$C60,Реестр!$H:$H,"факт")*IF($A60="-",-1,1) -> 0 | E60: =SUMIFS(Реестр!$C:$C,Реестр!$I:$I,E$3,Реестр!$E:$E,$C60,Реестр!$H:$H,"факт")*IF($A60="-",-1,1) -> 0 | F60: =SUMIFS(Реестр!$C:$C,Реестр!$I:$I,F$3,Реестр!$E:$E,$C60,Реестр!$H:$H,"факт")*IF($A60="-",-1,1) -> 0 | G60: =SUMIFS(Реестр!$C:$C,Реестр!$I:$I,G$3,Реестр!$E:$E,$C60,Реестр!$H:$H,"факт")*IF($A60="-",-1,1) -> 0 | H60: =SUMIFS(Реестр!$C:$C,Реестр!$I:$I,H$3,Реестр!$E:$E,$C60,Реестр!$H:$H,"факт")*IF($A60="-",-1,1) -> 0 | I60: =SUMIFS(Реестр!$C:$C,Реестр!$I:$I,I$3,Реестр!$E:$E,$C60,Реестр!$H:$H,"факт")*IF($A60="-",-1,1) -> 0 | J60: =SUMIFS(Реестр!$C:$C,Реестр!$I:$I,J$3,Реестр!$E:$E,$C60,Реестр!$H:$H,"факт")*IF($A60="-",-1,1) -> 0 | K60: =SUMIFS(Реестр!$C:$C,Реестр!$I:$I,K$3,Реестр!$E:$E,$C60,Реестр!$H:$H,"факт")*IF($A60="-",-1,1) -> 0 | L60: =SUMIFS(Реестр!$C:$C,Реестр!$I:$I,L$3,Реестр!$E:$E,$C60,Реестр!$H:$H,"факт")*IF($A60="-",-1,1) -> 0 | M60: =SUMIFS(Реестр!$C:$C,Реестр!$I:$I,M$3,Реестр!$E:$E,$C60,Реестр!$H:$H,"факт")*IF($A60="-",-1,1) -> 0 | N60: =SUMIFS(Реестр!$C:$C,Реестр!$I:$I,N$3,Реестр!$E:$E,$C60,Реестр!$H:$H,"факт")*IF($A60="-",-1,1) -> 0 | O60: =SUMIFS(Реестр!$C:$C,Реестр!$I:$I,O$3,Реестр!$E:$E,$C60,Реестр!$H:$H,"факт")*IF($A60="-",-1,1) -> 0 | P60: 0
A61: + | B61: 31200 | C61: Поступления от продажи нематериальных активов | D61: =SUMIFS(Реестр!$C:$C,Реестр!$I:$I,D$3,Реестр!$E:$E,$C61,Реестр!$H:$H,"факт")*IF($A61="-",-1,1) -> 0 | E61: =SUMIFS(Реестр!$C:$C,Реестр!$I:$I,E$3,Реестр!$E:$E,$C61,Реестр!$H:$H,"факт")*IF($A61="-",-1,1) -> 0 | F61: =SUMIFS(Реестр!$C:$C,Реестр!$I:$I,F$3,Реестр!$E:$E,$C61,Реестр!$H:$H,"факт")*IF($A61="-",-1,1) -> 0 | G61: =SUMIFS(Реестр!$C:$C,Реестр!$I:$I,G$3,Реестр!$E:$E,$C61,Реестр!$H:$H,"факт")*IF($A61="-",-1,1) -> 0 | H61: =SUMIFS(Реестр!$C:$C,Реестр!$I:$I,H$3,Реестр!$E:$E,$C61,Реестр!$H:$H,"факт")*IF($A61="-",-1,1) -> 0 | I61: =SUMIFS(Реестр!$C:$C,Реестр!$I:$I,I$3,Реестр!$E:$E,$C61,Реестр!$H:$H,"факт")*IF($A61="-",-1,1) -> 0 | J61: =SUMIFS(Реестр!$C:$C,Реестр!$I:$I,J$3,Реестр!$E:$E,$C61,Реестр!$H:$H,"факт")*IF($A61="-",-1,1) -> 0 | K61: =SUMIFS(Реестр!$C:$C,Реестр!$I:$I,K$3,Реестр!$E:$E,$C61,Реестр!$H:$H,"факт")*IF($A61="-",-1,1) -> 0 | L61: =SUMIFS(Реестр!$C:$C,Реестр!$I:$I,L$3,Реестр!$E:$E,$C61,Реестр!$H:$H,"факт")*IF($A61="-",-1,1) -> 0 | M61: =SUMIFS(Реестр!$C:$C,Реестр!$I:$I,M$3,Реестр!$E:$E,$C61,Реестр!$H:$H,"факт")*IF($A61="-",-1,1) -> 0 | N61: =SUMIFS(Реестр!$C:$C,Реестр!$I:$I,N$3,Реестр!$E:$E,$C61,Реестр!$H:$H,"факт")*IF($A61="-",-1,1) -> 0 | O61: =SUMIFS(Реестр!$C:$C,Реестр!$I:$I,O$3,Реестр!$E:$E,$C61,Реестр!$H:$H,"факт")*IF($A61="-",-1,1) -> 0 | P61: 0
A62: + | B62: 31999 | C62: Прочие поступления от инвестиционной деятельности | D62: =SUMIFS(Реестр!$C:$C,Реестр!$I:$I,D$3,Реестр!$E:$E,$C62,Реестр!$H:$H,"факт")*IF($A62="-",-1,1) -> 0 | E62: =SUMIFS(Реестр!$C:$C,Реестр!$I:$I,E$3,Реестр!$E:$E,$C62,Реестр!$H:$H,"факт")*IF($A62="-",-1,1) -> 0 | F62: =SUMIFS(Реестр!$C:$C,Реестр!$I:$I,F$3,Реестр!$E:$E,$C62,Реестр!$H:$H,"факт")*IF($A62="-",-1,1) -> 0 | G62: =SUMIFS(Реестр!$C:$C,Реестр!$I:$I,G$3,Реестр!$E:$E,$C62,Реестр!$H:$H,"факт")*IF($A62="-",-1,1) -> 0 | H62: =SUMIFS(Реестр!$C:$C,Реестр!$I:$I,H$3,Реестр!$E:$E,$C62,Реестр!$H:$H,"факт")*IF($A62="-",-1,1) -> 0 | I62: =SUMIFS(Реестр!$C:$C,Реестр!$I:$I,I$3,Реестр!$E:$E,$C62,Реестр!$H:$H,"факт")*IF($A62="-",-1,1) -> 0 | J62: =SUMIFS(Реестр!$C:$C,Реестр!$I:$I,J$3,Реестр!$E:$E,$C62,Реестр!$H:$H,"факт")*IF($A62="-",-1,1) -> 0 | K62: =SUMIFS(Реестр!$C:$C,Реестр!$I:$I,K$3,Реестр!$E:$E,$C62,Реестр!$H:$H,"факт")*IF($A62="-",-1,1) -> 0 | L62: =SUMIFS(Реестр!$C:$C,Реестр!$I:$I,L$3,Реестр!$E:$E,$C62,Реестр!$H:$H,"факт")*IF($A62="-",-1,1) -> 0 | M62: =SUMIFS(Реестр!$C:$C,Реестр!$I:$I,M$3,Реестр!$E:$E,$C62,Реестр!$H:$H,"факт")*IF($A62="-",-1,1) -> 0 | N62: =SUMIFS(Реестр!$C:$C,Реестр!$I:$I,N$3,Реестр!$E:$E,$C62,Реестр!$H:$H,"факт")*IF($A62="-",-1,1) -> 0 | O62: =SUMIFS(Реестр!$C:$C,Реестр!$I:$I,O$3,Реестр!$E:$E,$C62,Реестр!$H:$H,"факт")*IF($A62="-",-1,1) -> 0 | P62: 0
B63: 32000 | C63: Платежи по инвестиционной деятельности | D63: =SUM(D64:D66) -> 0 | E63: =SUM(E64:E66) -> 1100000 | F63: 0 | G63: 2300000 | H63: 0 | I63: 3400000 | J63: 0 | K63: 0 | L63: 0 | M63: 0 | N63: 0 | O63: 0 | P63: 6800000
A64: - | B64: 32100 | C64: Приобретение основных средств | D64: =SUMIFS(Реестр!$C:$C,Реестр!$I:$I,D$3,Реестр!$E:$E,$C64,Реестр!$H:$H,"факт")*IF($A64="-",-1,1) -> 0 | E64: =SUMIFS(Реестр!$C:$C,Реестр!$I:$I,E$3,Реестр!$E:$E,$C64,Реестр!$H:$H,"факт")*IF($A64="-",-1,1) -> 1100000 | F64: =SUMIFS(Реестр!$C:$C,Реестр!$I:$I,F$3,Реестр!$E:$E,$C64,Реестр!$H:$H,"факт")*IF($A64="-",-1,1) -> 0 | G64: =SUMIFS(Реестр!$C:$C,Реестр!$I:$I,G$3,Реестр!$E:$E,$C64,Реестр!$H:$H,"факт")*IF($A64="-",-1,1) -> 2300000 | H64: =SUMIFS(Реестр!$C:$C,Реестр!$I:$I,H$3,Реестр!$E:$E,$C64,Реестр!$H:$H,"факт")*IF($A64="-",-1,1) -> 0 | I64: =SUMIFS(Реестр!$C:$C,Реестр!$I:$I,I$3,Реестр!$E:$E,$C64,Реестр!$H:$H,"факт")*IF($A64="-",-1,1) -> 3400000 | J64: =SUMIFS(Реестр!$C:$C,Реестр!$I:$I,J$3,Реестр!$E:$E,$C64,Реестр!$H:$H,"факт")*IF($A64="-",-1,1) -> 0 | K64: =SUMIFS(Реестр!$C:$C,Реестр!$I:$I,K$3,Реестр!$E:$E,$C64,Реестр!$H:$H,"факт")*IF($A64="-",-1,1) -> 0 | L64: =SUMIFS(Реестр!$C:$C,Реестр!$I:$I,L$3,Реестр!$E:$E,$C64,Реестр!$H:$H,"факт")*IF($A64="-",-1,1) -> 0 | M64: =SUMIFS(Реестр!$C:$C,Реестр!$I:$I,M$3,Реестр!$E:$E,$C64,Реестр!$H:$H,"факт")*IF($A64="-",-1,1) -> 0 | N64: =SUMIFS(Реестр!$C:$C,Реестр!$I:$I,N$3,Реестр!$E:$E,$C64,Реестр!$H:$H,"факт")*IF($A64="-",-1,1) -> 0 | O64: =SUMIFS(Реестр!$C:$C,Реестр!$I:$I,O$3,Реестр!$E:$E,$C64,Реестр!$H:$H,"факт")*IF($A64="-",-1,1) -> 0 | P64: 6800000
A65: - | B65: 32200 | C65: Приобретение нематериальных активов | D65: =SUMIFS(Реестр!$C:$C,Реестр!$I:$I,D$3,Реестр!$E:$E,$C65,Реестр!$H:$H,"факт")*IF($A65="-",-1,1) -> 0 | E65: =SUMIFS(Реестр!$C:$C,Реестр!$I:$I,E$3,Реестр!$E:$E,$C65,Реестр!$H:$H,"факт")*IF($A65="-",-1,1) -> 0 | F65: =SUMIFS(Реестр!$C:$C,Реестр!$I:$I,F$3,Реестр!$E:$E,$C65,Реестр!$H:$H,"факт")*IF($A65="-",-1,1) -> 0 | G65: =SUMIFS(Реестр!$C:$C,Реестр!$I:$I,G$3,Реестр!$E:$E,$C65,Реестр!$H:$H,"факт")*IF($A65="-",-1,1) -> 0 | H65: =SUMIFS(Реестр!$C:$C,Реестр!$I:$I,H$3,Реестр!$E:$E,$C65,Реестр!$H:$H,"факт")*IF($A65="-",-1,1) -> 0 | I65: =SUMIFS(Реестр!$C:$C,Реестр!$I:$I,I$3,Реестр!$E:$E,$C65,Реестр!$H:$H,"факт")*IF($A65="-",-1,1) -> 0 | J65: =SUMIFS(Реестр!$C:$C,Реестр!$I:$I,J$3,Реестр!$E:$E,$C65,Реестр!$H:$H,"факт")*IF($A65="-",-1,1) -> 0 | K65: =SUMIFS(Реестр!$C:$C,Реестр!$I:$I,K$3,Реестр!$E:$E,$C65,Реестр!$H:$H,"факт")*IF($A65="-",-1,1) -> 0 | L65: =SUMIFS(Реестр!$C:$C,Реестр!$I:$I,L$3,Реестр!$E:$E,$C65,Реестр!$H:$H,"факт")*IF($A65="-",-1,1) -> 0 | M65: =SUMIFS(Реестр!$C:$C,Реестр!$I:$I,M$3,Реестр!$E:$E,$C65,Реестр!$H:$H,"факт")*IF($A65="-",-1,1) -> 0 | N65: =SUMIFS(Реестр!$C:$C,Реестр!$I:$I,N$3,Реестр!$E:$E,$C65,Реестр!$H:$H,"факт")*IF($A65="-",-1,1) -> 0 | O65: =SUMIFS(Реестр!$C:$C,Реестр!$I:$I,O$3,Реестр!$E:$E,$C65,Реестр!$H:$H,"факт")*IF($A65="-",-1,1) -> 0 | P65: 0
A66: - | B66: 32999 | C66: Прочие платежи по инвестиционной деятельности | D66: =SUMIFS(Реестр!$C:$C,Реестр!$I:$I,D$3,Реестр!$E:$E,$C66,Реестр!$H:$H,"факт")*IF($A66="-",-1,1) -> 0 | E66: =SUMIFS(Реестр!$C:$C,Реестр!$I:$I,E$3,Реестр!$E:$E,$C66,Реестр!$H:$H,"факт")*IF($A66="-",-1,1) -> 0 | F66: =SUMIFS(Реестр!$C:$C,Реестр!$I:$I,F$3,Реестр!$E:$E,$C66,Реестр!$H:$H,"факт")*IF($A66="-",-1,1) -> 0 | G66: =SUMIFS(Реестр!$C:$C,Реестр!$I:$I,G$3,Реестр!$E:$E,$C66,Реестр!$H:$H,"факт")*IF($A66="-",-1,1) -> 0 | H66: =SUMIFS(Реестр!$C:$C,Реестр!$I:$I,H$3,Реестр!$E:$E,$C66,Реестр!$H:$H,"факт")*IF($A66="-",-1,1) -> 0 | I66: =SUMIFS(Реестр!$C:$C,Реестр!$I:$I,I$3,Реестр!$E:$E,$C66,Реестр!$H:$H,"факт")*IF($A66="-",-1,1) -> 0 | J66: =SUMIFS(Реестр!$C:$C,Реестр!$I:$I,J$3,Реестр!$E:$E,$C66,Реестр!$H:$H,"факт")*IF($A66="-",-1,1) -> 0 | K66: =SUMIFS(Реестр!$C:$C,Реестр!$I:$I,K$3,Реестр!$E:$E,$C66,Реестр!$H:$H,"факт")*IF($A66="-",-1,1) -> 0 | L66: =SUMIFS(Реестр!$C:$C,Реестр!$I:$I,L$3,Реестр!$E:$E,$C66,Реестр!$H:$H,"факт")*IF($A66="-",-1,1) -> 0 | M66: =SUMIFS(Реестр!$C:$C,Реестр!$I:$I,M$3,Реестр!$E:$E,$C66,Реестр!$H:$H,"факт")*IF($A66="-",-1,1) -> 0 | N66: =SUMIFS(Реестр!$C:$C,Реестр!$I:$I,N$3,Реестр!$E:$E,$C66,Реестр!$H:$H,"факт")*IF($A66="-",-1,1) -> 0 | O66: =SUMIFS(Реестр!$C:$C,Реестр!$I:$I,O$3,Реестр!$E:$E,$C66,Реестр!$H:$H,"факт")*IF($A66="-",-1,1) -> 0 | P66: 0
B67: 39999 | C67: Сальдо по инвестиционной деятельности | D67: =D59-D63 -> 0 | E67: =E59-E63 -> -1100000 | F67: 0 | G67: -2300000 | H67: 0 | I67: -3400000 | J67: 0 | K67: 0 | L67: 0 | M67: 0 | N67: 0 | O67: 0 | P67: -6800000
B69: сальдо и обороты
B70: 99991 | C70: Остаток денежных средств на начало периода | D70: =Баланс!C5 -> 2500000 | E70: =D72 -> 3486471.66 | F70: =E72 -> 3437109.12 | G70: 3410504.28 | H70: 4038217.87 | I70: 6554518.19 | J70: 4140787.33 | K70: 4140787.33 | L70: 4140787.33 | M70: 4140787.33 | N70: 4140787.33 | O70: 4140787.33 | P70: =D70 -> 2500000
B71: 99992 | C71: Оборот за период | D71: =D43+D56+D67 -> 986471.66 | E71: =E43+E56+E67 -> -49362.54 | F71: -26604.84 | G71: 627713.59 | H71: 2516300.32 | I71: -2413730.86 | J71: 0 | K71: 0 | L71: 0 | M71: 0 | N71: 0 | O71: 0 | P71: 1640787.33
B72: 99993 | C72: Остаток денежных средств на конец периода | D72: =D70+D71 -> 3486471.66 | E72: =E70+E71 -> 3437109.12 | F72: 3410504.28 | G72: 4038217.87 | H72: 6554518.19 | I72: 4140787.33 | J72: 4140787.33 | K72: 4140787.33 | L72: 4140787.33 | M72: 4140787.33 | N72: 4140787.33 | O72: 4140787.33 | P72: 4140787.33

Sheet ОПУ
A1: Отчёт о прибылях и убытках ООО "Ромашка"
D3: 1 | E3: 2 | F3: 3 | G3: 4 | H3: 5 | I3: 6 | J3: 7 | K3: 8 | L3: 9 | M3: 10 | N3: 11 | O3: 12
A4: +/- | B4: Код | C4: Наименование статей | D4: 2014-01-01 | E4: 2014-02-01 | F4: 2014-03-01 | G4: 2014-04-01 | H4: 2014-05-01 | I4: 2014-06-01 | J4: 2014-07-01 | K4: 2014-08-01 | L4: 2014-09-01 | M4: 2014-10-01 | N4: 2014-11-01 | O4: 2014-12-01 | P4: итого
B5: 1000 | C5: Операционные доходы | D5: =SUM(D6:D7) -> 5723003.38 | E5: =SUM(E6:E7) -> 8822438.09 | F5: 13736528.08 | G5: 13801604.64 | H5: 13362999.93 | I5: 12179023.82 | J5: 0 | K5: 0 | L5: 0 | M5: 0 | N5: 0 | O5: 0 | P5: =SUM(D5:O5) -> 67625597.94
A6: + | B6: 1001 | C6: Поступления от продаж | D6: =SUMIFS(Реестр!$C:$C,Реестр!$E:$E,$C6,Реестр!$J:$J,D$3)*IF($A6="-",-1,1) -> 5717803.38 | E6: =SUMIFS(Реестр!$C:$C,Реестр!$E:$E,$C6,Реестр!$J:$J,E$3)*IF($A6="-",-1,1) -> 8818838.09 | F6: =SUMIFS(Реестр!$C:$C,Реестр!$E:$E,$C6,Реестр!$J:$J,F$3)*IF($A6="-",-1,1) -> 13732328.08 | G6: =SUMIFS(Реестр!$C:$C,Реестр!$E:$E,$C6,Реестр!$J:$J,G$3)*IF($A6="-",-1,1) -> 13792804.64 | H6: =SUMIFS(Реестр!$C:$C,Реестр!$E:$E,$C6,Реестр!$J:$J,H$3)*IF($A6="-",-1,1) -> 13356599.93 | I6: =SUMIFS(Реестр!$C:$C,Реестр!$E:$E,$C6,Реестр!$J:$J,I$3)*IF($A6="-",-1,1) -> 12176923.82 | J6: =SUMIFS(Реестр!$C:$C,Реестр!$E:$E,$C6,Реестр!$J:$J,J$3)*IF($A6="-",-1,1) -> 0 | K6: =SUMIFS(Реестр!$C:$C,Реестр!$E:$E,$C6,Реестр!$J:$J,K$3)*IF($A6="-",-1,1) -> 0 | L6: =SUMIFS(Реестр!$C:$C,Реестр!$E:$E,$C6,Реестр!$J:$J,L$3)*IF($A6="-",-1,1) -> 0 | M6: =SUMIFS(Реестр!$C:$C,Реестр!$E:$E,$C6,Реестр!$J:$J,M$3)*IF($A6="-",-1,1) -> 0 | N6: =SUMIFS(Реестр!$C:$C,Реестр!$E:$E,$C6,Реестр!$J:$J,N$3)*IF($A6="-",-1,1) -> 0 | O6: =SUMIFS(Реестр!$C:$C,Реестр!$E:$E,$C6,Реестр!$J:$J,O$3)*IF($A6="-",-1,1) -> 0 | P6: =SUM(D6:O6) -> 67595297.94
A7: + | B7: 1002 | C7: Прочие поступления | D7: =SUMIFS(Реестр!$C:$C,Реестр!$E:$E,$C7,Реестр!$J:$J,D$3)*IF($A7="-",-1,1) -> 5200 | E7: =SUMIFS(Реестр!$C:$C,Реестр!$E:$E,$C7,Реестр!$J:$J,E$3)*IF($A7="-",-1,1) -> 3600 | F7: =SUMIFS(Реестр!$C:$C,Реестр!$E:$E,$C7,Реестр!$J:$J,F$3)*IF($A7="-",-1,1) -> 4200 | G7: =SUMIFS(Реестр!$C:$C,Реестр!$E:$E,$C7,Реестр!$J:$J,G$3)*IF($A7="-",-1,1) -> 8800 | H7: =SUMIFS(Реестр!$C:$C,Реестр!$E:$E,$C7,Реестр!$J:$J,H$3)*IF($A7="-",-1,1) -> 6400 | I7: =SUMIFS(Реестр!$C:$C,Реестр!$E:$E,$C7,Реестр!$J:$J,I$3)*IF($A7="-",-1,1) -> 2100 | J7: =SUMIFS(Реестр!$C:$C,Реестр!$E:$E,$C7,Реестр!$J:$J,J$3)*IF($A7="-",-1,1) -> 0 | K7: =SUMIFS(Реестр!$C:$C,Реестр!$E:$E,$C7,Реестр!$J:$J,K$3)*IF($A7="-",-1,1) -> 0 | L7: =SUMIFS(Реестр!$C:$C,Реестр!$E:$E,$C7,Реестр!$J:$J,L$3)*IF($A7="-",-1,1) -> 0 | M7: =SUMIFS(Реестр!$C:$C,Реестр!$E:$E,$C7,Реестр!$J:$J,M$3)*IF($A7="-",-1,1) -> 0 | N7: =SUMIFS(Реестр!$C:$C,Реестр!$E:$E,$C7,Реестр!$J:$J,N$3)*IF($A7="-",-1,1) -> 0 | O7: =SUMIFS(Реестр!$C:$C,Реестр!$E:$E,$C7,Реестр!$J:$J,O$3)*IF($A7="-",-1,1) -> 0 | P7: 30300
B8: 2000 | C8: Прямые затраты | D8: =SUM(D9:D10) -> 1520922.328 | E8: 3087432.02 | F8: 5096945.226 | G8: 5464818.689 | H8: 4799579.78 | I8: 4463147.46 | J8: 0 | K8: 0 | L8: 0 | M8: 0 | N8: 0 | O8: 0 | P8: 24432845.5
A9: - | B9: 2001 | C9: Услуги по размещению | D9: =SUMIFS(Реестр!$C:$C,Реестр!$E:$E,$C9,Реестр!$J:$J,D$3)*IF($A9="-",-1,1) -> 1520922.328 | E9: =SUMIFS(Реестр!$C:$C,Реестр!$E:$E,$C9,Реестр!$J:$J,E$3)*IF($A9="-",-1,1) -> 3087432.02 | F9: =SUMIFS(Реестр!$C:$C,Реестр!$E:$E,$C9,Реестр!$J:$J,F$3)*IF($A9="-",-1,1) -> 5096945.226 | G9: =SUMIFS(Реестр!$C:$C,Реестр!$E:$E,$C9,Реестр!$J:$J,G$3)*IF($A9="-",-1,1) -> 5464818.689 | H9: =SUMIFS(Реестр!$C:$C,Реестр!$E:$E,$C9,Реестр!$J:$J,H$3)*IF($A9="-",-1,1) -> 4799579.78 | I9: =SUMIFS(Реестр!$C:$C,Реестр!$E:$E,$C9,Реестр!$J:$J,I$3)*IF($A9="-",-1,1) -> 4463147.46 | J9: =SUMIFS(Реестр!$C:$C,Реестр!$E:$E,$C9,Реестр!$J:$J,J$3)*IF($A9="-",-1,1) -> 0 | K9: =SUMIFS(Реестр!$C:$C,Реестр!$E:$E,$C9,Реестр!$J:$J,K$3)*IF($A9="-",-1,1) -> 0 | L9: =SUMIFS(Реестр!$C:$C,Реестр!$E:$E,$C9,Реестр!$J:$J,L$3)*IF($A9="-",-1,1) -> 0 | M9: =SUMIFS(Реестр!$C:$C,Реестр!$E:$E,$C9,Реестр!$J:$J,M$3)*IF($A9="-",-1,1) -> 0 | N9: =SUMIFS(Реестр!$C:$C,Реестр!$E:$E,$C9,Реестр!$J:$J,N$3)*IF($A9="-",-1,1) -> 0 | O9: =SUMIFS(Реестр!$C:$C,Реестр!$E:$E,$C9,Реестр!$J:$J,O$3)*IF($A9="-",-1,1) -> 0 | P9: 24432845.5
A10: - | B10: 2002 | C10: Прочие прямые затраты | D10: =SUMIFS(Реестр!$C:$C,Реестр!$E:$E,$C10,Реестр!$J:$J,D$3)*IF($A10="-",-1,1) -> 0 | E10: =SUMIFS(Реестр!$C:$C,Реестр!$E:$E,$C10,Реестр!$J:$J,E$3)*IF($A10="-",-1,1) -> 0 | F10: =SUMIFS(Реестр!$C:$C,Реестр!$E:$E,$C10,Реестр!$J:$J,F$3)*IF($A10="-",-1,1) -> 0 | G10: =SUMIFS(Реестр!$C:$C,Реестр!$E:$E,$C10,Реестр!$J:$J,G$3)*IF($A10="-",-1,1) -> 0 | H10: =SUMIFS(Реестр!$C:$C,Реестр!$E:$E,$C10,Реестр!$J:$J,H$3)*IF($A10="-",-1,1) -> 0 | I10: =SUMIFS(Реестр!$C:$C,Реестр!$E:$E,$C10,Реестр!$J:$J,I$3)*IF($A10="-",-1,1) -> 0 | J10: =SUMIFS(Реестр!$C:$C,Реестр!$E:$E,$C10,Реестр!$J:$J,J$3)*IF($A10="-",-1,1) -> 0 | K10: =SUMIFS(Реестр!$C:$C,Реестр!$E:$E,$C10,Реестр!$J:$J,K$3)*IF($A10="-",-1,1) -> 0 | L10: =SUMIFS(Реестр!$C:$C,Реестр!$E:$E,$C10,Реестр!$J:$J,L$3)*IF($A10="-",-1,1) -> 0 | M10: =SUMIFS(Реестр!$C:$C,Реестр!$E:$E,$C10,Реестр!$J:$J,M$3)*IF($A10="-",-1,1) -> 0 | N10: =SUMIFS(Реестр!$C:$C,Реестр!$E:$E,$C10,Реестр!$J:$J,N$3)*IF($A10="-",-1,1) -> 0 | O10: =SUMIFS(Реестр!$C:$C,Реестр!$E:$E,$C10,Реестр!$J:$J,O$3)*IF($A10="-",-1,1) -> 0 | P10: 0
B11: 3000 | C11: Маржинальный доход | D11: =D5-D8 -> 4202081.052 | E11: 5735006.07 | F11: 8639582.856 | G11: 8336785.951 | H11: 8563420.15 | I11: 7715876.355 | J11: 0 | K11: 0 | L11: 0 | M11: 0 | N11: 0 | O11: 0 | P11: 43192752.43
B13: 4000 | C13: Операционные расходы | D13: =D14+D18+D23+D29+D35 -> 3099557.47 | E13: =E14+E18+E23+E29+E35 -> 3388836.32 | F13: 2814747 | G13: 3313832.5 | H13: 3084538.5 | I13: 3563800.5 | J13: 0 | K13: 0 | L13: 0 | M13: 0 | N13: 0 | O13: 0 | P13: =SUM(D13:O13) -> 19265312.29
B14: 4010 | C14: Расчёты с персоналом | D14: =SUM(D15:D17) -> 953512.5 | E14: =SUM(E15:E17) -> 986875 | F14: 1014850 | G14: 1037462.5 | H14: 1081062.5 | I14: 1111812.5 | J14: 0 | K14: 0 | L14: 0 | M14: 0 | N14: 0 | O14: 0 | P14: 6185575
A15: - | B15: 4011 | C15: Основная заработная плата | D15: =SUMIFS(Реестр!$C:$C,Реестр!$E:$E,$C15,Реестр!$J:$J,D$3)*IF($A15="-",-1,1) -> 760250 | E15: =SUMIFS(Реестр!$C:$C,Реестр!$E:$E,$C15,Реестр!$J:$J,E$3)*IF($A15="-",-1,1) -> 785180 | F15: =SUMIFS(Реестр!$C:$C,Реестр!$E:$E,$C15,Реестр!$J:$J,F$3)*IF($A15="-",-1,1) -> 809800 | G15: =SUMIFS(Реестр!$C:$C,Реестр!$E:$E,$C15,Реестр!$J:$J,G$3)*IF($A15="-",-1,1) -> 823250 | H15: =SUMIFS(Реестр!$C:$C,Реестр!$E:$E,$C15,Реестр!$J:$J,H$3)*IF($A15="-",-1,1) -> 858850 | I15: =SUMIFS(Реестр!$C:$C,Реестр!$E:$E,$C15,Реестр!$J:$J,I$3)*IF($A15="-",-1,1) -> 886250 | J15: =SUMIFS(Реестр!$C:$C,Реестр!$E:$E,$C15,Реестр!$J:$J,J$3)*IF($A15="-",-1,1) -> 0 | K15: =SUMIFS(Реестр!$C:$C,Реестр!$E:$E,$C15,Реестр!$J:$J,K$3)*IF($A15="-",-1,1) -> 0 | L15: =SUMIFS(Реестр!$C:$C,Реестр!$E:$E,$C15,Реестр!$J:$J,L$3)*IF($A15="-",-1,1) -> 0 | M15: =SUMIFS(Реестр!$C:$C,Реестр!$E:$E,$C15,Реестр!$J:$J,M$3)*IF($A15="-",-1,1) -> 0 | N15: =SUMIFS(Реестр!$C:$C,Реестр!$E:$E,$C15,Реестр!$J:$J,N$3)*IF($A15="-",-1,1) -> 0 | O15: =SUMIFS(Реестр!$C:$C,Реестр!$E:$E,$C15,Реестр!$J:$J,O$3)*IF($A15="-",-1,1) -> 0 | P15: 4923580
A16: - | B16: 4012 | C16: Премии, бонусы | D16: =SUMIFS(Реестр!$C:$C,Реестр!$E:$E,$C16,Реестр!$J:$J,D$3)*IF($A16="-",-1,1) -> 190062.5 | E16: =SUMIFS(Реестр!$C:$C,Реестр!$E:$E,$C16,Реестр!$J:$J,E$3)*IF($A16="-",-1,1) -> 196295 | F16: =SUMIFS(Реестр!$C:$C,Реестр!$E:$E,$C16,Реестр!$J:$J,F$3)*IF($A16="-",-1,1) -> 202450 | G16: =SUMIFS(Реестр!$C:$C,Реестр!$E:$E,$C16,Реестр!$J:$J,G$3)*IF($A16="-",-1,1) -> 205812.5 | H16: =SUMIFS(Реестр!$C:$C,Реестр!$E:$E,$C16,Реестр!$J:$J,H$3)*IF($A16="-",-1,1) -> 214712.5 | I16: =SUMIFS(Реестр!$C:$C,Реестр!$E:$E,$C16,Реестр!$J:$J,I$3)*IF($A16="-",-1,1) -> 221562.5 | J16: =SUMIFS(Реестр!$C:$C,Реестр!$E:$E,$C16,Реестр!$J:$J,J$3)*IF($A16="-",-1,1) -> 0 | K16: =SUMIFS(Реестр!$C:$C,Реестр!$E:$E,$C16,Реестр!$J:$J,K$3)*IF($A16="-",-1,1) -> 0 | L16: =SUMIFS(Реестр!$C:$C,Реестр!$E:$E,$C16,Реестр!$J:$J,L$3)*IF($A16="-",-1,1) -> 0 | M16: =SUMIFS(Реестр!$C:$C,Реестр!$E:$E,$C16,Реестр!$J:$J,M$3)*IF($A16="-",-1,1) -> 0 | N16: =SUMIFS(Реестр!$C:$C,Реестр!$E:$E,$C16,Реестр!$J:$J,N$3)*IF($A16="-",-1,1) -> 0 | O16: =SUMIFS(Реестр!$C:$C,Реестр!$E:$E,$C16,Реестр!$J:$J,O$3)*IF($A16="-",-1,1) -> 0 | P16: 1230895
A17: - | B17: 4013 | C17: Прочие затраты на оплату труда | D17: =SUMIFS(Реестр!$C:$C,Реестр!$E:$E,$C17,Реестр!$J:$J,D$3)*IF($A17="-",-1,1) -> 3200 | E17: =SUMIFS(Реестр!$C:$C,Реестр!$E:$E,$C17,Реестр!$J:$J,E$3)*IF($A17="-",-1,1) -> 5400 | F17: =SUMIFS(Реестр!$C:$C,Реестр!$E:$E,$C17,Реестр!$J:$J,F$3)*IF($A17="-",-1,1) -> 2600 | G17: =SUMIFS(Реестр!$C:$C,Реестр!$E:$E,$C17,Реестр!$J:$J,G$3)*IF($A17="-",-1,1) -> 8400 | H17: =SUMIFS(Реестр!$C:$C,Реестр!$E:$E,$C17,Реестр!$J:$J,H$3)*IF($A17="-",-1,1) -> 7500 | I17: =SUMIFS(Реестр!$C:$C,Реестр!$E:$E,$C17,Реестр!$J:$J,I$3)*IF($A17="-",-1,1) -> 4000 | J17: =SUMIFS(Реестр!$C:$C,Реестр!$E:$E,$C17,Реестр!$J:$J,J$3)*IF($A17="-",-1,1) -> 0 | K17: =SUMIFS(Реестр!$C:$C,Реестр!$E:$E,$C17,Реестр!$J:$J,K$3)*IF($A17="-",-1,1) -> 0 | L17: =SUMIFS(Реестр!$C:$C,Реестр!$E:$E,$C17,Реестр!$J:$J,L$3)*IF($A17="-",-1,1) -> 0 | M17: =SUMIFS(Реестр!$C:$C,Реестр!$E:$E,$C17,Реестр!$J:$J,M$3)*IF($A17="-",-1,1) -> 0 | N17: =SUMIFS(Реестр!$C:$C,Реестр!$E:$E,$C17,Реестр!$J:$J,N$3)*IF($A17="-",-1,1) -> 0 | O17: =SUMIFS(Реестр!$C:$C,Реестр!$E:$E,$C17,Реестр!$J:$J,O$3)*IF($A17="-",-1,1) -> 0 | P17: 31100
B18: 4020 | C18: Расчёты с бюджетом | D18: =SUM(D19:D22) -> 1391379.97 | E18: =SUM(E19:E22) -> 1648413.32 | F18: 1023740 | G18: 1445788 | H18: 1168445 | I18: 1815303 | J18: 0 | K18: 0 | L18: 0 | M18: 0 | N18: 0 | O18: 0 | P18: 8493069.29
A19: - | B19: 4021 | C19: Налоги на фонд оплаты труда | D19: =SUMIFS(Реестр!$C:$C,Реестр!$E:$E,$C19,Реестр!$J:$J,D$3)*IF($A19="-",-1,1) -> 117350 | E19: =SUMIFS(Реестр!$C:$C,Реестр!$E:$E,$C19,Реестр!$J:$J,E$3)*IF($A19="-",-1,1) -> 125600 | F19: =SUMIFS(Реестр!$C:$C,Реестр!$E:$E,$C19,Реестр!$J:$J,F$3)*IF($A19="-",-1,1) -> 133110 | G19: =SUMIFS(Реестр!$C:$C,Реестр!$E:$E,$C19,Реестр!$J:$J,G$3)*IF($A19="-",-1,1) -> 147530 | H19: =SUMIFS(Реестр!$C:$C,Реестр!$E:$E,$C19,Реестр!$J:$J,H$3)*IF($A19="-",-1,1) -> 150800 | I19: =SUMIFS(Реестр!$C:$C,Реестр!$E:$E,$C19,Реестр!$J:$J,I$3)*IF($A19="-",-1,1) -> 154320 | J19: =SUMIFS(Реестр!$C:$C,Реестр!$E:$E,$C19,Реестр!$J:$J,J$3)*IF($A19="-",-1,1) -> 0 | K19: =SUMIFS(Реестр!$C:$C,Реестр!$E:$E,$C19,Реестр!$J:$J,K$3)*IF($A19="-",-1,1) -> 0 | L19: =SUMIFS(Реестр!$C:$C,Реестр!$E:$E,$C19,Реестр!$J:$J,L$3)*IF($A19="-",-1,1) -> 0 | M19: =SUMIFS(Реестр!$C:$C,Реестр!$E:$E,$C19,Реестр!$J:$J,M$3)*IF($A19="-",-1,1) -> 0 | N19: =SUMIFS(Реестр!$C:$C,Реестр!$E:$E,$C19,Реестр!$J:$J,N$3)*IF($A19="-",-1,1) -> 0 | O19: =SUMIFS(Реестр!$C:$C,Реестр!$E:$E,$C19,Реестр!$J:$J,O$3)*IF($A19="-",-1,1) -> 0 | P19: 828710
A20: - | B20: 4022 | C20: Налог на добавленную стоимость | D20: =SUMIFS(Реестр!$C:$C,Реестр!$E:$E,$C20,Реестр!$J:$J,D$3)*IF($A20="-",-1,1) -> 654029.97 | E20: =SUMIFS(Реестр!$C:$C,Реестр!$E:$E,$C20,Реестр!$J:$J,E$3)*IF($A20="-",-1,1) -> 882813.32 | F20: =SUMIFS(Реестр!$C:$C,Реестр!$E:$E,$C20,Реестр!$J:$J,F$3)*IF($A20="-",-1,1) -> 550630 | G20: =SUMIFS(Реестр!$C:$C,Реестр!$E:$E,$C20,Реестр!$J:$J,G$3)*IF($A20="-",-1,1) -> 768258 | H20: =SUMIFS(Реестр!$C:$C,Реестр!$E:$E,$C20,Реестр!$J:$J,H$3)*IF($A20="-",-1,1) -> 550645 | I20: =SUMIFS(Реестр!$C:$C,Реестр!$E:$E,$C20,Реестр!$J:$J,I$3)*IF($A20="-",-1,1) -> 1028983 | J20: =SUMIFS(Реестр!$C:$C,Реестр!$E:$E,$C20,Реестр!$J:$J,J$3)*IF($A20="-",-1,1) -> 0 | K20: =SUMIFS(Реестр!$C:$C,Реестр!$E:$E,$C20,Реестр!$J:$J,K$3)*IF($A20="-",-1,1) -> 0 | L20: =SUMIFS(Реестр!$C:$C,Реестр!$E:$E,$C20,Реестр!$J:$J,L$3)*IF($A20="-",-1,1) -> 0 | M20: =SUMIFS(Реестр!$C:$C,Реестр!$E:$E,$C20,Реестр!$J:$J,M$3)*IF($A20="-",-1,1) -> 0 | N20: =SUMIFS(Реестр!$C:$C,Реестр!$E:$E,$C20,Реестр!$J:$J,N$3)*IF($A20="-",-1,1) -> 0 | O20: =SUMIFS(Реестр!$C:$C,Реестр!$E:$E,$C20,Реестр!$J:$J,O$3)*IF($A20="-",-1,1) -> 0 | P20: 4435359.29
A21: - | B21: 4023 | C21: Налог на прибыль | D21: =SUMIFS(Реестр!$C:$C,Реестр!$E:$E,$C21,Реестр!$J:$J,D$3)*IF($A21="-",-1,1) -> 620000 | E21: =SUMIFS(Реестр!$C:$C,Реестр!$E:$E,$C21,Реестр!$J:$J,E$3)*IF($A21="-",-1,1) -> 640000 | F21: =SUMIFS(Реестр!$C:$C,Реестр!$E:$E,$C21,Реестр!$J:$J,F$3)*IF($A21="-",-1,1) -> 340000 | G21: =SUMIFS(Реестр!$C:$C,Реестр!$E:$E,$C21,Реестр!$J:$J,G$3)*IF($A21="-",-1,1) -> 530000 | H21: =SUMIFS(Реестр!$C:$C,Реестр!$E:$E,$C21,Реестр!$J:$J,H$3)*IF($A21="-",-1,1) -> 467000 | I21: =SUMIFS(Реестр!$C:$C,Реестр!$E:$E,$C21,Реестр!$J:$J,I$3)*IF($A21="-",-1,1) -> 632000 | J21: =SUMIFS(Реестр!$C:$C,Реестр!$E:$E,$C21,Реестр!$J:$J,J$3)*IF($A21="-",-1,1) -> 0 | K21: =SUMIFS(Реестр!$C:$C,Реестр!$E:$E,$C21,Реестр!$J:$J,K$3)*IF($A21="-",-1,1) -> 0 | L21: =SUMIFS(Реестр!$C:$C,Реестр!$E:$E,$C21,Реестр!$J:$J,L$3)*IF($A21="-",-1,1) -> 0 | M21: =SUMIFS(Реестр!$C:$C,Реестр!$E:$E,$C21,Реестр!$J:$J,M$3)*IF($A21="-",-1,1) -> 0 | N21: =SUMIFS(Реестр!$C:$C,Реестр!$E:$E,$C21,Реестр!$J:$J,N$3)*IF($A21="-",-1,1) -> 0 | O21: =SUMIFS(Реестр!$C:$C,Реестр!$E:$E,$C21,Реестр!$J:$J,O$3)*IF($A21="-",-1,1) -> 0 | P21: 3229000
A22: - | B22: 4024 | C22: Прочие налоги и сборы | D22: =SUMIFS(Реестр!$C:$C,Реестр!$E:$E,$C22,Реестр!$J:$J,D$3)*IF($A22="-",-1,1) -> 0 | E22: =SUMIFS(Реестр!$C:$C,Реестр!$E:$E,$C22,Реестр!$J:$J,E$3)*IF($A22="-",-1,1) -> 0 | F22: =SUMIFS(Реестр!$C:$C,Реестр!$E:$E,$C22,Реестр!$J:$J,F$3)*IF($A22="-",-1,1) -> 0 | G22: =SUMIFS(Реестр!$C:$C,Реестр!$E:$E,$C22,Реестр!$J:$J,G$3)*IF($A22="-",-1,1) -> 0 | H22: =SUMIFS(Реестр!$C:$C,Реестр!$E:$E,$C22,Реестр!$J:$J,H$3)*IF($A22="-",-1,1) -> 0 | I22: =SUMIFS(Реестр!$C:$C,Реестр!$E:$E,$C22,Реестр!$J:$J,I$3)*IF($A22="-",-1,1) -> 0 | J22: =SUMIFS(Реестр!$C:$C,Реестр!$E:$E,$C22,Реестр!$J:$J,J$3)*IF($A22="-",-1,1) -> 0 | K22: =SUMIFS(Реестр!$C:$C,Реестр!$E:$E,$C22,Реестр!$J:$J,K$3)*IF($A22="-",-1,1) -> 0 | L22: =SUMIFS(Реестр!$C:$C,Реестр!$E:$E,$C22,Реестр!$J:$J,L$3)*IF($A22="-",-1,1) -> 0 | M22: =SUMIFS(Реестр!$C:$C,Реестр!$E:$E,$C22,Реестр!$J:$J,M$3)*IF($A22="-",-1,1) -> 0 | N22: =SUMIFS(Реестр!$C:$C,Реестр!$E:$E,$C22,Реестр!$J:$J,N$3)*IF($A22="-",-1,1) -> 0 | O22: =SUMIFS(Реестр!$C:$C,Реестр!$E:$E,$C22,Реестр!$J:$J,O$3)*IF($A22="-",-1,1) -> 0 | P22: 0
B23: 4030 | C23: Расходы на маркетинг | D23: =SUM(D24:D28) -> 191924 | E23: =SUM(E24:E28) -> 210332 | F23: 242783 | G23: 170234 | H23: 190742 | I23: 103843 | J23: 0 | K23: 0 | L23: 0 | M23: 0 | N23: 0 | O23: 0 | P23: 1109858
A24: - | B24: 4031 | C24: Участие в выставках | D24: =SUMIFS(Реестр!$C:$C,Реестр!$E:$E,$C24,Реестр!$J:$J,D$3)*IF($A24="-",-1,1) -> 44618 | E24: =SUMIFS(Реестр!$C:$C,Реестр!$E:$E,$C24,Реестр!$J:$J,E$3)*IF($A24="-",-1,1) -> 21332 | F24: =SUMIFS(Реестр!$C:$C,Реестр!$E:$E,$C24,Реестр!$J:$J,F$3)*IF($A24="-",-1,1) -> 52486 | G24: =SUMIFS(Реестр!$C:$C,Реестр!$E:$E,$C24,Реестр!$J:$J,G$3)*IF($A24="-",-1,1) -> 15975 | H24: =SUMIFS(Реестр!$C:$C,Реестр!$E:$E,$C24,Реестр!$J:$J,H$3)*IF($A24="-",-1,1) -> 23674 | I24: =SUMIFS(Реестр!$C:$C,Реестр!$E:$E,$C24,Реестр!$J:$J,I$3)*IF($A24="-",-1,1) -> 21945 | J24: =SUMIFS(Реестр!$C:$C,Реестр!$E:$E,$C24,Реестр!$J:$J,J$3)*IF($A24="-",-1,1) -> 0 | K24: =SUMIFS(Реестр!$C:$C,Реестр!$E:$E,$C24,Реестр!$J:$J,K$3)*IF($A24="-",-1,1) -> 0 | L24: =SUMIFS(Реестр!$C:$C,Реестр!$E:$E,$C24,Реестр!$J:$J,L$3)*IF($A24="-",-1,1) -> 0 | M24: =SUMIFS(Реестр!$C:$C,Реестр!$E:$E,$C24,Реестр!$J:$J,M$3)*IF($A24="-",-1,1) -> 0 | N24: =SUMIFS(Реестр!$C:$C,Реестр!$E:$E,$C24,Реестр!$J:$J,N$3)*IF($A24="-",-1,1) -> 0 | O24: =SUMIFS(Реестр!$C:$C,Реестр!$E:$E,$C24,Реестр!$J:$J,O$3)*IF($A24="-",-1,1) -> 0 | P24: 180030
A25: - | B25: 4032 | C25: Сувениры, подарки | D25: =SUMIFS(Реестр!$C:$C,Реестр!$E:$E,$C25,Реестр!$J:$J,D$3)*IF($A25="-",-1,1) -> 37668 | E25: =SUMIFS(Реестр!$C:$C,Реестр!$E:$E,$C25,Реестр!$J:$J,E$3)*IF($A25="-",-1,1) -> 36596 | F25: =SUMIFS(Реестр!$C:$C,Реестр!$E:$E,$C25,Реестр!$J:$J,F$3)*IF($A25="-",-1,1) -> 54915 | G25: =SUMIFS(Реестр!$C:$C,Реестр!$E:$E,$C25,Реестр!$J:$J,G$3)*IF($A25="-",-1,1) -> 38067 | H25: =SUMIFS(Реестр!$C:$C,Реестр!$E:$E,$C25,Реестр!$J:$J,H$3)*IF($A25="-",-1,1) -> 29533 | I25: =SUMIFS(Реестр!$C:$C,Реестр!$E:$E,$C25,Реестр!$J:$J,I$3)*IF($A25="-",-1,1) -> 27686 | J25: =SUMIFS(Реестр!$C:$C,Реестр!$E:$E,$C25,Реестр!$J:$J,J$3)*IF($A25="-",-1,1) -> 0 | K25: =SUMIFS(Реестр!$C:$C,Реестр!$E:$E,$C25,Реестр!$J:$J,K$3)*IF($A25="-",-1,1) -> 0 | L25: =SUMIFS(Реестр!$C:$C,Реестр!$E:$E,$C25,Реестр!$J:$J,L$3)*IF($A25="-",-1,1) -> 0 | M25: =SUMIFS(Реестр!$C:$C,Реестр!$E:$E,$C25,Реестр!$J:$J,M$3)*IF($A25="-",-1,1) -> 0 | N25: =SUMIFS(Реестр!$C:$C,Реестр!$E:$E,$C25,Реестр!$J:$J,N$3)*IF($A25="-",-1,1) -> 0 | O25: =SUMIFS(Реестр!$C:$C,Реестр!$E:$E,$C25,Реестр!$J:$J,O$3)*IF($A25="-",-1,1) -> 0 | P25: 224465
A26: - | B26: 4033 | C26: Реклама и PR | D26: =SUMIFS(Реестр!$C:$C,Реестр!$E:$E,$C26,Реестр!$J:$J,D$3)*IF($A26="-",-1,1) -> 32619 | E26: =SUMIFS(Реестр!$C:$C,Реестр!$E:$E,$C26,Реестр!$J:$J,E$3)*IF($A26="-",-1,1) -> 58852 | F26: =SUMIFS(Реестр!$C:$C,Реестр!$E:$E,$C26,Реестр!$J:$J,F$3)*IF($A26="-",-1,1) -> 49530 | G26: =SUMIFS(Реестр!$C:$C,Реестр!$E:$E,$C26,Реестр!$J:$J,G$3)*IF($A26="-",-1,1) -> 48980 | H26: =SUMIFS(Реестр!$C:$C,Реестр!$E:$E,$C26,Реестр!$J:$J,H$3)*IF($A26="-",-1,1) -> 59729 | I26: =SUMIFS(Реестр!$C:$C,Реестр!$E:$E,$C26,Реестр!$J:$J,I$3)*IF($A26="-",-1,1) -> 14672 | J26: =SUMIFS(Реестр!$C:$C,Реестр!$E:$E,$C26,Реестр!$J:$J,J$3)*IF($A26="-",-1,1) -> 0 | K26: =SUMIFS(Реестр!$C:$C,Реестр!$E:$E,$C26,Реестр!$J:$J,K$3)*IF($A26="-",-1,1) -> 0 | L26: =SUMIFS(Реестр!$C:$C,Реестр!$E:$E,$C26,Реестр!$J:$J,L$3)*IF($A26="-",-1,1) -> 0 | M26: =SUMIFS(Реестр!$C:$C,Реестр!$E:$E,$C26,Реестр!$J:$J,M$3)*IF($A26="-",-1,1) -> 0 | N26: =SUMIFS(Реестр!$C:$C,Реестр!$E:$E,$C26,Реестр!$J:$J,N$3)*IF($A26="-",-1,1) -> 0 | O26: =SUMIFS(Реестр!$C:$C,Реестр!$E:$E,$C26,Реестр!$J:$J,O$3)*IF($A26="-",-1,1) -> 0 | P26: 264382
A27: - | B27: 4034 | C27: Креатив и концепции | D27: =SUMIFS(Реестр!$C:$C,Реестр!$E:$E,$C27,Реестр!$J:$J,D$3)*IF($A27="-",-1,1) -> 24537 | E27: =SUMIFS(Реестр!$C:$C,Реестр!$E:$E,$C27,Реестр!$J:$J,E$3)*IF($A27="-",-1,1) -> 42637 | F27: =SUMIFS(Реестр!$C:$C,Реестр!$E:$E,$C27,Реестр!$J:$J,F$3)*IF($A27="-",-1,1) -> 45359 | G27: =SUMIFS(Реестр!$C:$C,Реестр!$E:$E,$C27,Реестр!$J:$J,G$3)*IF($A27="-",-1,1) -> 23282 | H27: =SUMIFS(Реестр!$C:$C,Реестр!$E:$E,$C27,Реестр!$J:$J,H$3)*IF($A27="-",-1,1) -> 32729 | I27: =SUMIFS(Реестр!$C:$C,Реестр!$E:$E,$C27,Реестр!$J:$J,I$3)*IF($A27="-",-1,1) -> 16126 | J27: =SUMIFS(Реестр!$C:$C,Реестр!$E:$E,$C27,Реестр!$J:$J,J$3)*IF($A27="-",-1,1) -> 0 | K27: =SUMIFS(Реестр!$C:$C,Реестр!$E:$E,$C27,Реестр!$J:$J,K$3)*IF($A27="-",-1,1) -> 0 | L27: =SUMIFS(Реестр!$C:$C,Реестр!$E:$E,$C27,Реестр!$J:$J,L$3)*IF($A27="-",-1,1) -> 0 | M27: =SUMIFS(Реестр!$C:$C,Реестр!$E:$E,$C27,Реестр!$J:$J,M$3)*IF($A27="-",-1,1) -> 0 | N27: =SUMIFS(Реестр!$C:$C,Реестр!$E:$E,$C27,Реестр!$J:$J,N$3)*IF($A27="-",-1,1) -> 0 | O27: =SUMIFS(Реестр!$C:$C,Реестр!$E:$E,$C27,Реестр!$J:$J,O$3)*IF($A27="-",-1,1) -> 0 | P27: 184670
A28: - | B28: 4035 | C28: Прочие расходы на маркетинг | D28: =SUMIFS(Реестр!$C:$C,Реестр!$E:$E,$C28,Реестр!$J:$J,D$3)*IF($A28="-",-1,1) -> 52482 | E28: =SUMIFS(Реестр!$C:$C,Реестр!$E:$E,$C28,Реестр!$J:$J,E$3)*IF($A28="-",-1,1) -> 50915 | F28: =SUMIFS(Реестр!$C:$C,Реестр!$E:$E,$C28,Реестр!$J:$J,F$3)*IF($A28="-",-1,1) -> 40493 | G28: =SUMIFS(Реестр!$C:$C,Реестр!$E:$E,$C28,Реестр!$J:$J,G$3)*IF($A28="-",-1,1) -> 43930 | H28: =SUMIFS(Реестр!$C:$C,Реестр!$E:$E,$C28,Реестр!$J:$J,H$3)*IF($A28="-",-1,1) -> 45077 | I28: =SUMIFS(Реестр!$C:$C,Реестр!$E:$E,$C28,Реестр!$J:$J,I$3)*IF($A28="-",-1,1) -> 23414 | J28: =SUMIFS(Реестр!$C:$C,Реестр!$E:$E,$C28,Реестр!$J:$J,J$3)*IF($A28="-",-1,1) -> 0 | K28: =SUMIFS(Реестр!$C:$C,Реестр!$E:$E,$C28,Реестр!$J:$J,K$3)*IF($A28="-",-1,1) -> 0 | L28: =SUMIFS(Реестр!$C:$C,Реестр!$E:$E,$C28,Реестр!$J:$J,L$3)*IF($A28="-",-1,1) -> 0 | M28: =SUMIFS(Реестр!$C:$C,Реестр!$E:$E,$C28,Реестр!$J:$J,M$3)*IF($A28="-",-1,1) -> 0 | N28: =SUMIFS(Реестр!$C:$C,Реестр!$E:$E,$C28,Реестр!$J:$J,N$3)*IF($A28="-",-1,1) -> 0 | O28: =SUMIFS(Реестр!$C:$C,Реестр!$E:$E,$C28,Реестр!$J:$J,O$3)*IF($A28="-",-1,1) -> 0 | P28: 256311
B29: 4040 | C29: Производственные расходы | D29: =SUM(D30:D34) -> 198422 | E29: =SUM(E30:E34) -> 173199 | F29: 231025 | G29: 263472 | H29: 270053 | I29: 221660 | J29: 0 | K29: 0 | L29: 0 | M29: 0 | N29: 0 | O29: 0 | P29: 1357831
A30: - | B30: 4041 | C30: Хостинг серверов | D30: =SUMIFS(Реестр!$C:$C,Реестр!$E:$E,$C30,Реестр!$J:$J,D$3)*IF($A30="-",-1,1) -> 31154 | E30: =SUMIFS(Реестр!$C:$C,Реестр!$E:$E,$C30,Реестр!$J:$J,E$3)*IF($A30="-",-1,1) -> 24957 | F30: =SUMIFS(Реестр!$C:$C,Реестр!$E:$E,$C30,Реестр!$J:$J,F$3)*IF($A30="-",-1,1) -> 50457 | G30: =SUMIFS(Реестр!$C:$C,Реестр!$E:$E,$C30,Реестр!$J:$J,G$3)*IF($A30="-",-1,1) -> 23451 | H30: =SUMIFS(Реестр!$C:$C,Реестр!$E:$E,$C30,Реестр!$J:$J,H$3)*IF($A30="-",-1,1) -> 50320 | I30: =SUMIFS(Реестр!$C:$C,Реестр!$E:$E,$C30,Реестр!$J:$J,I$3)*IF($A30="-",-1,1) -> 43374 | J30: =SUMIFS(Реестр!$C:$C,Реестр!$E:$E,$C30,Реестр!$J:$J,J$3)*IF($A30="-",-1,1) -> 0 | K30: =SUMIFS(Реестр!$C:$C,Реестр!$E:$E,$C30,Реестр!$J:$J,K$3)*IF($A30="-",-1,1) -> 0 | L30: =SUMIFS(Реестр!$C:$C,Реестр!$E:$E,$C30,Реестр!$J:$J,L$3)*IF($A30="-",-1,1) -> 0 | M30: =SUMIFS(Реестр!$C:$C,Реестр!$E:$E,$C30,Реестр!$J:$J,M$3)*IF($A30="-",-1,1) -> 0 | N30: =SUMIFS(Реестр!$C:$C,Реестр!$E:$E,$C30,Реестр!$J:$J,N$3)*IF($A30="-",-1,1) -> 0 | O30: =SUMIFS(Реестр!$C:$C,Реестр!$E:$E,$C30,Реестр!$J:$J,O$3)*IF($A30="-",-1,1) -> 0 | P30: 223713
A31: - | B31: 4042 | C31: Телематические услуги | D31: =SUMIFS(Реестр!$C:$C,Реестр!$E:$E,$C31,Реестр!$J:$J,D$3)*IF($A31="-",-1,1) -> 16162 | E31: =SUMIFS(Реестр!$C:$C,Реестр!$E:$E,$C31,Реестр!$J:$J,E$3)*IF($A31="-",-1,1) -> 11609 | F31: =SUMIFS(Реестр!$C:$C,Реестр!$E:$E,$C31,Реестр!$J:$J,F$3)*IF($A31="-",-1,1) -> 14729 | G31: =SUMIFS(Реестр!$C:$C,Реестр!$E:$E,$C31,Реестр!$J:$J,G$3)*IF($A31="-",-1,1) -> 30250 | H31: =SUMIFS(Реестр!$C:$C,Реестр!$E:$E,$C31,Реестр!$J:$J,H$3)*IF($A31="-",-1,1) -> 13317 | I31: =SUMIFS(Реестр!$C:$C,Реестр!$E:$E,$C31,Реестр!$J:$J,I$3)*IF($A31="-",-1,1) -> 32198 | J31: =SUMIFS(Реестр!$C:$C,Реестр!$E:$E,$C31,Реестр!$J:$J,J$3)*IF($A31="-",-1,1) -> 0 | K31: =SUMIFS(Реестр!$C:$C,Реестр!$E:$E,$C31,Реестр!$J:$J,K$3)*IF($A31="-",-1,1) -> 0 | L31: =SUMIFS(Реестр!$C:$C,Реестр!$E:$E,$C31,Реестр!$J:$J,L$3)*IF($A31="-",-1,1) -> 0 | M31: =SUMIFS(Реестр!$C:$C,Реестр!$E:$E,$C31,Реестр!$J:$J,M$3)*IF($A31="-",-1,1) -> 0 | N31: =SUMIFS(Реестр!$C:$C,Реестр!$E:$E,$C31,Реестр!$J:$J,N$3)*IF($A31="-",-1,1) -> 0 | O31: =SUMIFS(Реестр!$C:$C,Реестр!$E:$E,$C31,Реестр!$J:$J,O$3)*IF($A31="-",-1,1) -> 0 | P31: 118265
A32: - | B32: 4043 | C32: Домены и обслуживание сайтов | D32: =SUMIFS(Реестр!$C:$C,Реестр!$E:$E,$C32,Реестр!$J:$J,D$3)*IF($A32="-",-1,1) -> 41516 | E32: =SUMIFS(Реестр!$C:$C,Реестр!$E:$E,$C32,Реестр!$J:$J,E$3)*IF($A32="-",-1,1) -> 57493 | F32: =SUMIFS(Реестр!$C:$C,Реестр!$E:$E,$C32,Реестр!$J:$J,F$3)*IF($A32="-",-1,1) -> 15358 | G32: =SUMIFS(Реестр!$C:$C,Реестр!$E:$E,$C32,Реестр!$J:$J,G$3)*IF($A32="-",-1,1) -> 43327 | H32: =SUMIFS(Реестр!$C:$C,Реестр!$E:$E,$C32,Реестр!$J:$J,H$3)*IF($A32="-",-1,1) -> 18040 | I32: =SUMIFS(Реестр!$C:$C,Реестр!$E:$E,$C32,Реестр!$J:$J,I$3)*IF($A32="-",-1,1) -> 40234 | J32: =SUMIFS(Реестр!$C:$C,Реестр!$E:$E,$C32,Реестр!$J:$J,J$3)*IF($A32="-",-1,1) -> 0 | K32: =SUMIFS(Реестр!$C:$C,Реестр!$E:$E,$C32,Реестр!$J:$J,K$3)*IF($A32="-",-1,1) -> 0 | L32: =SUMIFS(Реестр!$C:$C,Реестр!$E:$E,$C32,Реестр!$J:$J,L$3)*IF($A32="-",-1,1) -> 0 | M32: =SUMIFS(Реестр!$C:$C,Реестр!$E:$E,$C32,Реестр!$J:$J,M$3)*IF($A32="-",-1,1) -> 0 | N32: =SUMIFS(Реестр!$C:$C,Реестр!$E:$E,$C32,Реестр!$J:$J,N$3)*IF($A32="-",-1,1) -> 0 | O32: =SUMIFS(Реестр!$C:$C,Реестр!$E:$E,$C32,Реестр!$J:$J,O$3)*IF($A32="-",-1,1) -> 0 | P32: 215968
A33: - | B33: 4044 | C33: Интернет на площадке | D33: =SUMIFS(Реестр!$C:$C,Реестр!$E:$E,$C33,Реестр!$J:$J,D$3)*IF($A33="-",-1,1) -> 17296 | E33: =SUMIFS(Реестр!$C:$C,Реестр!$E:$E,$C33,Реестр!$J:$J,E$3)*IF($A33="-",-1,1) -> 30691 | F33: =SUMIFS(Реестр!$C:$C,Реестр!$E:$E,$C33,Реестр!$J:$J,F$3)*IF($A33="-",-1,1) -> 30835 | G33: =SUMIFS(Реестр!$C:$C,Реестр!$E:$E,$C33,Реестр!$J:$J,G$3)*IF($A33="-",-1,1) -> 22318 | H33: =SUMIFS(Реестр!$C:$C,Реестр!$E:$E,$C33,Реестр!$J:$J,H$3)*IF($A33="-",-1,1) -> 59097 | I33: =SUMIFS(Реестр!$C:$C,Реестр!$E:$E,$C33,Реестр!$J:$J,I$3)*IF($A33="-",-1,1) -> 49960 | J33: =SUMIFS(Реестр!$C:$C,Реестр!$E:$E,$C33,Реестр!$J:$J,J$3)*IF($A33="-",-1,1) -> 0 | K33: =SUMIFS(Реестр!$C:$C,Реестр!$E:$E,$C33,Реестр!$J:$J,K$3)*IF($A33="-",-1,1) -> 0 | L33: =SUMIFS(Реестр!$C:$C,Реестр!$E:$E,$C33,Реестр!$J:$J,L$3)*IF($A33="-",-1,1) -> 0 | M33: =SUMIFS(Реестр!$C:$C,Реестр!$E:$E,$C33,Реестр!$J:$J,M$3)*IF($A33="-",-1,1) -> 0 | N33: =SUMIFS(Реестр!$C:$C,Реестр!$E:$E,$C33,Реестр!$J:$J,N$3)*IF($A33="-",-1,1) -> 0 | O33: =SUMIFS(Реестр!$C:$C,Реестр!$E:$E,$C33,Реестр!$J:$J,O$3)*IF($A33="-",-1,1) -> 0 | P33: 210197
A34: - | B34: 4045 | C34: Прочие производственные расходы | D34: =SUMIFS(Реестр!$C:$C,Реестр!$E:$E,$C34,Реестр!$J:$J,D$3)*IF($A34="-",-1,1) -> 92294 | E34: =SUMIFS(Реестр!$C:$C,Реестр!$E:$E,$C34,Реестр!$J:$J,E$3)*IF($A34="-",-1,1) -> 48449 | F34: =SUMIFS(Реестр!$C:$C,Реестр!$E:$E,$C34,Реестр!$J:$J,F$3)*IF($A34="-",-1,1) -> 119646 | G34: =SUMIFS(Реестр!$C:$C,Реестр!$E:$E,$C34,Реестр!$J:$J,G$3)*IF($A34="-",-1,1) -> 144126 | H34: =SUMIFS(Реестр!$C:$C,Реестр!$E:$E,$C34,Реестр!$J:$J,H$3)*IF($A34="-",-1,1) -> 129279 | I34: =SUMIFS(Реестр!$C:$C,Реестр!$E:$E,$C34,Реестр!$J:$J,I$3)*IF($A34="-",-1,1) -> 55894 | J34: =SUMIFS(Реестр!$C:$C,Реестр!$E:$E,$C34,Реестр!$J:$J,J$3)*IF($A34="-",-1,1) -> 0 | K34: =SUMIFS(Реестр!$C:$C,Реестр!$E:$E,$C34,Реестр!$J:$J,K$3)*IF($A34="-",-1,1) -> 0 | L34: =SUMIFS(Реестр!$C:$C,Реестр!$E:$E,$C34,Реестр!$J:$J,L$3)*IF($A34="-",-1,1) -> 0 | M34: =SUMIFS(Реестр!$C:$C,Реестр!$E:$E,$C34,Реестр!$J:$J,M$3)*IF($A34="-",-1,1) -> 0 | N34: =SUMIFS(Реестр!$C:$C,Реестр!$E:$E,$C34,Реестр!$J:$J,N$3)*IF($A34="-",-1,1) -> 0 | O34: =SUMIFS(Реестр!$C:$C,Реестр!$E:$E,$C34,Реестр!$J:$J,O$3)*IF($A34="-",-1,1) -> 0 | P34: 589688
B35: 4050 | C35: Административные расходы | D35: =SUM(D36:D44) -> 364319 | E35: =SUM(E36:E44) -> 370017 | F35: 302349 | G35: 396876 | H35: 374236 | I35: 311182 | J35: 0 | K35: 0 | L35: 0 | M35: 0 | N35: 0 | O35: 0 | P35: 2118979
A36: - | B36: 4051 | C36: Аренда офиса | D36: =SUMIFS(Реестр!$C:$C,Реестр!$E:$E,$C36,Реестр!$J:$J,D$3)*IF($A36="-",-1,1) -> 41222 | E36: =SUMIFS(Реестр!$C:$C,Реестр!$E:$E,$C36,Реестр!$J:$J,E$3)*IF($A36="-",-1,1) -> 16497 | F36: =SUMIFS(Реестр!$C:$C,Реестр!$E:$E,$C36,Реестр!$J:$J,F$3)*IF($A36="-",-1,1) -> 50868 | G36: =SUMIFS(Реестр!$C:$C,Реестр!$E:$E,$C36,Реестр!$J:$J,G$3)*IF($A36="-",-1,1) -> 28877 | H36: =SUMIFS(Реестр!$C:$C,Реестр!$E:$E,$C36,Реестр!$J:$J,H$3)*IF($A36="-",-1,1) -> 58455 | I36: =SUMIFS(Реестр!$C:$C,Реестр!$E:$E,$C36,Реестр!$J:$J,I$3)*IF($A36="-",-1,1) -> 25302 | J36: =SUMIFS(Реестр!$C:$C,Реестр!$E:$E,$C36,Реестр!$J:$J,J$3)*IF($A36="-",-1,1) -> 0 | K36: =SUMIFS(Реестр!$C:$C,Реестр!$E:$E,$C36,Реестр!$J:$J,K$3)*IF($A36="-",-1,1) -> 0 | L36: =SUMIFS(Реестр!$C:$C,Реестр!$E:$E,$C36,Реестр!$J:$J,L$3)*IF($A36="-",-1,1) -> 0 | M36: =SUMIFS(Реестр!$C:$C,Реестр!$E:$E,$C36,Реестр!$J:$J,M$3)*IF($A36="-",-1,1) -> 0 | N36: =SUMIFS(Реестр!$C:$C,Реестр!$E:$E,$C36,Реестр!$J:$J,N$3)*IF($A36="-",-1,1) -> 0 | O36: =SUMIFS(Реестр!$C:$C,Реестр!$E:$E,$C36,Реестр!$J:$J,O$3)*IF($A36="-",-1,1) -> 0 | P36: 221221
A37: - | B37: 4052 | C37: Банковские услуги | D37: =SUMIFS(Реестр!$C:$C,Реестр!$E:$E,$C37,Реестр!$J:$J,D$3)*IF($A37="-",-1,1) -> 19932 | E37: =SUMIFS(Реестр!$C:$C,Реестр!$E:$E,$C37,Реестр!$J:$J,E$3)*IF($A37="-",-1,1) -> 51141 | F37: =SUMIFS(Реестр!$C:$C,Реестр!$E:$E,$C37,Реестр!$J:$J,F$3)*IF($A37="-",-1,1) -> 13090 | G37: =SUMIFS(Реестр!$C:$C,Реестр!$E:$E,$C37,Реестр!$J:$J,G$3)*IF($A37="-",-1,1) -> 54316 | H37: =SUMIFS(Реестр!$C:$C,Реестр!$E:$E,$C37,Реестр!$J:$J,H$3)*IF($A37="-",-1,1) -> 13859 | I37: =SUMIFS(Реестр!$C:$C,Реестр!$E:$E,$C37,Реестр!$J:$J,I$3)*IF($A37="-",-1,1) -> 34912 | J37: =SUMIFS(Реестр!$C:$C,Реестр!$E:$E,$C37,Реестр!$J:$J,J$3)*IF($A37="-",-1,1) -> 0 | K37: =SUMIFS(Реестр!$C:$C,Реестр!$E:$E,$C37,Реестр!$J:$J,K$3)*IF($A37="-",-1,1) -> 0 | L37: =SUMIFS(Реестр!$C:$C,Реестр!$E:$E,$C37,Реестр!$J:$J,L$3)*IF($A37="-",-1,1) -> 0 | M37: =SUMIFS(Реестр!$C:$C,Реестр!$E:$E,$C37,Реестр!$J:$J,M$3)*IF($A37="-",-1,1) -> 0 | N37: =SUMIFS(Реестр!$C:$C,Реестр!$E:$E,$C37,Реестр!$J:$J,N$3)*IF($A37="-",-1,1) -> 0 | O37: =SUMIFS(Реестр!$C:$C,Реестр!$E:$E,$C37,Реестр!$J:$J,O$3)*IF($A37="-",-1,1) -> 0 | P37: 187250
A38: - | B38: 4053 | C38: Проценты по кредитам | D38: =SUMIFS(Реестр!$C:$C,Реестр!$E:$E,$C38,Реестр!$J:$J,D$3)*IF($A38="-",-1,1) -> 80000 | E38: =SUMIFS(Реестр!$C:$C,Реестр!$E:$E,$C38,Реестр!$J:$J,E$3)*IF($A38="-",-1,1) -> 75000 | F38: =SUMIFS(Реестр!$C:$C,Реестр!$E:$E,$C38,Реестр!$J:$J,F$3)*IF($A38="-",-1,1) -> 70000 | G38: =SUMIFS(Реестр!$C:$C,Реестр!$E:$E,$C38,Реестр!$J:$J,G$3)*IF($A38="-",-1,1) -> 65000 | H38: =SUMIFS(Реестр!$C:$C,Реестр!$E:$E,$C38,Реестр!$J:$J,H$3)*IF($A38="-",-1,1) -> 60000 | I38: =SUMIFS(Реестр!$C:$C,Реестр!$E:$E,$C38,Реестр!$J:$J,I$3)*IF($A38="-",-1,1) -> 50000 | J38: =SUMIFS(Реестр!$C:$C,Реестр!$E:$E,$C38,Реестр!$J:$J,J$3)*IF($A38="-",-1,1) -> 0 | K38: =SUMIFS(Реестр!$C:$C,Реестр!$E:$E,$C38,Реестр!$J:$J,K$3)*IF($A38="-",-1,1) -> 0 | L38: =SUMIFS(Реестр!$C:$C,Реестр!$E:$E,$C38,Реестр!$J:$J,L$3)*IF($A38="-",-1,1) -> 0 | M38: =SUMIFS(Реестр!$C:$C,Реестр!$E:$E,$C38,Реестр!$J:$J,M$3)*IF($A38="-",-1,1) -> 0 | N38: =SUMIFS(Реестр!$C:$C,Реестр!$E:$E,$C38,Реестр!$J:$J,N$3)*IF($A38="-",-1,1) -> 0 | O38: =SUMIFS(Реестр!$C:$C,Реестр!$E:$E,$C38,Реестр!$J:$J,O$3)*IF($A38="-",-1,1) -> 0 | P38: =SUM(D38:O38) -> 400000
A39: - | B39: 4054 | C39: Услуги связи | D39: =SUMIFS(Реестр!$C:$C,Реестр!$E:$E,$C39,Реестр!$J:$J,D$3)*IF($A39="-",-1,1) -> 31429 | E39: =SUMIFS(Реестр!$C:$C,Реестр!$E:$E,$C39,Реестр!$J:$J,E$3)*IF($A39="-",-1,1) -> 45295 | F39: =SUMIFS(Реестр!$C:$C,Реестр!$E:$E,$C39,Реестр!$J:$J,F$3)*IF($A39="-",-1,1) -> 17110 | G39: =SUMIFS(Реестр!$C:$C,Реестр!$E:$E,$C39,Реестр!$J:$J,G$3)*IF($A39="-",-1,1) -> 56430 | H39: =SUMIFS(Реестр!$C:$C,Реестр!$E:$E,$C39,Реестр!$J:$J,H$3)*IF($A39="-",-1,1) -> 56972 | I39: =SUMIFS(Реестр!$C:$C,Реестр!$E:$E,$C39,Реестр!$J:$J,I$3)*IF($A39="-",-1,1) -> 45034 | J39: =SUMIFS(Реестр!$C:$C,Реестр!$E:$E,$C39,Реестр!$J:$J,J$3)*IF($A39="-",-1,1) -> 0 | K39: =SUMIFS(Реестр!$C:$C,Реестр!$E:$E,$C39,Реестр!$J:$J,K$3)*IF($A39="-",-1,1) -> 0 | L39: =SUMIFS(Реестр!$C:$C,Реестр!$E:$E,$C39,Реестр!$J:$J,L$3)*IF($A39="-",-1,1) -> 0 | M39: =SUMIFS(Реестр!$C:$C,Реестр!$E:$E,$C39,Реестр!$J:$J,M$3)*IF($A39="-",-1,1) -> 0 | N39: =SUMIFS(Реестр!$C:$C,Реестр!$E:$E,$C39,Реестр!$J:$J,N$3)*IF($A39="-",-1,1) -> 0 | O39: =SUMIFS(Реестр!$C:$C,Реестр!$E:$E,$C39,Реестр!$J:$J,O$3)*IF($A39="-",-1,1) -> 0 | P39: 252270
A40: - | B40: 4055 | C40: Юридические и информационные услуги | D40: =SUMIFS(Реестр!$C:$C,Реестр!$E:$E,$C40,Реестр!$J:$J,D$3)*IF($A40="-",-1,1) -> 57331 | E40: =SUMIFS(Реестр!$C:$C,Реестр!$E:$E,$C40,Реестр!$J:$J,E$3)*IF($A40="-",-1,1) -> 49870 | F40: =SUMIFS(Реестр!$C:$C,Реестр!$E:$E,$C40,Реестр!$J:$J,F$3)*IF($A40="-",-1,1) -> 36598 | G40: =SUMIFS(Реестр!$C:$C,Реестр!$E:$E,$C40,Реестр!$J:$J,G$3)*IF($A40="-",-1,1) -> 28836 | H40: =SUMIFS(Реестр!$C:$C,Реестр!$E:$E,$C40,Реестр!$J:$J,H$3)*IF($A40="-",-1,1) -> 54057 | I40: =SUMIFS(Реестр!$C:$C,Реестр!$E:$E,$C40,Реестр!$J:$J,I$3)*IF($A40="-",-1,1) -> 38800 | J40: =SUMIFS(Реестр!$C:$C,Реестр!$E:$E,$C40,Реестр!$J:$J,J$3)*IF($A40="-",-1,1) -> 0 | K40: =SUMIFS(Реестр!$C:$C,Реестр!$E:$E,$C40,Реестр!$J:$J,K$3)*IF($A40="-",-1,1) -> 0 | L40: =SUMIFS(Реестр!$C:$C,Реестр!$E:$E,$C40,Реестр!$J:$J,L$3)*IF($A40="-",-1,1) -> 0 | M40: =SUMIFS(Реестр!$C:$C,Реестр!$E:$E,$C40,Реестр!$J:$J,M$3)*IF($A40="-",-1,1) -> 0 | N40: =SUMIFS(Реестр!$C:$C,Реестр!$E:$E,$C40,Реестр!$J:$J,N$3)*IF($A40="-",-1,1) -> 0 | O40: =SUMIFS(Реестр!$C:$C,Реестр!$E:$E,$C40,Реестр!$J:$J,O$3)*IF($A40="-",-1,1) -> 0 | P40: 265492
A41: - | B41: 4056 | C41: Канцелярские товары | D41: =SUMIFS(Реестр!$C:$C,Реестр!$E:$E,$C41,Реестр!$J:$J,D$3)*IF($A41="-",-1,1) -> 32777 | E41: =SUMIFS(Реестр!$C:$C,Реестр!$E:$E,$C41,Реестр!$J:$J,E$3)*IF($A41="-",-1,1) -> 22884 | F41: =SUMIFS(Реестр!$C:$C,Реестр!$E:$E,$C41,Реестр!$J:$J,F$3)*IF($A41="-",-1,1) -> 23871 | G41: =SUMIFS(Реестр!$C:$C,Реестр!$E:$E,$C41,Реестр!$J:$J,G$3)*IF($A41="-",-1,1) -> 28215 | H41: =SUMIFS(Реестр!$C:$C,Реестр!$E:$E,$C41,Реестр!$J:$J,H$3)*IF($A41="-",-1,1) -> 35683 | I41: =SUMIFS(Реестр!$C:$C,Реестр!$E:$E,$C41,Реестр!$J:$J,I$3)*IF($A41="-",-1,1) -> 14714 | J41: =SUMIFS(Реестр!$C:$C,Реестр!$E:$E,$C41,Реестр!$J:$J,J$3)*IF($A41="-",-1,1) -> 0 | K41: =SUMIFS(Реестр!$C:$C,Реестр!$E:$E,$C41,Реестр!$J:$J,K$3)*IF($A41="-",-1,1) -> 0 | L41: =SUMIFS(Реестр!$C:$C,Реестр!$E:$E,$C41,Реестр!$J:$J,L$3)*IF($A41="-",-1,1) -> 0 | M41: =SUMIFS(Реестр!$C:$C,Реестр!$E:$E,$C41,Реестр!$J:$J,M$3)*IF($A41="-",-1,1) -> 0 | N41: =SUMIFS(Реестр!$C:$C,Реестр!$E:$E,$C41,Реестр!$J:$J,N$3)*IF($A41="-",-1,1) -> 0 | O41: =SUMIFS(Реестр!$C:$C,Реестр!$E:$E,$C41,Реестр!$J:$J,O$3)*IF($A41="-",-1,1) -> 0 | P41: 158144
A42: - | B42: 4057 | C42: Представительские расходы | D42: =SUMIFS(Реестр!$C:$C,Реестр!$E:$E,$C42,Реестр!$J:$J,D$3)*IF($A42="-",-1,1) -> 26167 | E42: =SUMIFS(Реестр!$C:$C,Реестр!$E:$E,$C42,Реестр!$J:$J,E$3)*IF($A42="-",-1,1) -> 24115 | F42: =SUMIFS(Реестр!$C:$C,Реестр!$E:$E,$C42,Реестр!$J:$J,F$3)*IF($A42="-",-1,1) -> 13278 | G42: =SUMIFS(Реестр!$C:$C,Реестр!$E:$E,$C42,Реестр!$J:$J,G$3)*IF($A42="-",-1,1) -> 36448 | H42: =SUMIFS(Реестр!$C:$C,Реестр!$E:$E,$C42,Реестр!$J:$J,H$3)*IF($A42="-",-1,1) -> 29518 | I42: =SUMIFS(Реестр!$C:$C,Реестр!$E:$E,$C42,Реестр!$J:$J,I$3)*IF($A42="-",-1,1) -> 55518 | J42: =SUMIFS(Реестр!$C:$C,Реестр!$E:$E,$C42,Реестр!$J:$J,J$3)*IF($A42="-",-1,1) -> 0 | K42: =SUMIFS(Реестр!$C:$C,Реестр!$E:$E,$C42,Реестр!$J:$J,K$3)*IF($A42="-",-1,1) -> 0 | L42: =SUMIFS(Реестр!$C:$C,Реестр!$E:$E,$C42,Реестр!$J:$J,L$3)*IF($A42="-",-1,1) -> 0 | M42: =SUMIFS(Реестр!$C:$C,Реестр!$E:$E,$C42,Реестр!$J:$J,M$3)*IF($A42="-",-1,1) -> 0 | N42: =SUMIFS(Реестр!$C:$C,Реестр!$E:$E,$C42,Реестр!$J:$J,N$3)*IF($A42="-",-1,1) -> 0 | O42: =SUMIFS(Реестр!$C:$C,Реестр!$E:$E,$C42,Реестр!$J:$J,O$3)*IF($A42="-",-1,1) -> 0 | P42: 185044
A43: - | B43: 4058 | C43: Командировочные расходы | D43: =SUMIFS(Реестр!$C:$C,Реестр!$E:$E,$C43,Реестр!$J:$J,D$3)*IF($A43="-",-1,1) -> 35452 | E43: =SUMIFS(Реестр!$C:$C,Реестр!$E:$E,$C43,Реестр!$J:$J,E$3)*IF($A43="-",-1,1) -> 35217 | F43: =SUMIFS(Реестр!$C:$C,Реестр!$E:$E,$C43,Реестр!$J:$J,F$3)*IF($A43="-",-1,1) -> 17664 | G43: =SUMIFS(Реестр!$C:$C,Реестр!$E:$E,$C43,Реестр!$J:$J,G$3)*IF($A43="-",-1,1) -> 57207 | H43: =SUMIFS(Реестр!$C:$C,Реестр!$E:$E,$C43,Реестр!$J:$J,H$3)*IF($A43="-",-1,1) -> 50431 | I43: =SUMIFS(Реестр!$C:$C,Реестр!$E:$E,$C43,Реестр!$J:$J,I$3)*IF($A43="-",-1,1) -> 27609 | J43: =SUMIFS(Реестр!$C:$C,Реестр!$E:$E,$C43,Реестр!$J:$J,J$3)*IF($A43="-",-1,1) -> 0 | K43: =SUMIFS(Реестр!$C:$C,Реестр!$E:$E,$C43,Реестр!$J:$J,K$3)*IF($A43="-",-1,1) -> 0 | L43: =SUMIFS(Реестр!$C:$C,Реестр!$E:$E,$C43,Реестр!$J:$J,L$3)*IF($A43="-",-1,1) -> 0 | M43: =SUMIFS(Реестр!$C:$C,Реестр!$E:$E,$C43,Реестр!$J:$J,M$3)*IF($A43="-",-1,1) -> 0 | N43: =SUMIFS(Реестр!$C:$C,Реестр!$E:$E,$C43,Реестр!$J:$J,N$3)*IF($A43="-",-1,1) -> 0 | O43: =SUMIFS(Реестр!$C:$C,Реестр!$E:$E,$C43,Реестр!$J:$J,O$3)*IF($A43="-",-1,1) -> 0 | P43: 223580
A44: - | B44: 4059 | C44: Прочие операционные расходы | D44: =SUMIFS(Реестр!$C:$C,Реестр!$E:$E,$C44,Реестр!$J:$J,D$3)*IF($A44="-",-1,1) -> 40009 | E44: =SUMIFS(Реестр!$C:$C,Реестр!$E:$E,$C44,Реестр!$J:$J,E$3)*IF($A44="-",-1,1) -> 49998 | F44: =SUMIFS(Реестр!$C:$C,Реестр!$E:$E,$C44,Реестр!$J:$J,F$3)*IF($A44="-",-1,1) -> 59870 | G44: =SUMIFS(Реестр!$C:$C,Реестр!$E:$E,$C44,Реестр!$J:$J,G$3)*IF($A44="-",-1,1) -> 41547 | H44: =SUMIFS(Реестр!$C:$C,Реестр!$E:$E,$C44,Реестр!$J:$J,H$3)*IF($A44="-",-1,1) -> 15261 | I44: =SUMIFS(Реестр!$C:$C,Реестр!$E:$E,$C44,Реестр!$J:$J,I$3)*IF($A44="-",-1,1) -> 19293 | J44: =SUMIFS(Реестр!$C:$C,Реестр!$E:$E,$C44,Реестр!$J:$J,J$3)*IF($A44="-",-1,1) -> 0 | K44: =SUMIFS(Реестр!$C:$C,Реестр!$E:$E,$C44,Реестр!$J:$J,K$3)*IF($A44="-",-1,1) -> 0 | L44: =SUMIFS(Реестр!$C:$C,Реестр!$E:$E,$C44,Реестр!$J:$J,L$3)*IF($A44="-",-1,1) -> 0 | M44: =SUMIFS(Реестр!$C:$C,Реестр!$E:$E,$C44,Реестр!$J:$J,M$3)*IF($A44="-",-1,1) -> 0 | N44: =SUMIFS(Реестр!$C:$C,Реестр!$E:$E,$C44,Реестр!$J:$J,N$3)*IF($A44="-",-1,1) -> 0 | O44: =SUMIFS(Реестр!$C:$C,Реестр!$E:$E,$C44,Реестр!$J:$J,O$3)*IF($A44="-",-1,1) -> 0 | P44: 225978
B45: 5000 | C45: Операционная прибыль | D45: =D11-D13 -> 1102523.582 | E45: =E11-E13 -> 2346169.75 | F45: 5824835.856 | G45: 5022953.451 | H45: 5478881.65 | I45: 4152075.855 | J45: 0 | K45: 0 | L45: 0 | M45: 0 | N45: 0 | O45: 0 | P45: 23927440.14
A47: - | B47: 6000 | C47: Амортизация | D47: =SUMIFS(Реестр!$C:$C,Реестр!$E:$E,$C47,Реестр!$J:$J,D$3)*IF($A47="-",-1,1) -> 150000 | E47: =SUMIFS(Реестр!$C:$C,Реестр!$E:$E,$C47,Реестр!$J:$J,E$3)*IF($A47="-",-1,1) -> 155000 | F47: =SUMIFS(Реестр!$C:$C,Реестр!$E:$E,$C47,Реестр!$J:$J,F$3)*IF($A47="-",-1,1) -> 160000 | G47: =SUMIFS(Реестр!$C:$C,Реестр!$E:$E,$C47,Реестр!$J:$J,G$3)*IF($A47="-",-1,1) -> 165000 | H47: =SUMIFS(Реестр!$C:$C,Реестр!$E:$E,$C47,Реестр!$J:$J,H$3)*IF($A47="-",-1,1) -> 170000 | I47: =SUMIFS(Реестр!$C:$C,Реестр!$E:$E,$C47,Реестр!$J:$J,I$3)*IF($A47="-",-1,1) -> 175000 | J47: =SUMIFS(Реестр!$C:$C,Реестр!$E:$E,$C47,Реестр!$J:$J,J$3)*IF($A47="-",-1,1) -> 0 | K47: =SUMIFS(Реестр!$C:$C,Реестр!$E:$E,$C47,Реестр!$J:$J,K$3)*IF($A47="-",-1,1) -> 0 | L47: =SUMIFS(Реестр!$C:$C,Реестр!$E:$E,$C47,Реестр!$J:$J,L$3)*IF($A47="-",-1,1) -> 0 | M47: =SUMIFS(Реестр!$C:$C,Реестр!$E:$E,$C47,Реестр!$J:$J,M$3)*IF($A47="-",-1,1) -> 0 | N47: =SUMIFS(Реестр!$C:$C,Реестр!$E:$E,$C47,Реестр!$J:$J,N$3)*IF($A47="-",-1,1) -> 0 | O47: =SUMIFS(Реестр!$C:$C,Реестр!$E:$E,$C47,Реестр!$J:$J,O$3)*IF($A47="-",-1,1) -> 0 | P47: =SUM(D47:O47) -> 975000
B49: 7000 | C49: Чистая прибыль | D49: =D45-D47 -> 952523.5818 | E49: =E45-E47 -> 2191169.75 | F49: 5664835.856 | G49: 4857953.451 | H49: 5308881.65 | I49: 3977075.855 | J49: 0 | K49: 0 | L49: 0 | M49: 0 | N49: 0 | O49: 0 | P49: =SUM(D49:O49) -> 22952440.14

Sheet Баланс
A1: Балансовый отчёт ООО "Ромашка"
A3: Код | B3: Наименование статей | C3: 2013-01-01 | D3: 2013-02-01 | E3: 2013-03-01 | F3: 2013-04-01 | G3: 2013-05-01 | H3: 2013-06-01 | I3: 2013-07-01 | J3: 2013-08-01 | K3: 2013-09-01 | L3: 2013-10-01 | M3: 2013-11-01 | N3: 2013-12-01 | O3: 2014-01-01
A4: 100 | B4: Активы | C4: =C5+C6+C12 -> 15548310 | D4: =D5+D6+D12 -> 14427045.26 | E4: 13312583.55 | F4: 18286057.5 | G4: 24428781.57 | H4: 25874748.47 | I4: =I5+I6+I12 -> 25914571.55
A5: 110 | B5: Денежные средства | C5: 2500000 | D5: =C5+ОДДС!D71 -> 3486471.66 | E5: =D5+ОДДС!E71 -> 3437109.12 | F5: =E5+ОДДС!F71 -> 3410504.28 | G5: =F5+ОДДС!G71 -> 4038217.87 | H5: =G5+ОДДС!H71 -> 6554518.19 | I5: =H5+ОДДС!I71 -> 4140787.33
A6: 120 | B6: Дебиторская задолженность | C6: =SUM(C7:C11) -> 5798310 | D6: =SUM(D7:D11) -> 3840573.6 | E6: 1830474.43 | F6: 6990553.222 | G6: 10370563.7 | H6: 9470230.282 | I6: =SUM(I7:I11) -> 8698784.217
A7: 121 | B7: расчёты с покупателями | C7: 5250000 | D7: =MAX(C7-C16+ОПУ!D5-ОДДС!D5,0) -> 3364284.6 | E7: =MAX(D7-D16+ОПУ!E5-ОДДС!E5,0) -> 1344412.43 | F7: =MAX(E7-E16+ОПУ!F5-ОДДС!F5,0) -> 6567609.222 | G7: =MAX(F7-F16+ОПУ!G5-ОДДС!G5,0) -> 10070013.7 | H7: =MAX(G7-G16+ОПУ!H5-ОДДС!H5,0) -> 9257741.282 | I7: =MAX(H7-H16+ОПУ!I5-ОДДС!I5,0) -> 8507210.217
A8: 122 | B8: расчёты с площадками | C8: 0 | D8: =MAX(C8-C17-ОПУ!D9+ОДДС!D10,0) -> 0 | E8: =MAX(D8-D17-ОПУ!E9+ОДДС!E10,0) -> 0 | F8: =MAX(E8-E17-ОПУ!F9+ОДДС!F10,0) -> 0 | G8: =MAX(F8-F17-ОПУ!G9+ОДДС!G10,0) -> 0 | H8: =MAX(G8-G17-ОПУ!H9+ОДДС!H10,0) -> 0 | I8: =MAX(H8-H17-ОПУ!I9+ОДДС!I10,0) -> 0
A9: 123 | B9: расчёты с бюджетом | C9: 0 | D9: =MAX(C9-C18-ОПУ!D18+ОДДС!D16,0) -> 0 | E9: =MAX(D9-D18-ОПУ!E18+ОДДС!E16,0) -> 0 | F9: =MAX(E9-E18-ОПУ!F18+ОДДС!F16,0) -> 0 | G9: =MAX(F9-F18-ОПУ!G18+ОДДС!G16,0) -> 0 | H9: =MAX(G9-G18-ОПУ!H18+ОДДС!H16,0) -> 0 | I9: =MAX(H9-H18-ОПУ!I18+ОДДС!I16,0) -> 0
A10: 124 | B10: расчёты с персоналом | C10: 0 | D10: =MAX(C10-C19-ОПУ!D14+ОДДС!D12,0) -> 0 | E10: =MAX(D10-D19-ОПУ!E14+ОДДС!E12,0) -> 0 | F10: =MAX(E10-E19-ОПУ!F14+ОДДС!F12,0) -> 0 | G10: =MAX(F10-F19-ОПУ!G14+ОДДС!G12,0) -> 0 | H10: =MAX(G10-G19-ОПУ!H14+ОДДС!H12,0) -> 0 | I10: =MAX(H10-H19-ОПУ!I14+ОДДС!I12,0) -> 0
A11: 125 | B11: расчёты с прочими контрагентами | C11: 548310 | D11: =MAX(C11-C20-ОПУ!D10-ОПУ!D23-ОПУ!D29-ОПУ!D35+ОДДС!D11+ОДДС!D21+ОДДС!D27+ОДДС!D33,0) -> 476289 | E11: =MAX(D11-D20-ОПУ!E10-ОПУ!E23-ОПУ!E29-ОПУ!E35+ОДДС!E11+ОДДС!E21+ОДДС!E27+ОДДС!E33,0) -> 486062 | F11: =MAX(E11-E20-ОПУ!F10-ОПУ!F23-ОПУ!F29-ОПУ!F35+ОДДС!F11+ОДДС!F21+ОДДС!F27+ОДДС!F33,0) -> 422944 | G11: =MAX(F11-F20-ОПУ!G10-ОПУ!G23-ОПУ!G29-ОПУ!G35+ОДДС!G11+ОДДС!G21+ОДДС!G27+ОДДС!G33,0) -> 300550 | H11: =MAX(G11-G20-ОПУ!H10-ОПУ!H23-ОПУ!H29-ОПУ!H35+ОДДС!H11+ОДДС!H21+ОДДС!H27+ОДДС!H33,0) -> 212489 | I11: =MAX(H11-H20-ОПУ!I10-ОПУ!I23-ОПУ!I29-ОПУ!I35+ОДДС!I11+ОДДС!I21+ОДДС!I27+ОДДС!I33,0) -> 191574
A12: 130 | B12: Основные средства и НМА | C12: 7250000 | D12: =C12-ОДДС!D59+ОДДС!D63-ОПУ!D47 -> 7100000 | E12: =D12-ОДДС!E59+ОДДС!E63-ОПУ!E47 -> 8045000 | F12: =E12-ОДДС!F59+ОДДС!F63-ОПУ!F47 -> 7885000 | G12: =F12-ОДДС!G59+ОДДС!G63-ОПУ!G47 -> 10020000 | H12: =G12-ОДДС!H59+ОДДС!H63-ОПУ!H47 -> 9850000 | I12: =H12-ОДДС!I59+ОДДС!I63-ОПУ!I47 -> 13075000
A14: 200 | B14: Пассивы | C14: =C15+C21+C22 -> 15548310 | D14: =D15+D21+D22 -> 14427045.26 | E14: 13312583.55 | F14: 18286057.5 | G14: 24428781.57 | H14: 25874748.47 | I14: =I15+I21+I22 -> 25914571.55
A15: 210 | B15: Кредиторская задолженность | C15: =SUM(C16:C20) -> 6251644 | D15: =SUM(D16:D20) -> 4157855.678 | E15: 1832224.218 | F15: 3120862.314 | G15: 7385632.933 | H15: 6002718.183 | I15: =SUM(I16:I20) -> 3545465.403
A16: 211 | B16: расчёты с покупателями | C16: 0 | D16: =MAX(C16-C7+ОДДС!D5-ОПУ!D5,0) -> 0 | E16: =MAX(D16-D7+ОДДС!E5-ОПУ!E5,0) -> 0 | F16: =MAX(E16-E7+ОДДС!F5-ОПУ!F5,0) -> 0 | G16: =MAX(F16-F7+ОДДС!G5-ОПУ!G5,0) -> 0 | H16: =MAX(G16-G7+ОДДС!H5-ОПУ!H5,0) -> 0 | I16: =MAX(H16-H7+ОДДС!I5-ОПУ!I5,0) -> 0
A17: 212 | B17: расчёты с площадками | C17: 5175300 | D17: =MAX(C17-C8-ОДДС!D10+ОПУ!D9,0) -> 2979867.708 | E17: =MAX(D17-D8-ОДДС!E10+ОПУ!E9,0) -> 528116.4282 | F17: =MAX(E17-E8-ОДДС!F10+ОПУ!F9,0) -> 1692136.024 | G17: =MAX(F17-F8-ОДДС!G10+ОПУ!G9,0) -> 5815447.643 | H17: =MAX(G17-G8-ОДДС!H10+ОПУ!H9,0) -> 4321589.893 | I17: =MAX(H17-H8-ОДДС!I10+ОПУ!I9,0) -> 1674888.113
A18: 213 | B18: расчёты с бюджетом | C18: 325874 | D18: =MAX(C18-C9-ОДДС!D16+ОПУ!D18,0) -> 429267.97 | E18: =MAX(D18-D9-ОДДС!E16+ОПУ!E18,0) -> 563850.29 | F18: =MAX(E18-E9-ОДДС!F16+ОПУ!F18,0) -> 650156.29 | G18: =MAX(F18-F9-ОДДС!G16+ОПУ!G18,0) -> 774515.29 | H18: =MAX(G18-G9-ОДДС!H16+ОПУ!H18,0) -> 856583.29 | I18: =MAX(H18-H9-ОДДС!I16+ОПУ!I18,0) -> 1007352.29
A19: 214 | B19: расчёты с персоналом | C19: 750470 | D19: =MAX(C19-C10-ОДДС!D12+ОПУ!D14,0) -> 748720 | E19: =MAX(D19-D10-ОДДС!E12+ОПУ!E14,0) -> 740257.5 | F19: =MAX(E19-E10-ОДДС!F12+ОПУ!F14,0) -> 778570 | G19: =MAX(F19-F10-ОДДС!G12+ОПУ!G14,0) -> 795670 | H19: =MAX(G19-G10-ОДДС!H12+ОПУ!H14,0) -> 824545 | I19: =MAX(H19-H10-ОДДС!I12+ОПУ!I14,0) -> 863225
A20: 215 | B20: расчёты с прочими контрагентами | C20: 0 | D20: =MAX(C20-C11-ОДДС!D11-ОДДС!D21-ОДДС!D27-ОДДС!D33+ОПУ!D10+ОПУ!D23+ОПУ!D29+ОПУ!D35,0) -> 0 | E20: =MAX(D20-D11-ОДДС!E11-ОДДС!E21-ОДДС!E27-ОДДС!E33+ОПУ!E10+ОПУ!E23+ОПУ!E29+ОПУ!E35,0) -> 0 | F20: =MAX(E20-E11-ОДДС!F11-ОДДС!F21-ОДДС!F27-ОДДС!F33+ОПУ!F10+ОПУ!F23+ОПУ!F29+ОПУ!F35,0) -> 0 | G20: =MAX(F20-F11-ОДДС!G11-ОДДС!G21-ОДДС!G27-ОДДС!G33+ОПУ!G10+ОПУ!G23+ОПУ!G29+ОПУ!G35,0) -> 0 | H20: =MAX(G20-G11-ОДДС!H11-ОДДС!H21-ОДДС!H27-ОДДС!H33+ОПУ!H10+ОПУ!H23+ОПУ!H29+ОПУ!H35,0) -> 0 | I20: =MAX(H20-H11-ОДДС!I11-ОДДС!I21-ОДДС!I27-ОДДС!I33+ОПУ!I10+ОПУ!I23+ОПУ!I29+ОПУ!I35,0) -> 0
A21: 220 | B21: Кредиты и займы | C21: 5000000 | D21: =C21+ОДДС!D48+ОДДС!D49+ОДДС!D50-ОДДС!D53-ОДДС!D54-ОДДС!D55 -> 5520000 | E21: =D21+ОДДС!E48+ОДДС!E49+ОДДС!E50-ОДДС!E53-ОДДС!E54-ОДДС!E55 -> 6040000 | F21: =E21+ОДДС!F48+ОДДС!F49+ОДДС!F50-ОДДС!F53-ОДДС!F54-ОДДС!F55 -> 6560000 | G21: =F21+ОДДС!G48+ОДДС!G49+ОДДС!G50-ОДДС!G53-ОДДС!G54-ОДДС!G55 -> 7080000 | H21: =G21+ОДДС!H48+ОДДС!H49+ОДДС!H50-ОДДС!H53-ОДДС!H54-ОДДС!H55 -> 7600000 | I21: =H21+ОДДС!I48+ОДДС!I49+ОДДС!I50-ОДДС!I53-ОДДС!I54-ОДДС!I55 -> 8120000
A22: 230 | B22: Собственный капитал | C22: =SUM(C23:C25) -> 4296666 | D22: =SUM(D23:D25) -> 4749189.582 | E22: 5440359.332 | F22: 8605195.188 | G22: 9963148.639 | H22: 12272030.29 | I22: =SUM(I23:I25) -> 14249106.14
A23: 231 | B23: капитал на начало периода | C23: =C4-C15-C21 -> 4296666 | D23: =C22 -> 4296666 | E23: =D22 -> 4749189.582 | F23: 5440359.332 | G23: 8605195.188 | H23: 9963148.639 | I23: 12272030.29
A24: 232 | B24: прибыль за период | C24: 0 | D24: =ОПУ!D49 -> 952523.5818 | E24: =ОПУ!E49 -> 2191169.75 | F24: =ОПУ!F49 -> 5664835.856 | G24: =ОПУ!G49 -> 4857953.451 | H24: =ОПУ!H49 -> 5308881.65 | I24: =ОПУ!I49 -> 3977075.855
A25: 233 | B25: расчёты с акционерами за период | C25: 0 | D25: =ОДДС!D47-ОДДС!D52 -> -500000 | E25: =ОДДС!E47-ОДДС!E52 -> -1500000 | F25: =ОДДС!F47-ОДДС!F52 -> -2500000 | G25: =ОДДС!G47-ОДДС!G52 -> -3500000 | H25: =ОДДС!H47-ОДДС!H52 -> -3000000 | I25: =ОДДС!I47-ОДДС!I52 -> -2000000

Sheet Расчётные счета
A1: Справочник расчётных счетов
A3: № | B3: Наименование р/сч
A4: 1 | B4: Счёт в ВТБ 24
A5: 2 | B5: Счёт в Сбербанке
A6: 3 | B6: Счёт в Альфа-Банке

Sheet Статьи ДДС
A1: Справочник статей ДДС
A3: № | B3: Наименование статей ДДС
A4: 1 | B4: Поступления от продаж
A5: 2 | B5: Прочие поступления
A6: 3 | B6: Услуги по размещению
A7: 4 | B7: Прочие прямые затраты
A8: 5 | B8: Основная заработная плата
A9: 6 | B9: Премии, бонусы
A10: 7 | B10: Прочие затраты на оплату труда
A11: 8 | B11: Налоги на фонд оплаты труда
A12: 9 | B12: Налог на добавленную стоимость
A13: 10 | B13: Налог на прибыль
A14: 11 | B14: Прочие налоги и сборы
A15: 12 | B15: Участие в выставках
A16: 13 | B16: Сувениры, подарки
A17: 14 | B17: Реклама и PR
A18: 15 | B18: Креатив и концепции
A19: 16 | B19: Прочие расходы на маркетинг
A20: 17 | B20: Хостинг серверов
A21: 18 | B21: Телематические услуги
A22: 19 | B22: Домены и обслуживание сайтов
A23: 20 | B23: Интернет на площадке
A24: 21 | B24: Прочие производственные расходы
A25: 22 | B25: Аренда офиса
A26: 23 | B26: Банковские услуги
A27: 24 | B27: Проценты по кредитам
A28: 25 | B28: Услуги связи
A29: 26 | B29: Юридические и информационные услуги
A30: 27 | B30: Канцелярские товары
A31: 28 | B31: Представительские расходы
A32: 29 | B32: Командировочные расходы
A33: 30 | B33: Прочие операционные расходы
A34: 31 | B34: Поступления от акционеров
A35: 32 | B35: Получение банковских кредитов
A36: 33 | B36: Получение займов
A37: 34 | B37: Прочие поступления от финансовой деятельности
A38: 35 | B38: Платежи акционерам
A39: 36 | B39: Погашение банковских кредитов
A40: 37 | B40: Прочие платежи по финансовой деятельности
A41: 38 | B41: Амортизация
